{"text_format":"1","workbook":"xlsx","n_sheets":11,"sheets":["Обложка","Инструкции","Глоссарий угроз","Матрица рисков","Информация","Предположения","Ввод данных об угрозах","Оценка данных","Отчет о рисках","Отчет об уязвимости","Контакты"],"not_rendered":{"charts":6,"images":13,"macros":1,"external_links":0,"defined_names":15,"comments":0,"pivot_tables":0},"unopened":[],"bounds":{"document_bytes":16777216,"sheet_cells":100000,"rows_first":2000,"rows_last":500,"rows_between":2000,"halvings":0,"cell_chars":16384,"cell_head_chars":4096},"cells_cut":0,"cells_raw":0,"read":"whole","date_system":"1900"}

{"sheet":"Обложка","index":0,"n_rows":28,"n_cols":13,"rows_kept":28,"cut":false,"hidden":false,"merged":[[27,12,27,16]]}
[]
[]
[]
[]
[]
[]
[null,null,"Инструмент быстрой оценки риска (БОР)"]
[]
[]
[]
[]
[]
[]
[]
[]
[]
[]
[]
[]
[]
[]
[]
[]
[]
[]
[]
[]
[null,null,null,null,null,null,null,null,null,null,null,null,"Примечание: На совместимость и функциональность инструмента можно повлиять используя версии Exel, выпущенные до 2010 года, в отдельных случаях, можно использовать некоторые версии (например, студент) в Excel 2010 года."]

{"sheet":"Инструкции","index":1,"n_rows":196,"n_cols":2,"rows_kept":196,"cut":false,"hidden":false,"merged":[]}
[{"$f":"MdlTle","v":"Инструмент быстрой оценки риска (БОР)"}]
[{"$f":"MID(CELL(\"filename\",A1),FIND(\"]\",CELL(\"filename\",A1))+1,255)","v":"Инструкции"}]
[]
[]
[null,"Устойчивый город - это тот город, который способен быстро и эффективно снижать, сопротивляться, поглощать, приспосабливаться и восстанавливаться после воздействия угроз, сохраняя и восстанавливая основные базовые структуры и услуги."]
[]
[null,"Цель структуры принятия решений"]
[]
[null,"Инструмент быстрой оценки риска (БОР) был разработан с целью выявления и понимания текущих и будущих рисков / стрессов / ударов и угроз воздействия как на людей, так и на физическое имущество. Инструмент БОР не является полномасштабной оценкой рисков, а скорее процессом взаимодействия с несколькими заинтересованными сторонами для установления общего понимания. Принимая во внимание уже предпринятые действия или корректирующие меры, БОР будет проводить оценку риска в стиле панели управления, в которой сообщается о рисках и опасностях для людей и имущества, воздействии выявленных основных рисков и связанных с ними опасностей в указанном месте и / или конкретном объекте."]
[null,"Инструмент БОР использует классификацию угроз, изложенную Бюро ООН по снижению риска бедствий (БСРБ ООН). Показатели угроз, включенные в инструмент БОР, приведены в соответствие с 10 Основными принципами для создания устойчивой системы показателей городов в контексте Сэндайской рамочной программы по снижению риска  бедствий 2015-2030 и целей устойчивого развития."]
[null,"Основываясь на инструменте БОР, была разработана Структура принятия решений (СПР) с целью предоставления пользователю необходимых указаний для оценки и последующего учета воздействий и уязвимости соответствующих угроз, а также уровня текущих ответов или действий, предпринятых в отношении этих угроз. СПР, которая включена в этот инструмент БОР, включает в себя набор инструкций, определений (то есть Глоссарий) и базовую матрицу рисков, которая помогает пользователю вводить данные в инструмент БОР, предоставляя пользователю ориентировочные критерии оценки и шкалы измерения, описанные в разделе «Предположения»."]
[]
[null,"Кто может ее использовать"]
[]
[null,"Инструмент БОР доступен для развертывания в городах, участвующих в кампании 10 Основных принципов."]
[null,"Потенциальными пользователями являются: "]
[null,"    - городские власти, включая градостроителей, менеджеров по управлению рисками, менеджеров по наводненияи и чиновников экстренного реагирования"]
[null,"    - Все заинтересованные стороны, причастные к Кампании \"Повышение Устойчивости Городов\" и 10 основных принципов"]
[null,"Инструмент БОР предназначен только для использования во время семинара в многостороннем подходе, а не в качестве самостоятельного инструмента."]
[]
[null,"Инструкция для пользователей"]
[]
[null,"Инструмент БОР предоставит вам простую оценку риска в указанном вами месте, объекте и / или производственном секторе. Это упражнение будет основываться на вашей самооценке, которая будет проинформирована вашим предыдущим опытом, доказательствами, исследованиями и консультациями с соответствующими заинтересованными сторонами по мере продвижения через инструмент БОР. Процесс консультаций также поможет затронуть и развить понимание, владение и согласование с соответствующими заинтересованными сторонами."]
[]
[null,"Ниже приведен ряд инструкций о том, как использовать инструмент БОР, а также поэтапное тематическое исследование."]
[]
[null,"Шаг 1. Предоставьте информацию о местоположении, регионе и / или имуществе"]
[null,"Чтобы начать использовать инструмент БОР, используйте вкладку «Информация», чтобы ввести информацию о местоположении, регионе и / или имуществе, которая идентифицирует и определяет сферу действия этой оценки риска."]
[]
[null,"Шаг 2. Определите группы опасностей и подгруппы"]
[null,"Обратитесь к столбцу B на вкладке «Ввод данных об угрозах»"]
[null,"> Определите группы угроз и подгруппы, относящиеся к оцениваемой местности."]
[]
[null,"Пожалуйста, обратите внимание, что группы угроз и подгруппы основаны на классификации угроз, принятой БСРБ ООН для Сэндайской рамочной программы. Полный глоссарий, содержащий определения угроз, включен в вкладку «Глоссарий угроз». Кроме того, в закладках «Предположения» можно найти описание групп, подгрупп, основных угроз и опаснстей. Это описание, вместе с глоссарием угроз направит ваш ввод данных через шаги 2, 3 и 4. Обратите внимание, что объединение угроз на группы и подгруппы является исключительно предложением и предназначено только для ясности; Некоторые угрозы могут изменить их групповую ассоциацию на основе фактического события и механизма потерь."]
[]
[null,"Тематическое исследование:"]
[null,"В данном исследовании оценивается местоположение города Маккей, Квинсленд, Австралия, в отношении Серьезного Тропического Циклона Дебби (март 2017)."]
[null,"Маккей находится в Северном Квинсленде на восточном побережье Австралии. Город Маккей расположен на реке Пионер, а хребет Кларк расположен к западу от города. Крупный сельскохозяйственный регион, Маккей известен как один из крупнейших в Австралии регионов по производству тростника. Численность населения Маккей превышает 120 000 человек, а жители проживают в разных районах проживания от прибрежных, до небольших сельских и сельских жилых районов."]
[null,"Основываясь на субтропическом климате Маккея и истории бедствий, город подвержен следующим событиям: наводнениям, оползням, сильным штормам с градом и разрушительными ветрами, низовым пожарам, периодам аномальной жары, циклонам, землетрясениям и волновым воздействиям."]
[null,"Для целей данного тематического исследования оценка будет сосредоточена на понимании уровня риска следующих угроз для обеспечения приоритетности действий: наводнения, оползни, волновые воздействия и тропический циклон."]
[null,"Все выбранные выше угрозы относятся к группе риска «Природные угрозы» в соответствии с классификацией БСРБ ООН для Сендайской рамочной программы."]
[null,"Идентификация соответствующих подгрупп угроз основана на этих классификациях и вкладке «Глоссарий угроз», приводящей к следующему выбору:"]
[null," - Геофизические угрозы"]
[null," - Гидрологические угрозы"]
[null," - Метеорологические угрозы"]
[null," - Климатологическая угроза"]
[null," - Биологические угрозы"]
[null," - Антропогенные угрозы."]
[null,"В результате мы разместимся в отобранных выше областях во вкладке 'Ввод данных об угрозах'."]
[]
[null,"Шаг 3. Определите основные угрозы"]
[null,"См. Столбцы B и C на вкладке «Ввод данных об угрозах»."]
[null,"> В пределах каждой группы / подгруппы угрозы, определенной во 2-м шаге, выберите основные угрозы, относящиеся к оцениваемому местоположению."]
[null,"> Идентификатор автоматически привязан к каждой выбранной основной угрозе."]
[]
[null,"Тематическое исследование:"]
[null,"На основе областей, отобранных для исследования и информации из вкладок «Поля данных» и «Глоссарий угроз», для каждой подгруппы риска выбираются следующие основные угрозы: выпадающее меню в Столбце A:"]
[null," - Гидрологические угрозы: Наводнение; Оползень; Волновое воздействие. Обратите внимание, что для каждой выбранной угрозы должна использоваться одна строка."]
[null,"Метеорологические угрозы: тропический циклон; Тропический циклон. Обратите внимание, что для каждой выбранной угрозы должна использоваться одна строка."]
[]
[null,"Шаг 4. Выберите опасное событие"]
[null,"См. столбец C на вкладке «Ввод данных об угрозах»."]
[null,"> Для каждой выявленной основной угрозе выберите связанные с ней опасности, относящиеся к данному местоположению. Используйте одну строку для одного опасного события."]
[]
[null," Обратите внимание, что инструмент БОР содержит 5 строк для каждой подгруппы угроз, чтобы помочь пользователю ограничить область оценки. Дополнительный блок из 5 строк представлен в нижней части вкладки «Ввод данных об угрозах» для пользователя, если это необходимо."]
[]
[null,"Тематическое исследование:"]
[null,"Выбор опасного события основан на текущем понимании города Маккей, исторических данных об основных рисках в результате прошлых событий, целенаправленных исследований и консультаций с соответствующими заинтересованными сторонами. На основе вкладок «Глоссарий угроз» и «Предположения», для каждой основной угрозы выбраны следующие опасности: выпадающее меню в Столбце C:"]
[null," - Наводнение: Речное наводнение; внезапное наводнение. Обратите внимание, что для каждой выбранной угрозы должна использоваться одна строка."]
[null," - Оползень: Оползень после события"]
[null," - Волновое действие: Прибрежное наводнение"]
[null," -Тропический Циклон: Ветер; Штормовая волна. Обратите внимание, что для каждой выбранной угрозы должна использоваться одна строка."]
[null," - Наводнение: Речное наводнение"]
[null," - Конвективный шторм: Град, Ветер. Обратите внимание, что для каждой выбранной угрозы должна использоваться одна строка."]
[null," - Случайный лесной пожар: Возгорание зарослей / кустов/ пастбищ"]
[null," - Землетрясение: Движение земной поверхности; оползень после происшествия. Обратите внимание, что для каждой выбранной угрозы должна использоваться одна строка."]
[]
[null,"Шаг 5. Оценка воздействия"]
[null,"См. столбец D на вкладке «Ввод данных об угрозах»."]
[null,"> Для каждого выбранного опасного события оцените подверженность оцениваемого местоположения с использованием значений от «Маловероятно» к «Неизбежно» (см. Вкладку «Предположения» для полномасштабного списка)."]
[null,"> Запишите свое обоснование для каждой оценки в столбце N («Комментарии»). Это позволит провести проверку, а также пересмотреть данные в будущем и отследить прогресс."]
[]
[null,"Подверженность относится к людям, имуществу, объектам, системам или другим элементам, находящимся в опасных зонах, которые, таким образом, подвержены потенциальным потерям (БСРБ ООН, терминология, 2009 г.). Сюда входят население, строительный инвентарь, основные объекты и критическая инфраструктура. Критические объекты - это основные физические структуры, технические средства и системы, которые являются социально, экономически или оперативно важными для функционирования общества или сообщества как в обычных условиях, так и в экстремальных условиях чрезвычайной ситуации СРБ ООН, терминология, 2009 г.)."]
[]
[null,"Тематическое исследование:"]
[null,"Основываясь на текущем понимании города Маккей (включая население, строительный фонд, основные объекты и критическую инфраструктуру), приобретение знаний из прошедших событий, целевые исследования и консультации с соответствующими заинтересованными сторонами, подверженность города Маккей к каждой из выявленных опасностей оценивается в колонке D следующим образом:"]
[null," -Наводнение: речное наводнение; внезапное наводнение: подверженность считается чрезвычайно вероятной. Обратите внимание, что для каждой выбранной опасности должна использоваться одна строка."]
[null," -Оползень: Оползень, после события: Воздействие считается вероятным."]
[null," - Волновое воздействие: Прибрежное наводнение: подверженность считается чрезвычайно вероятной."]
[null," -Тропический Циклон: Ветер: Подверженность считается неизбежной. Штормовая волна: подверженность считается чрезвычайно вероятной. Обратите внимание, что для каждого выбранного опасностного события должна использоваться одна строка."]
[null,"Обоснование каждого данного балла должно быть записано в колонке K (т.е. Комментарии и обоснование)."]
[]
[null,"Шаг 6. Оценка уязвимости"]
[null,"См. столбцы E-H на вкладке «Ввод данных об угрозах»."]
[null,"> Для каждого выбранного опастного события оценивайте уязвимость по каждой из четырех категорий, используя значения от «Маловероятно» до «Неизбежно» (см. Вкладку «Предположения» для полномасштабного списка).\n> Четыре категории уязвимости для оценки включают:\nа. Инфраструктура (все виды - дороги, транспорт, рельсы, порты, мосты, жилье и т.д.)\nb. Производственные секторы (в частности, источники средств к существованию / рынок труда)\nс. Основные или базовые услуги (здравоохранение, телекоммуникации, вода, энергия и т.д.)\nd. Человеческие и социальные аспекты (перемещение, безопасность и т. Д.)"]
[null,"> Запишите свое обоснование для каждого оценочного балла в колонке N. Это позволит провести проверку, а также пересмотреть данные в будущем и отследить прогресс."]
[]
[null,"Уязвимость относится к характеристикам и условиям, присущим сообществу, системе или имуществу, повышающие их восприимчивость к разрушительному воздействию угрозы (БСРБ ООН, терминология, 2009 г.). Существует много аспектов уязвимости, связанных с различными физическими, социальными, экономическими и экологическими факторами. Примерами могут быть плохое проектирование и строительство зданий, недостаточная защищенность ценного имущества, низкая информированность и осведомленность общественности, недостаточное осознание официальными структурами риска и важности мер готовности, а также пренебрежение методами рационального природопользования. Уровень уязвимости существенно колеблется в рамках дного сообщества и с течением времени. Это определение описывает уязвимость как характеристику представляющего интерес элемента (сообщества, системы или имущества), вне зависимости от его подверженности угрозе."]
[]
[null,"Тематическое исследование:"]
[null,"Оценив физическую, социальную, экономическую и экологическую уязвимость города Маккей к каждой из выбранных опасностей, соответствующий балл вводится в колонку E-H следующим образом:"]
[null," - Наводнение: речное наводнение: уязвимость по каждой из четырех категорий считается: Инфраструктура: очень вероятно; Производственные секторы: очень вероятно; Основные или базовые услуги: очень вероятно; Человеческие и социальные аспекты: очень вероятно."]
[null," - Наводнение: внезапное наводнение: уязвимость по каждой из четырех категорий считается: Инфраструктура: Чрезвычайно вероятно; Производственные сектора: Чрезвычайно вероятно; Основные или базовые услуги: очень вероятно; Человеческие и социальные аспекты: Чрезвычайно вероятно."]
[null," - Оползень: Оползень после события: уязвимость по каждой из четырех категорий считается: Инфраструктура: вероятно; Производственные сектора: вероятно; Основные или базовые услуги: возможно; Человеческие и социальные аспекты: возможно."]
[null," - Волновое воздействие: прибрежное наводнение: уязвимость по каждой из четырех категорий считается: Инфраструктура: очень вероятно; Производственные сектора: вероятно; Основные или базовые услуги: возможно; Человеческие и социальные аспекты: возможно."]
[null," - Тропический циклон: Ветер: уязвимость по каждой из четырех категорий считается: Инфраструктура: Чрезвычайно вероятно; Производственные сектора: Чрезвычайно вероятно; Основные или базовые услуги: Чрезвычайно вероятно; Человеческие и социальные аспекты: Чрезвычайно вероятно."]
[null," - Тропический циклон: штормовая волна: уязвимость по каждой из четырех категорий считается: Инфраструктура: Чрезвычайно вероятно; Производственные сектора: Чрезвычайно вероятно; Основные или базовые услуги: Неизбежныо; Человеческие и социальные аспекты: Чрезвычайно вероятно."]
[null,"Обоснование каждого оценочного бала должно быть записано в колонке N."]
[]
[null,"Шаг 7. Оцените уровень текущих действий или предпринятых мер"]
[null,"См. столбец J на вкладке «Ввод данных об угрозах»."]
[null,"> Для каждого выбранного опастного события оценивайте уровень текущих действий и мер местоположения в целях устранения и смягчения опастного события, для оценки используйте значения от «Без каких-либо мер» до «Полный контроль над бедствиями» (см. «Предположения» для полномасштабного списка)."]
[null,"> Запишите свое обоснование для каждого оценочного балла в колонке N. Это позволит провести проверку, а также пересмотреть данные в будущем и отследить прогресс."]
[]
[null,"Предпринятые текущие действия или меры: мероприятия и меры по предотвращению и / или устранению существующих и новых рисков бедствий (БСРБ ООН, терминология, 2009 г.). Он показывает текущий уровень устойчивости к бедствиям указанного местоположения."]
[]
[null,"Тематическое исследование:"]
[null,"В городе Маккей в Городском совете имеется ряд планов управления бедствиями и стратегий восстановления после бедствий, предназначенных для управления последствиями конкретных потенциальных бедствий в его границах. Они также имеют местные программы, конкретные инициативы и инструменты для повышения осведомленности и обучения населения и бизнеса в ответ на эти сценарии бедствий. После рассмотрения этой информации, оценки их текущей эффективности, консультаций с соответствующими заинтересованными сторонами и понимания действий и мер, которые еще предстоит предпринять для повышения готовности города, соответствующий балл был введен в колонку H следующим образом:"]
[null," - Наводнение: речное наводнение: уровнем текущих действий и предпринятых мер считается «некоторые меры по месту»."]
[null," - Наводнение: внезапное наводнение: уровнем текущих действий и предпринятых мер считается «некоторые меры по месту»."]
[null," -  Оползень: Оползень после события: Уровнем текущих действий и предпринятых мер считается «мало мер по месту»."]
[null," - Волновые воздействия: Прибрежные наводнения: уровнем текущих действий и предпринятых мер считается «Чрезвычайно мало мер по месту»."]
[null," - Тропический циклон: Ветер: уровнем текущих действий и предпринятых мер считается «разумные меры по месту»."]
[null," - Тропический циклон: штормовая волна: уровнем текущих действий и предпринятых мер считается «очень мало мер по месту»."]
[null,"Обоснование каждого оценочного бала должно быть записано в колонке N."]
[]
[null,"Шаг 8. Анализ результатов"]
[null,"См. столбцы K, L и M на вкладке «Ввод данных об угрозах»."]
[null,">Основываясь на вашей оценке из шагов с 5 по 7, инструмент БОР автоматически заполняет два последних числовых значения: оценка рейтинга вероятности и уровень серьезности; и определяет рейтинг риска для угрозы, основанный на рейтингах, указанных во вкладке «Матрица рисков»."]
[null,"a) Оценка рейтинга вероятности: относится к вероятности события, происходящего по сравнению с другими оцененными событиями в указанном местоположении, в зависимости от воздействия местоположения и уязвимости к этому событию, а также текущих действий и предпринятых мер. Чем ниже оценка рейтинга, тем ниже потенциальная потребность в действии. Чем выше рейтинг, тем выше потенциальная потребность в действии. Обратите внимание, что этот показатель является не статистической мерой вероятности, а оценкой рейтинга, позволяющей определять приоритетность угроз / опасностей по всем оцененным угрозам / опастным событиям."]
[null,"  b) Уровень серьезности: относится к уровню воздействия и последствия, который может иметь опасность для исследуемого местоположения и его сообщества, в пределах от 1 до 100, 1 является наименьшей серьезностью и 100 наивысшей."]
[null,"  c) Рейтинг риска: относится к распределению рейтинга риска от очень низкого до катастрофического, согласованного с «Матрицей рисков», которая зависит от рассчитанного рейтинга вероятности и степени тяжести."]
[]
[null,"Заметки:"]
[null," - (Отрицательный) рейтинг серьезности указывает, что вы находитесь за пределами порога материального риска для вклада инвестиций в ответ."]
[null," - Получение рейтинга серьезности нулевого или (отрицательного) может указывать на нереалистичный подсчет уровня текущих действий и мер для реагирования на конкретную опасность."]
[null," - Вы должны заполнить все столбцы ввода данных по связанной с ними опасности в группе угроз, чтобы получить оценку рейтинга вероятности и рейтинг риска."]
[]
[null,"Отчетность"]
[null,"> Обзор данных для каждой подгруппы угроз будет автоматически заполнен на вкладке «Данные», чтобы обеспечить индивидуальный анализ результатов. Эта вкладка содержит сводку критериев, полученных в результате оценки, которая будет разблокирована для использования пользователем по мере необходимости.\n> Инструмент БОР также предоставляет два комбинированных отчета на двух последовательных вкладках: отчет о рисках и отчет об уязвимости.\nа) Отчет о рисках отображает вероятность бедствия и серьезность в первой таблице по сравнению со всеми оцененными угрозами / опасными событиями. Во второй таблице приведены данные о воздействии стихийных бедствий и уязвимости по сравнению со всеми оцененными угрозами / опасными событиями.\nb) В отчете об уязвимости отображаются отдельно четыре Категории воздействия уязвимостей и рейтинг уязвимостей.\nЭти отчеты предоставляют визуальное представление или «Панель мониторинга» результатов оценки, помогая вам в анализе результатов вашего упражнения и в разработке потенциальных текущих и будущих сценариев риска.\nПримечание: Размер «точек» в таблицах в каждом отчете соответствует числовому значению рейтинга вероятности (отчет о рисках) и уровня серьезности (отчеты о рисках и отчеты об уязвимости)."]
[]
[null,"Тематическое исследование:"]
[null,"Основываясь на определенных выше оценках, инструмент БОР предоставляет следующие оценки рейтинга вероятности, уровни серьезности и рейтинги риска на одно опасное событие. Они представлены на вкладке «Оценка данных», что позволяет оценить сравнение с другими основными угрозами."]
[null," - Наводнение: речное наводнение: общий рейтинг уязвимости: 80 из 100; Оценка рейтинга вероятности: 8 из 100; Уровень серьезности: 40 из 100; Рейтинг риска: M6"]
[null," - Наводнение: внезапное наводнение: общий рейтинг уязвимости: 88 из 100; Оценка рейтинга вероятности: 8 из 100; уровень серьезности: 40 из 100; Рейтинг риска: M6"]
[null," - Оползень: Оползень после события: общий рейтинг уязвимости: 58 из 100; Оценка рейтинга вероятности: 5 из 100; уровень серьезности: 20 из 100; Рейтинг риска: L4"]
[null," - Волновые воздействия: Прибрежные наводнения: общий рейтинг уязвимости: 88 из 100; Оценка рейтинга вероятности: 8 из 100; уровень серьезности: 70 из 100; Рейтинг риска: H7"]
[null," - Тропический циклон: Ветер: общий рейтинг уязвимости: 90 из 100; Оценка рейтинга вероятности: 9 из 100; уровень серьезности: 40 из 100; Рейтинг риска: H7"]
[null," - Тропический циклон: штормовая волна: общий рейтинг уязвимости: 93 из 100; Оценка рейтинга вероятности: 8 из 100; уровень серьезности: 60 из 100; Рейтинг риска: H7"]
[]
[]
[null,"Матрица сценариев рисков"]
[null,"Инструмент БОР поможет вам в разработке и понимании текущих и будущих сценариев риска на основе результатов вашей самооценки. Сценарий риска - это всесторонняя оценка серьезности и вероятности угрозы и ее общего влияния, основанная на воздействии и уязвимости города к потерям, ущербу или другим неблагоприятным последствиям в результате бедствия. Идентификация сценариевочень важна для понимания уровня риска каждого потенциального бедствия и его воздействия на указанное местоположение. Это позволит городам установить базовое измерение их нынешнего уровня устойчивости к бедствиям, определить приоритеты для инвестиций и действий и отслеживать их прогресс в улучшении их устойчивости к бедствиям с течением времени."]
[null,"Инструмент БОР может применяться для разработки различных сценариев риска, основанных на:"]
[null," 1) Одной основной угрозе в пределах выбранной группы угроз. Например, землетрясение (основная угроза в группе геофизических угроз) в прибрежной окружающей среде, вызывающее движение земли, за которым следует цунами."]
[null," 2) Составном риске в результате сочетания двух или более основных угроз в одной и той же группе угроз. Например, сценарий риска, возникающий в результате сочетания события засухи (основная угроза в группе климатологической угрозы) и события пожара (основная угроза в группе климатологической угрозы), вызывающего лесные и кустарниковые пожары (опасное событие), усиливающиеся в сухих условиях."]
[null," 3) Сочетание основных угроз для разных групп угроз. Например, сценарий риска, в котором наблюдается вулканическая активность (основная угроза в группе геофизических угроз), и оползень (основная угроза в группе гидрологических угроз), вызывающие движение земли, поток лавы и почвы (опасное событие), у которых присутствует общий эффект в городской / сельской среде исследования."]
[null,"Заметки:"]
[null,"  - В пределах групп угроз совокупная серьезность, представляющая ряд основных угроз и связанных с ними опасных событий, может быть оценена при помощи итогов, рассчитанных и отображенных во вкладке «Критерии оценки и групповые планы». Например, в текущем примере ячейка H9 во вкладке «Критерии оценки и групповые планы» отображает общий показатель серьезности через в группу угроз, равный 215. Этот общий балл по шкале серьезности может быть использован для быстрой идентификации группы угроз с наиболее серьезной комбинацией угроз / опасных событий в целях определения приоритетности мер реагирования."]
[]
[null,"Уровень риска для каждого идентифицированного сценария может быть определен с использованием матрицы рисков, представленной во вкладке «Матрица рисков». Каждому сценарию присваивается приоритет, основанный на определенном уровне риска. Это поможет вам определить риски, требующие приоритетных действий, и те, которые требуют постоянного мониторинга и обзора. Существует также таблица «Справочник по вероятности», представленная во вкладке «Матрица рисков». Данный справочник предназначен для того, чтобы помочь пользователю понять вероятность и определения, соответствующие категориям рейтинга."]
[]
[null,"Тематическое исследование:"]
[null,"Ряд сценариев риска может быть разработан в результате оценки города Маккей. Как объяснялось выше, сценарии могут быть построены в каждой группе или между группами угроз, основных угроз, опасных событий или их комбинацией. В этом случае было разработано три потенциальных сценария:"]
[]
[null,"1) Сценарий № 1: речное наводнение."]
[null,"2) Сценарий № 2: конвективный шторм с градом и разрушительными ветрами."]
[null,"3) Сценарий № 3: землетрясение, вызывающее наземное движение, сопровождаемое оползнем и речным наводнением."]
[]
[null,"Ключевые данные и формулы для использования в расчетах сценариев:"]
[null,"  - Речное наводнение имеет рейтинг вероятности 8.5 и уровень серьезности 65.0."]
[null,"  - Конвективный шторм - рейтинг вероятности 4.0 (с градом) и 7.0 (с ветром) и уровень серьезности 5.0 (с градом) и 40.0 (с ветром)."]
[null,"  - Землетрясение, вызывающее движение земли, имеет рейтинг вероятности 6,5 и уровень серьезности 45.0."]
[null,"  - Землетрясение, вызывающее оползень после события имеет рейтинг вероятности 7,5 и уровень серьезности 60,0."]
[]
[null,"  - Средний рейтинг вероятности (РВ): РВ1 + РВ2 + РВ3, деленный на общее количество оцененных РВ"]
[null,"  - Средний уровень серьезности (СУР): (РВ1 x УС1) + (РВ2 x УС2), деленный на 10, где УС - уровень серьезности для каждого оцениваемого опасного события."]
[]
[null,"Чтобы определить уровень риска для каждого сценария, мы ссылаемся на предоставленную Матрицу рисков."]
[]
[null,"1) Сценарий №1:"]
[null,"     - Основываясь на полученной оценке рейтинга вероятности, т.е. 8.5, рейтинг вероятности сценария, основанный на подверженности и уязвимости, по сравнению с другими потенциальными сценариями в городе Маккей классифицируется как «Очень высокий»."]
[null,"     - Основываясь на полученном уровне серьезности, то есть 65,0, серьезность события классифицируется как «Серьезный»."]
[null,"     - As a result, a final risk level of \"H8\" is obtained."]
[null,"2) Сценарий №2:"]
[null,"     - Поскольку этот сценарий основан на двух опасных событиях в пределах одной подгруппы угроз, средний балл рейтинга вероятности рассчитывается с использованием оценки рейтинга вероятности  для каждой опасности. В этом случае средний рейтинг вероятности равен 5.5 (т.е. 4.0 + 7.0 / 2), поэтому рейтинг вероятности сценария на основе подверженности и уязвимости по сравнению с другими потенциальными сценариями в городе Маккей классифицируется как «умеренный»."]
[null,"     - Средний уровень серьезности рассчитывается с использованием оценки уровня серьезности каждого опасного события, взвешенной по оценке рейтинга вероятности каждого опасного события. Уровень серьезности сценария равна 30 (т.е. 4.0 x 5.0 + 7.0 x 40.0 / 10), поэтому серьезность сценария классифицируется как «умеренная»."]
[null,"     - В результате получается итоговый уровень риска «M5»."]
[null,"3) Сценарий №3:"]
[null,"     - Поскольку этот сценарий основан на трех опаснных событиях, средний балл рейтинга вероятности рассчитывается с использованием оценки рейтинга вероятности для каждого опасного события. В этом случае средний рейтинг вероятности равен 7.5 (т.е. 6.5 + 7.5 + 8.5 / 3), поэтому рейтинг вероятности сценария на основе подверженности и уязвимости по сравнению с другими потенциальными сценариями в городе Маккей классифицируется как «Высокий»."]
[null,"     - Поскольку этот сценарий основан на опасных событиях из разных подгрупп угроз (т.е. два в подгруппе геофизических угроз и один в подгруппе идрологических угроз), средний уровень серьезности рассчитывается следующим образом: сначала средний уровень серьезности для опасного события одной подгруппы (т.е. наземное движение и оползень) рассчитывается с использованием оценки уровня серьезности каждого опасного события, взвешенной по оценке рейтинга вероятности каждого риска (74,25, т.е. [6.5 x 45.0] + [7.5 x 60.0] / 10); затем, уровень серьезности третьей опасности (наводнение) умножается на ее оценку рейтинга вероятности (55,25, т.е. [8,5 х 65,0] / 10); и наконец, получается среднее значение двух расчетных оценок (64,75, т.е. [74,25 + 55,25] / 2). Поэтому средний уровень серьезности сценария равен 64,75, поэтому серьезность сценария классифицируется как «высокий»."]
[null,"     - В результате получается итоговый уровень риска «H7»."]
[]
[null,"Далее эти сценарии могут быть расставлены по приоритетам на основе их уровня риска, то есть сценарий № 1> сценарий № 3> сценарий № 2. Это поможет городу Маккей разработать план действий соответственно."]
[]
["Конец"]

{"sheet":"Глоссарий угроз","index":2,"n_rows":94,"n_cols":16384,"rows_kept":94,"cut":false,"hidden":false,"merged":[[8,1,12,1]]}
[{"$f":"MdlTle","v":"Инструмент быстрой оценки риска (БОР)"}]
[{"$f":"MID(CELL(\"filename\",A1),FIND(\"]\",CELL(\"filename\",A1))+1,255)","v":"Глоссарий угроз"}]
[]
[]
[null,"Term","Definition"]
[null,"Взрыв в воздухе","Взрыв кометы или метеорного тела в атмосфере земли без удара по земле."]
[null,"Инцидент с животными","Человеческие встречи с опасными или экзотическими животными как в городской, так и в сельской местности."]
[null,"Падение пепла","Мелкий (менее 4 мм в диаметре) неуплотненный вулканический мусор, унесенный в атмосферу во время извержения; Может оставаться в воздухе в течение длительных периодов времени и перемещаться на значительное расстояние от источника."]
[null,"Лавина","Большая масса разрыхленного земного материала, снега или льда, который скользит, течет или падает быстро вниз по склону горы под действием силы тяжести."]
[]
[null,null,"• Снежная лавина: быстрое движение по склону смеси снега и льда."]
[]
[null,null,"• Обломочная лавина:  внезапное и очень быстрое движение по склону несортированной массы из скал и почвы. Есть два общих типа обломочных лавин - холодная обломочная лавина обычно возникает из-за неустойчивого склона, внезапно разрушающегося, тогда как горячая обломочная лавина является следствием вулканической активности, ведущей к нестабильности и коллапсу склона."]
[null,"Авиакатастрофа ","Необходимо обновить"]
[null,"Бактериальное заболевание","Необычное увеличение количества инцидентов, вызванных  воздействием бактерий либо путем контакта с кожей,либо с приемом внутрь, либо при вдыхании. Примеры включают сальмонеллу, Метициллин-резистентный стафилококк (MRSA) и холеру, помимо прочего."]
[null,"Биологическая угроза","Угроза, вызванная воздействием живых организмов и их токсичных веществ (например, яда, плесени) или передаваемых переносчиками болезней, которые они могут нести. Примерами являются ядовитая дикая природа и насекомые, ядовитые растения и комары, несущие болезнетворные агенты, такие как паразиты, бактерии или вирусы (например, малярия).\n"]
[null,"Выброс химикатов","Необходимо обновить"]
[null,"Климатологическая угроза","Угроза, вызванная долгоживущими, мезо- и макромасштабными атмосферными процессами, варьирующимися от внутрисезонной до многодекадальной изменчивости климата."]
[null,"Береговая эрозия","Временная или постоянная потеря осадочных отложений или сухопутных запасов в прибрежных краях из-за воздействия волн, ветров, приливов или антропогенной активности."]
[null,"Прибрежное наводнение","Уровень воды выше нормы вдоль побережья, вызванный приливами или грозами, которые приводят к затоплению, которое может длиться от нескольких дней до нескольких недель."]
[null,"Холодная волна (холодный атмосферный фронт)","Период аномально холодной погоды. Как правило, холодная волна длится два или более дней и может усугубляться сильными ветрами. Точные температурные критерии того, что составляет холодную волну, варьируются местоположением."]
[null,"Конвективный шторм","Тип метеорологической угрозы, возникающей при нагревании воздуха и наличии влажных и неустойчивых воздушных масс. Конвективные штормы колеблются от локализованных гроз (с сильным дождем и / или градом, молнией, сильным ветром, торнадо) до мезомасштабных многодневных событий."]
[null,"Селевой поток, поток грязи, обвал","Виды оползней, возникающих при сильном дожде или быстром снежном / ледяном таянии, направляющие большое количество растительности, грязи или скал вниз по склону гравитационными силами."]
[null,"Сильный прямой штормовой ветер","Широко распространенные и обычно быстро движущиеся бури, связанные с конвекцией / конвективным штормом. Сильный прямой штормовой ветер включает нисходящий поток воздуха и прямолинейные ветры. Ущерб от него часто путают с ущербом от торнадо."]
[null,"Эпидемия (болезнь)","Необычное, часто внезапное увеличение числа случаев инфекционного заболевания, которое уже существовало в этом регионе (например, грипп, E. coli), или появление инфекционного заболевания, ранее отсутствующего в регионе (например, чума, полиомиели)."]
[null,"Засуха","Длительный период необычно низкого количества осадков, который вызывает нехватку воды для людей, животных и растений. Засуха отличается от большинства других опасностей тем, что она развивается медленно, иногда даже в течение многих лет, и ее начало обычно трудно обнаружить. Засуха не является исключительно физическим явлением, поскольку ее воздействие может быть усугублено человеческой деятельностью и потребностями в водоснабжении. Поэтому засуха часто определяется как концептуально, так и оперативно. Оперативные определения засухи, означающие степень сокращения осадков, которая представляет собой засуху, варьируются в зависимости от региона, климата и окружающей среды."]
[null,"Землетрясение","Внезапное движение блока земной коры вдоль геологического разлома и связанного с ним земного колебания."]
[null,"Энергетические частицы","Выбросы от штормов солнечной излучения, состоящие из кусков материи (например, протонов и других заряженных частиц), движущихся с очень высокой скоростью. Магнитосфера и атмосфера блокируют (солнечные) энергетические частицы (SEP) от проникновения их в людей на Земле, но они наносят ущерб электронике космических технологий (таких как спутники) и представляют собой радиационную опасность для жизни в космосе и летательных аппаратов, летающих на больших высотах."]
[null,"Экспансивная почва","Земляные материалы, особенно глины, которые при смачивании, замораживании или сушке будут попеременно расширяться или сжиматься, вызывая повреждение фундаментов зданий и других сооружений. Усадка обычно называется высушиванием."]
[null,"Внеземная угроза","Угроза, вызванная астероидами, метеороидами и кометами, когда они проходят около земли, попадают в атмосферу Земли и / или ударяется о Землю, а также изменяется в межпланетных условиях, которые влияют на магнитосферу Земли, ионосферу и термосферу."]
[null,"Внетропический циклон","Тип циклонической системы низкого давления в средней и высокой широтах (также называемый циклоном средней широты), который в основном получает свою энергию от горизонтальных температурных контрастов (фронтов) в атмосфере. Когда это связано с холодными фронтами, внетропические циклоны могут быть особенно опасными (например, европейская зима / буря, Норд-ост)."]
[null,"Экстремальная температура","Общий термин для температурных изменений выше (экстремальная температура) или ниже (экстремально холодных) нормальных условий."]
[null,"Пожар","Необходимо обновить"]
[null,"Пожар после землетрясения","Городские пожары, вызванные землетрясениями. Особо уязвимые районы включают плотно располагаемые, деревянные здания, которые доминируют в местной архитектуре, а так же места, где землетрясение повредило или разрывало водопроводные и газовые трубопроводы. Небольшие местные пожары могут объединиться в пожары, разрушающие многие городские кварталы."]
[null,"Внезапное наводнение","Сильный или чрезмерный ливень за короткий период времени, которй создает моментальный сток, создавая условия затопления в течение нескольких минут или нескольких часов во время или после дождя."]
[null,"Наводнение","Общий термин для перетока воды из речного русла на обычно сухую землю в пойме (речное наводнение), выше нормального уровня вдоль побережья и в озерах или водохранилищах (прибрежное наводнение), а также запруживание водой места где шел деждь или возле него на или вблизи (внезапное наводнение)."]
[null,"Туман","Капли воды, которые висят в воздухе вблизи поверхности Земли. Туман - это просто облако, которое находится в контакте с землей."]
[null,"Лесной пожар","Тип пожара в лесистой местности."]
[null,"Заморозки","Заморозки являются следствием радиационного охлаждения, что приводит к образованию тонких кристаллов льда на земле или других поверхностях в виде игл, перьев, чешуек или вентиляторов. Мороз возникает, когда температура поверхностей ниже нуля, а водяной пар от влажного воздуха образует твердые отложения на холодной поверхности. Заморозки происходят, когда температура воздуха находится на уровне (32˚F / 0˚C) или ниже в широком масштабе в течение климатологически значимого периода времени. Использование термина обычно ограничивается адвективными ситуациями или случаями, когда ветер или другие условия предотвращают заморозки. Мороз и заморозки особенно вредны в течение вегетационного периода."]
[null,"Грибковая болезнь","Воздействие грибков либо путем контакта с кожей, либо с приемом внутрь, либо при вдыхании спор, что приводит к необычному увеличению числа инцидентов. Примерами являются грибковая пневмония, грибковый менингит и т.д."]
[null,"Геомагнитная буря","Тип внеземной угрозы, вызванной солнечными ветрами, которые временно нарушают магнитосферу Земли. Геомагнитные бури могут нарушить работу электрических сетей, космических аппаратов и спутниковой связи."]
[null,"Геофизическая угроза","Угроза, возникающая из твердой среды. Этот термин используется взаимозаменяемо с термином «геологическая угроза»."]
[null,"Прорыв ледниковых озер","Наводнение, которое происходит, когда вода, запруженная ледником или мореной, внезапно освобождается. Ледниковые озера могут находиться в передней части ледника (маргинальное озеро) или ниже ледяного покрова (подледное озеро)."]
[null,"Движение земной поверхности","Поверхностное смещение почвенных материалов колебания земли, вызванного землетрясениями или извержениями вулкана."]
[null,"Град","Твердые осадки в виде неправильных гранул или шаров льда диаметром более 5 мм."]
[null,"Аномальная жара","Период аномально жаркой и / или необычно влажной погоды. Обычно аномальная жара длится два или более дней. Точные температурные критерии для того, что составляет аномальную жару, зависят от местоположения."]
[null,"Гидрологическая угроза","Угроза, вызванная возникновением, перемещением и распределением поверхностных и подземных пресноводных и соленых вод."]
[null,"Наводнение от Ледового затора","Накопление плавающего льда, ограничивающего или блокирующего поток и дренаж реки. Ледяные заторы, как правило, развиваются вблизи речных изгибов и препятствий (например, мостов)."]
[null,"Соударение","Тип внеземной угрозы, вызванный столкновением Земли с метеороидом, астероидом или кометами."]
[null,"Промышленная катастрофа","Необходимо обновить"]
[null,"Промышленный взрыв","Необходимо обновить"]
[null,"Заражение насекомыми-паразитами","Распространяющийся приток, роение и / или вылупление насекомых, затрагивающих людей, животных, зерновые культуры и скоропортящиеся товары. Примерами являются саранча и африканские пчелы."]
[null,"Лахар","Горячая или холодная смесь земляного материала, протекающего по склону вулкана либо во время вулканических извержений, либо между ними."]
[null,"Оползень после землетрясения","Независимо от наличия воды, массовое движение также может быть вызвано землетрясениями."]
[null,"Поток лавы","Выброшенная магма, которая движется как жидкая масса вниз с вулкана во время извержения."]
[null,"Молния","Высоковольтный, видимый электрический разряд, создаваемый грозой, сопровождаемый звуком грома."]
[null,"Ожижение","Преобразование (частично) насыщенной водой почвы из твердого состояния в жидкое, вызванное землетрясением. Сжижение уменьшает прочность и жесткость почвы, вызывая разрушение зданий."]
[null,"Движение масс","Любое движение вниз по склону горных пород."]
[null,"Метеорологическая угроза","Угроза, вызванная скоротечным, микро-мезо- масштабным погодным катаклизмом и атмосферными условиями, которая длится от нескольких минут до нескольких дней."]
[null,"Рудничная авария","Необходимо обновить"]
[null,"Судоходное происшествие","Необходимо обновить"]
[null,"Утечка нефти","Необходимо обновить"]
[null,"Паразитарная болезнь ","Воздействие паразита - организм, живущий на хозяине или в нем - вызывает необычное увеличение количества случаев. Воздействие паразитов происходит главным образом через загрязненную воду, пищу или контакт с насекомыми, животными (зоонозными), домашними животными и т.д. Примерами являются малярия, болезнь Шагаса, лямблиоз и трихинеллез."]
[null,"Отключение электроэнергии","Необходимо обновить"]
[null,"Прионная болезнь ","Тип биологической угрозы, вызванной прионными белками. Прионные заболевания или трансмиссивные губчатые энцефалопатии (TSE) представляют собой семейство редких прогрессирующих нейродегенеративных расстройств, которые поражают как людей, так и животных, характеризующихся длительными периодами инкубации и нейронной потерей. Примерами являются губчатая энцефалопатия крупного рогатого скота (BSE), болезнь Крейтцфельдта-Якоба (CJD), Куру и т.д."]
[null,"Пирокластический поток","Чрезвычайно горячие газы, зола и другие материалы более 1000 градусов Цельсия, которые быстро текут по склонам вулканической горы (более 700 км / ч) во время извержения."]
[null,"Радиационное загрязнение (например, ядерный инцидент","Необходимо обновить"]
[null,"Нарушение радиосвязи","Вызывается рентгеновскими излучениями Солнца, попадающими в атмосферу Земли и вызывающими нарушения в ионосфере, такими как заклинивание высоких и / или низкочастотных радиосигналов. Это касается спутниковой радиосвязи и глобальных систем позиционирования (GPS)."]
[null,"Железнодорожная авария","Необходимо обновить"]
[null,"Дождь","Водный пар конденсируется в атмосфере с образованием капель воды, которые падают на Землю."]
[null,"Речное наводнение","Тип затопления, возникающего в результате перетока воды из потока или речного канала на обычно сухую землю в пойме, прилегающей к каналу."]
[null,"Автокатастрофа","Необходимо обновить"]
[null,"Неконтролируемая волна","Необычный одиночный гребень океанской волны далеко в море, который намного выше и / или круче, чем другие волны в преобладающей системе морских волн."]
[null,"Песчаная буря, Пылевая буря","Сильные ветры несут частицы песка на высоте, но обычно ограничиваются менее чем 50 футами (15 м), особенно распространены в засушливых и полузасушливых средах. Пылевая буря также характеризуется сильными ветрами, но несет частицы пыли меньше песка на обширной территории."]
[null,"Сейш","Стоячая волна воды в большом полу- или полностью -закрытом водоеме (озерах или заливах), создаваемом сильными ветрами и / или большим барометрическим градиентом давления."]
[null,"Ударная взрывная волна","Ударная взрывная волна переносит энергию от волнения через среду (твердое тело, жидкость, газ), подобную волне, хотя она движется с гораздо большей скоростью. Это может быть тип внеземной опасности, вызванной взрывом (воздушным буршем) или воздействием метеоритов, которые генерируют энергетические ударные волны, способные разрушить стекло, стены и т.д."]
[null,"Обрушение грунта","Разрушение поверхности суши из-за растворения в воде горных пород, таких как известняк или карбонатная порода."]
[null,"Снег, лед","Осадки в виде кристаллов льда / снежинок или ледяных гранул (мокрый снег), образующихся непосредственно из замерзающего водяного пара в воздухе. Лед накапливается, когда дождь попадает на холодную поверхность и замерзает."]
[null,"Космическая катастрофа","Необходимо обновить"]
[null,"Космическая погода","Общий термин для внеземных погодных условий, обусловленных солнечными извержениями, такими как геомагнитные бури, радиопомехи и солнечные энергетические частицы."]
[null,"Штормовая волна","Аномальное повышение уровня моря, вызванного тропическим циклоном или другими интенсивными штормами."]
[null,"Обрушение здания","Необходимо обновить"]
[null,"Обвал","Обвал относится к опусканию грунта из-за удаления подземных вод, добычи ископаемых, растворения известняка (например, карст, провал грунта), добычи природного газа и землетрясений."]
[null,"Торнадо","Сильно вращающаяся колонна воздуха, которая достигает земли или открытой воды (водяной выпад)."]
[null,"Тропический циклон\n","Тропический циклон происходит из-за тропических или субтропических вод. Он характеризуется в основном теплым, нелокальным циклоном синоптического масштаба с центром низкого давления, спиральными полосами дождя и сильными ветрами. В зависимости от их местоположения тропические циклоны называются ураганами (Атлантический, Северо-Восточный Тихий океан), тайфунами (северо-западная часть Тихого океана) или циклонами (Южный Тихий океан и Индийский океан)."]
[null,"Цунами","Серия волн (с длинными волнами при движении по глубокому океану), которые возникают при перемещении массивных количеств воды через подводные землетрясения, извержения вулканов или оползни. Волны цунами движутся с очень высокой скоростью через океан, но по мере того, как они начинают достигать мелкой воды, они замедляются, и волна становится более крутой."]
[null,"Вулканическая активность\n","Тип вулканического явления вблизи отверстия на поверхности Земли, включая вулканические извержения лавы, золы, горячего пара, газа и пирокластического материала."]
[null,"Волновое воздействие","Ветровые поверхностные волны, которые могут возникать на поверхности любого открытого водоема, такие как океаны, реки и озера и т. д. Размер волны зависит от силы ветра и пройденного расстояния (область разгона)."]
[null,"Случайный лесной пожар","Любое неконтролируемое и не установленное возгорание или сжигание растений в естественных условиях, таких как лес, поля, заросли или тундра, которое потребляет природное топливо и распространяется в зависимости от условий окружающей среды (например, ветра, топографии). Лесные пожары могут быть вызваны молнией или действиями человека."]
[null,"Ветер","Различия в давлении воздуха приводят к горизонтальному движению воздуха. Чем больше разница в давлении, тем сильнее ветер. Ветер движется от высокого давления к низкому давлению."]
[null,"Метель, снежная буря","Система низкого давления в зимние месяцы со значительными скоплениями снега, дождя со снегом, мокрым снегом или льдом. Метель - суровая снежная буря с ветрами, превышающими 35 миль в час (56 км / ч) в течение трех или более часов."]
[]
[]
["Конец",null,null,null,null,null,null,null,null,null,null,null,"End","End","End","End","End","End","End","End","End","End","End","End","End","End","End","End","End","End","End","End","End","End","End","End","End","End","End","End","End","End","End","End","End","End","End","End","End","End","End","End","End","End","End","End","End","End","End","End","End","End","End","End","End","End","End","End","End","End","End","End","End","End","End","End","End","End","End","End","End","End","End","End","End","End","End","End","End","End","End","End","End","End","End","End","End","End","End","End","End","End","End","End","End","End","End","End","End","End","End","End","End","End","End","End","End","End","End","End","End","End","End","End","End","End","End","End","End","End","End","End","End","End","End","End","End","End","End","End","End","End","End","End","End","End","End","End","End","End","End","End","End","End","End","End","End","End","End","End","End","End","End","End","End","End","End","End","End","End","End","End","End","End","End","End","End","End","End","End","End","End","End","End","End","End","End","End","End","End","End","End","End","End","End","End","End","End","End","End","End","End","End","End","End","End","End","End","End","End","End","End","End","End","End","End","End","End","End","End","End","End","End","End","End","End","End","End","End","End","End","End","End","End","End","End","End","End","End","End","End","End","End","End","End","End","End","End","End","End","End","End","End","End","End","End","End","End","End","End","End","End","End","End","End","End","End","End","End","End","End","End","End","End","End","End","End","End","End","End","End","End","End","End","End","End","End","End","End","End","End","End","End","End","End","End","End","End","End","End","End","End","End","End","End","End","End","End","End","End","End","End","End","End","End","End","End","End","End","End","End","End","End","End","End","End","End","End","End","End","End","End","End","End","End","End","End","End","End","End","End","End","End","End","End","End","End","End","End","End","End","End","End","End","End","End","End","End","End","End","End","End","End","End","End","End","End","End","End","End","End","End","End","End","End","End","End","End","End","End","End","End","End","End","End","End","End","End","End","End","End","End","End","End","End","End","End","End","End","End","End","End","End","End","End","End","End","End","End","End","End","End","End","End","End","End","End","End","End","End","End","End","End","End","End","End","End","End","End","End","End","End","End","End","End","End","End","End","End","End","End","End","End","End","End","End","End","End","End","End","End","End","End","End","End","End","End","End","End","End","End","End","End","End","End","End","End","End","End","End","End","End","End","End","End","End","End","End","End","End","End","End","End","End","End","End","End","End","End","End","End","End","End","End","End","End","End","End","End","End","End","End","End","End","End","End","End","End","End","End","End","End","End","End","End","End","End","End","End","End","End","End","End","End","End","End","End","End","End","End","End","End","End","End","End","End","End","End","End","End","End","End","End","End","End","End","End","End","End","End","End","End","End","End","End","End","End","End","End","End","End","End","End","End","End","End","End","End","End","End","End","End","End","End","End","End","End","End","End","End","End","End","End","End","End","End","End","End","End","End","End","End","End","End","End","End","End","End","End","End","End","End","End","End","End","End","End","End","End","End","End","End","End","End","End","End","End","End","End","End","End","End","End","End","End","End","End","End","End","End","End","End","End","End","End","End","End","End","End","End","End","End","End","End","End","End","End","End","End","End","End","End","End","End","End","End","End","End","End","End","End","End","End","End","End","End","End","End","End","End","End","End","End","End","End","End","End","End","End","End","End","End","End","End","End","End","End","End","End","End","End","End","End","End","End","End","End","End","End","End","End","End","End","End","End","End","End","End","End","End","End","End","End","End","End","End","End","End","End","End","End","End","End","End","End","End","End","End","End","End","End","End","End","End","End","End","End","End","End","End","End","End","End","End","End","End","End","End","End","End","End","End","End","End","End","End","End","End","End","End","End","End","End","End","End","End","End","End","End","End","End","End","End","End","End","End","End","End","End","End","End","End","End","End","End","End","End","End","End","End","End","End","End","End","End","End","End","End","End","End","End","End","End","End","End","End","End","End","End","End","End","End","End","End","End","End","End","End","End","End","End","End","End","End","End","End","End","End","End","End","End","End","End","End","End","End","End","End","End","End","End","End","End","End","End","End","End","End","End","End","End","End","End","End","End","End","End","End","End","End","End","End","End","End","End","End","End","End","End","End","End","End","End","End","End","End","End","End","End","End","End","End","End","End","End","End","End","End","End","End","End","End","End","End","End","End","End","End","End","End","End","End","End","End","End","End","End","End","End","End","End","End","End","End","End","End","End","End","End","End","End","End","End","End","End","End","End","End","End","End","End","End","End","End","End","End","End","End","End","End","End","End","End","End","End","End","End","End","End","End","End","End","End","End","End","End","End","End","End","End","End","End","End","End","End","End","End","End","End","End","End","End","End","End","End","End","End","End","End","End","End","End","End","End","End","End","End","End","End","End","End","End","End","End","End","End","End","End","End","End","End","End","End","End","End","End","End","End","End","End","End","End","End","End","End","End","End","End","End","End","End","End","End","End","End","End","End","End","End","End","End","End","End","End","End","End","End","End","End","End","End","End","End","End","End","End","End","End","End","End","End","End","End","End","End","End","End","End","End","End","End","End","End","End","End","End","End","End","End","End","End","End","End","End","End","End","End","End","End","End","End","End","End","End","End","End","End","End","End","End","End","End","End","End","End","End","End","End","End","End","End","End","End","End","End","End","End","End","End","End","End","End","End","End","End","End","End","End","End","End","End","End","End","End","End","End","End","End","End","End","End","End","End","End","End","End","End","End","End","End","End","End","End","End","End","End","End","End","End","End","End","End","End","End","End","End","End","End","End","End","End","End","End","End","End","End","End","End","End","End","End","End","End","End","End","End","End","End","End","End","End","End","End","End","End","End","End","End","End","End","End","End","End","End","End","End","End","End","End","End","End","End","End","End","End","End","End","End","End","End","End","End","End","End","End","End","End","End","End","End","End","End","End","End","End","End","End","End","End","End","End","End","End","End","End","End","End","End","End","End","End","End","End","End","End","End","End","End","End","End","End","End","End","End","End","End","End","End","End","End","End","End","End","End","End","End","End","End","End","End","End","End","End","End","End","End","End","End","End","End","End","End","End","End","End","End","End","End","End","End","End","End","End","End","End","End","End","End","End","End","End","End","End","End","End","End","End","End","End","End","End","End","End","End","End","End","End","End","End","End","End","End","End","End","End","End","End","End","End","End","End","End","End","End","End","End","End","End","End","End","End","End","End","End","End","End","End","End","End","End","End","End","End","End","End","End","End","End","End","End","End","End","End","End","End","End","End","End","End","End","End","End","End","End","End","End","End","End","End","End","End","End","End","End","End","End","End","End","End","End","End","End","End","End","End","End","End","End","End","End","End","End","End","End","End","End","End","End","End","End","End","End","End","End","End","End","End","End","End","End","End","End","End","End","End","End","End","End","End","End","End","End","End","End","End","End","End","End","End","End","End","End","End","End","End","End","End","End","End","End","End","End","End","End","End","End","End","End","End","End","End","End","End","End","End","End","End","End","End","End","End","End","End","End","End","End","End","End","End","End","End","End","End","End","End","End","End","End","End","End","End","End","End","End","End","End","End","End","End","End","End","End","End","End","End","End","End","End","End","End","End","End","End","End","End","End","End","End","End","End","End","End","End","End","End","End","End","End","End","End","End","End","End","End","End","End","End","End","End","End","End","End","End","End","End","End","End","End","End","End","End","End","End","End","End","End","End","End","End","End","End","End","End","End","End","End","End","End","End","End","End","End","End","End","End","End","End","End","End","End","End","End","End","End","End","End","End","End","End","End","End","End","End","End","End","End","End","End","End","End","End","End","End","End","End","End","End","End","End","End","End","End","End","End","End","End","End","End","End","End","End","End","End","End","End","End","End","End","End","End","End","End","End","End","End","End","End","End","End","End","End","End","End","End","End","End","End","End","End","End","End","End","End","End","End","End","End","End","End","End","End","End","End","End","End","End","End","End","End","End","End","End","End","End","End","End","End","End","End","End","End","End","End","End","End","End","End","End","End","End","End","End","End","End","End","End","End","End","End","End","End","End","End","End","End","End","End","End","End","End","End","End","End","End","End","End","End","End","End","End","End","End","End","End","End","End","End","End","End","End","End","End","End","End","End","End","End","End","End","End","End","End","End","End","End","End","End","End","End","End","End","End","End","End","End","End","End","End","End","End","End","End","End","End","End","End","End","End","End","End","End","End","End","End","End","End","End","End","End","End","End","End","End","End","End","End","End","End","End","End","End","End","End","End","End","End","End","End","End","End","End","End","End","End","End","End","End","End","End","End","End","End","End","End","End","End","End","End","End","End","End","End","End","End","End","End","End","End","End","End","End","End","End","End","End","End","End","End","End","End","End","End","End","End","End","End","End","End","End","End","End","End","End","End","End","End","End","End","End","End","End","End","End","End","End","End","End","End","End","End","End","End","End","End","End","End","End","End","End","End","End","End","End","End","End","End","End","End","End","End","End","End","End","End","End","End","End","End","End","End","End","End","End","End","End","End","End","End","End","End","End","End","End","End","End","End","End","End","End","End","End","End","End","End","End","End","End","End","End","End","End","End","End","End","End","End","End","End","End","End","End","End","End","End","End","End","End","End","End","End","End","End","End","End","End","End","End","End","End","End","End","End","End","End","End","End","End","End","End","End","End","End","End","End","End","End","End","End","End","End","End","End","End","End","End","End","End","End","End","End","End","End","End","End","End","End","End","End","End","End","End","End","End","End","End","End","End","End","End","End","End","End","End","End","End","End","End","End","End","End","End","End","End","End","End","End","End","End","End","End","End","End","End","End","End","End","End","End","End","End","End","End","End","End","End","End","End","End","End","End","End","End","End","End","End","End","End","End","End","End","End","End","End","End","End","End","End","End","End","End","End","End","End","End","End","End","End","End","End","End","End","End","End","End","End","End","End","End","End","End","End","End","End","End","End","End","End","End","End","End","End","End","End","End","End","End","End","End","End","End","End","End","End","End","End","End","End","End","End","End","End","End","End","End","End","End","End","End","End","End","End","End","End","End","End","End","End","End","End","End","End","End","End","End","End","End","End","End","End","End","End","End","End","End","End","End","End","End","End","End","End","End","End","End","End","End","End","End","End","End","End","End","End","End","End","End","End","End","End","End","End","End","End","End","End","End","End","End","End","End","End","End","End","End","End","End","End","End","End","End","End","End","End","End","End","End","End","End","End","End","End","End","End","End","End","End","End","End","End","End","End","End","End","End","End","End","End","End","End","End","End","End","End","End","End","End","End","End","End","End","End","End","End","End","End","End","End","End","End","End","End","End","End","End","End","End","End","End","End","End","End","End","End","End","End","End","End","End","End","End","End","End","End","End","End","End","End","End","End","End","End","End","End","End","End","End","End","End","End","End","End","End","End","End","End","End","End","End","End","End","End","End","End","End","End","End","End","End","End","End","End","End","End","End","End","End","End","End","End","End","End","End","End","End","End","End","End","End","End","End","End","End","End","End","End","End","End","End","End","End","End","End","End","End","End","End","End","End","End","End","End","End","End","End","End","End","End","End","End","End","End","End","End","End","End","End","End","End","End","End","End","End","End","End","End","End","End","End","End","End","End","End","End","End","End","End","End","End","End","End","End","End","End","End","End","End","End","End","End","End","End","End","End","End","End","End","End","End","End","End","End","End","End","End","End","End","End","End","End","End","End","End","End","End","End","End","End","End","End","End","End","End","End","End","End","End","End","End","End","End","End","End","End","End","End","End","End","End","End","End","End","End","End","End","End","End","End","End","End","End","End","End","End","End","End","End","End","End","End","End","End","End","End","End","End","End","End","End","End","End","End","End","End","End","End","End","End","End","End","End","End","End","End","End","End","End","End","End","End","End","End","End","End","End","End","End","End","End","End","End","End","End","End","End","End","End","End","End","End","End","End","End","End","End","End","End","End","End","End","End","End","End","End","End","End","End","End","End","End","End","End","End","End","End","End","End","End","End","End","End","End","End","End","End","End","End","End","End","End","End","End","End","End","End","End","End","End","End","End","End","End","End","End","End","End","End","End","End","End","End","End","End","End","End","End","End","End","End","End","End","End","End","End","End","End","End","End","End","End","End","End","End","End","End","End","End","End","End","End","End","End","End","End","End","End","End","End","End","End","End","End","End","End","End","End","End","End","End","End","End","End","End","End","End","End","End","End","End","End","End","End","End","End","End","End","End","End","End","End","End","End","End","End","End","End","End","End","End","End","End","End","End","End","End","End","End","End","End","End","End","End","End","End","End","End","End","End","End","End","End","End","End","End","End","End","End","End","End","End","End","End","End","End","End","End","End","End","End","End","End","End","End","End","End","End","End","End","End","End","End","End","End","End","End","End","End","End","End","End","End","End","End","End","End","End","End","End","End","End","End","End","End","End","End","End","End","End","End","End","End","End","End","End","End","End","End","End","End","End","End","End","End","End","End","End","End","End","End","End","End","End","End","End","End","End","End","End","End","End","End","End","End","End","End","End","End","End","End","End","End","End","End","End","End","End","End","End","End","End","End","End","End","End","End","End","End","End","End","End","End","End","End","End","End","End","End","End","End","End","End","End","End","End","End","End","End","End","End","End","End","End","End","End","End","End","End","End","End","End","End","End","End","End","End","End","End","End","End","End","End","End","End","End","End","End","End","End","End","End","End","End","End","End","End","End","End","End","End","End","End","End","End","End","End","End","End","End","End","End","End","End","End","End","End","End","End","End","End","End","End","End","End","End","End","End","End","End","End","End","End","End","End","End","End","End","End","End","End","End","End","End","End","End","End","End","End","End","End","End","End","End","End","End","End","End","End","End","End","End","End","End","End","End","End","End","End","End","End","End","End","End","End","End","End","End","End","End","End","End","End","End","End","End","End","End","End","End","End","End","End","End","End","End","End","End","End","End","End","End","End","End","End","End","End","End","End","End","End","End","End","End","End","End","End","End","End","End","End","End","End","End","End","End","End","End","End","End","End","End","End","End","End","End","End","End","End","End","End","End","End","End","End","End","End","End","End","End","End","End","End","End","End","End","End","End","End","End","End","End","End","End","End","End","End","End","End","End","End","End","End","End","End","End","End","End","End","End","End","End","End","End","End","End","End","End","End","End","End","End","End","End","End","End","End","End","End","End","End","End","End","End","End","End","End","End","End","End","End","End","End","End","End","End","End","End","End","End","End","End","End","End","End","End","End","End","End","End","End","End","End","End","End","End","End","End","End","End","End","End","End","End","End","End","End","End","End","End","End","End","End","End","End","End","End","End","End","End","End","End","End","End","End","End","End","End","End","End","End","End","End","End","End","End","End","End","End","End","End","End","End","End","End","End","End","End","End","End","End","End","End","End","End","End","End","End","End","End","End","End","End","End","End","End","End","End","End","End","End","End","End","End","End","End","End","End","End","End","End","End","End","End","End","End","End","End","End","End","End","End","End","End","End","End","End","End","End","End","End","End","End","End","End","End","End","End","End","End","End","End","End","End","End","End","End","End","End","End","End","End","End","End","End","End","End","End","End","End","End","End","End","End","End","End","End","End","End","End","End","End","End","End","End","End","End","End","End","End","End","End","End","End","End","End","End","End","End","End","End","End","End","End","End","End","End","End","End","End","End","End","End","End","End","End","End","End","End","End","End","End","End","End","End","End","End","End","End","End","End","End","End","End","End","End","End","End","End","End","End","End","End","End","End","End","End","End","End","End","End","End","End","End","End","End","End","End","End","End","End","End","End","End","End","End","End","End","End","End","End","End","End","End","End","End","End","End","End","End","End","End","End","End","End","End","End","End","End","End","End","End","End","End","End","End","End","End","End","End","End","End","End","End","End","End","End","End","End","End","End","End","End","End","End","End","End","End","End","End","End","End","End","End","End","End","End","End","End","End","End","End","End","End","End","End","End","End","End","End","End","End","End","End","End","End","End","End","End","End","End","End","End","End","End","End","End","End","End","End","End","End","End","End","End","End","End","End","End","End","End","End","End","End","End","End","End","End","End","End","End","End","End","End","End","End","End","End","End","End","End","End","End","End","End","End","End","End","End","End","End","End","End","End","End","End","End","End","End","End","End","End","End","End","End","End","End","End","End","End","End","End","End","End","End","End","End","End","End","End","End","End","End","End","End","End","End","End","End","End","End","End","End","End","End","End","End","End","End","End","End","End","End","End","End","End","End","End","End","End","End","End","End","End","End","End","End","End","End","End","End","End","End","End","End","End","End","End","End","End","End","End","End","End","End","End","End","End","End","End","End","End","End","End","End","End","End","End","End","End","End","End","End","End","End","End","End","End","End","End","End","End","End","End","End","End","End","End","End","End","End","End","End","End","End","End","End","End","End","End","End","End","End","End","End","End","End","End","End","End","End","End","End","End","End","End","End","End","End","End","End","End","End","End","End","End","End","End","End","End","End","End","End","End","End","End","End","End","End","End","End","End","End","End","End","End","End","End","End","End","End","End","End","End","End","End","End","End","End","End","End","End","End","End","End","End","End","End","End","End","End","End","End","End","End","End","End","End","End","End","End","End","End","End","End","End","End","End","End","End","End","End","End","End","End","End","End","End","End","End","End","End","End","End","End","End","End","End","End","End","End","End","End","End","End","End","End","End","End","End","End","End","End","End","End","End","End","End","End","End","End","End","End","End","End","End","End","End","End","End","End","End","End","End","End","End","End","End","End","End","End","End","End","End","End","End","End","End","End","End","End","End","End","End","End","End","End","End","End","End","End","End","End","End","End","End","End","End","End","End","End","End","End","End","End","End","End","End","End","End","End","End","End","End","End","End","End","End","End","End","End","End","End","End","End","End","End","End","End","End","End","End","End","End","End","End","End","End","End","End","End","End","End","End","End","End","End","End","End","End","End","End","End","End","End","End","End","End","End","End","End","End","End","End","End","End","End","End","End","End","End","End","End","End","End","End","End","End","End","End","End","End","End","End","End","End","End","End","End","End","End","End","End","End","End","End","End","End","End","End","End","End","End","End","End","End","End","End","End","End","End","End","End","End","End","End","End","End","End","End","End","End","End","End","End","End","End","End","End","End","End","End","End","End","End","End","End","End","End","End","End","End","End","End","End","End","End","End","End","End","End","End","End","End","End","End","End","End","End","End","End","End","End","End","End","End","End","End","End","End","End","End","End","End","End","End","End","End","End","End","End","End","End","End","End","End","End","End","End","End","End","End","End","End","End","End","End","End","End","End","End","End","End","End","End","End","End","End","End","End","End","End","End","End","End","End","End","End","End","End","End","End","End","End","End","End","End","End","End","End","End","End","End","End","End","End","End","End","End","End","End","End","End","End","End","End","End","End","End","End","End","End","End","End","End","End","End","End","End","End","End","End","End","End","End","End","End","End","End","End","End","End","End","End","End","End","End","End","End","End","End","End","End","End","End","End","End","End","End","End","End","End","End","End","End","End","End","End","End","End","End","End","End","End","End","End","End","End","End","End","End","End","End","End","End","End","End","End","End","End","End","End","End","End","End","End","End","End","End","End","End","End","End","End","End","End","End","End","End","End","End","End","End","End","End","End","End","End","End","End","End","End","End","End","End","End","End","End","End","End","End","End","End","End","End","End","End","End","End","End","End","End","End","End","End","End","End","End","End","End","End","End","End","End","End","End","End","End","End","End","End","End","End","End","End","End","End","End","End","End","End","End","End","End","End","End","End","End","End","End","End","End","End","End","End","End","End","End","End","End","End","End","End","End","End","End","End","End","End","End","End","End","End","End","End","End","End","End","End","End","End","End","End","End","End","End","End","End","End","End","End","End","End","End","End","End","End","End","End","End","End","End","End","End","End","End","End","End","End","End","End","End","End","End","End","End","End","End","End","End","End","End","End","End","End","End","End","End","End","End","End","End","End","End","End","End","End","End","End","End","End","End","End","End","End","End","End","End","End","End","End","End","End","End","End","End","End","End","End","End","End","End","End","End","End","End","End","End","End","End","End","End","End","End","End","End","End","End","End","End","End","End","End","End","End","End","End","End","End","End","End","End","End","End","End","End","End","End","End","End","End","End","End","End","End","End","End","End","End","End","End","End","End","End","End","End","End","End","End","End","End","End","End","End","End","End","End","End","End","End","End","End","End","End","End","End","End","End","End","End","End","End","End","End","End","End","End","End","End","End","End","End","End","End","End","End","End","End","End","End","End","End","End","End","End","End","End","End","End","End","End","End","End","End","End","End","End","End","End","End","End","End","End","End","End","End","End","End","End","End","End","End","End","End","End","End","End","End","End","End","End","End","End","End","End","End","End","End","End","End","End","End","End","End","End","End","End","End","End","End","End","End","End","End","End","End","End","End","End","End","End","End","End","End","End","End","End","End","End","End","End","End","End","End","End","End","End","End","End","End","End","End","End","End","End","End","End","End","End","End","End","End","End","End","End","End","End","End","End","End","End","End","End","End","End","End","End","End","End","End","End","End","End","End","End","End","End","End","End","End","End","End","End","End","End","End","End","End","End","End","End","End","End","End","End","End","End","End","End","End","End","End","End","End","End","End","End","End","End","End","End","End","End","End","End","End","End","End","End","End","End","End","End","End","End","End","End","End","End","End","End","End","End","End","End","End","End","End","End","End","End","End","End","End","End","End","End","End","End","End","End","End","End","End","End","End","End","End","End","End","End","End","End","End","End","End","End","End","End","End","End","End","End","End","End","End","End","End","End","End","End","End","End","End","End","End","End","End","End","End","End","End","End","End","End","End","End","End","End","End","End","End","End","End","End","End","End","End","End","End","End","End","End","End","End","End","End","End","End","End","End","End","End","End","End","End","End","End","End","End","End","End","End","End","End","End","End","End","End","End","End","End","End","End","End","End","End","End","End","End","End","End","End","End","End","End","End","End","End","End","End","End","End","End","End","End","End","End","End","End","End","End","End","End","End","End","End","End","End","End","End","End","End","End","End","End","End","End","End","End","End","End","End","End","End","End","End","End","End","End","End","End","End","End","End","End","End","End","End","End","End","End","End","End","End","End","End","End","End","End","End","End","End","End","End","End","End","End","End","End","End","End","End","End","End","End","End","End","End","End","End","End","End","End","End","End","End","End","End","End","End","End","End","End","End","End","End","End","End","End","End","End","End","End","End","End","End","End","End","End","End","End","End","End","End","End","End","End","End","End","End","End","End","End","End","End","End","End","End","End","End","End","End","End","End","End","End","End","End","End","End","End","End","End","End","End","End","End","End","End","End","End","End","End","End","End","End","End","End","End","End","End","End","End","End","End","End","End","End","End","End","End","End","End","End","End","End","End","End","End","End","End","End","End","End","End","End","End","End","End","End","End","End","End","End","End","End","End","End","End","End","End","End","End","End","End","End","End","End","End","End","End","End","End","End","End","End","End","End","End","End","End","End","End","End","End","End","End","End","End","End","End","End","End","End","End","End","End","End","End","End","End","End","End","End","End","End","End","End","End","End","End","End","End","End","End","End","End","End","End","End","End","End","End","End","End","End","End","End","End","End","End","End","End","End","End","End","End","End","End","End","End","End","End","End","End","End","End","End","End","End","End","End","End","End","End","End","End","End","End","End","End","End","End","End","End","End","End","End","End","End","End","End","End","End","End","End","End","End","End","End","End","End","End","End","End","End","End","End","End","End","End","End","End","End","End","End","End","End","End","End","End","End","End","End","End","End","End","End","End","End","End","End","End","End","End","End","End","End","End","End","End","End","End","End","End","End","End","End","End","End","End","End","End","End","End","End","End","End","End","End","End","End","End","End","End","End","End","End","End","End","End","End","End","End","End","End","End","End","End","End","End","End","End","End","End","End","End","End","End","End","End","End","End","End","End","End","End","End","End","End","End","End","End","End","End","End","End","End","End","End","End","End","End","End","End","End","End","End","End","End","End","End","End","End","End","End","End","End","End","End","End","End","End","End","End","End","End","End","End","End","End","End","End","End","End","End","End","End","End","End","End","End","End","End","End","End","End","End","End","End","End","End","End","End","End","End","End","End","End","End","End","End","End","End","End","End","End","End","End","End","End","End","End","End","End","End","End","End","End","End","End","End","End","End","End","End","End","End","End","End","End","End","End","End","End","End","End","End","End","End","End","End","End","End","End","End","End","End","End","End","End","End","End","End","End","End","End","End","End","End","End","End","End","End","End","End","End","End","End","End","End","End","End","End","End","End","End","End","End","End","End","End","End","End","End","End","End","End","End","End","End","End","End","End","End","End","End","End","End","End","End","End","End","End","End","End","End","End","End","End","End","End","End","End","End","End","End","End","End","End","End","End","End","End","End","End","End","End","End","End","End","End","End","End","End","End","End","End","End","End","End","End","End","End","End","End","End","End","End","End","End","End","End","End","End","End","End","End","End","End","End","End","End","End","End","End","End","End","End","End","End","End","End","End","End","End","End","End","End","End","End","End","End","End","End","End","End","End","End","End","End","End","End","End","End","End","End","End","End","End","End","End","End","End","End","End","End","End","End","End","End","End","End","End","End","End","End","End","End","End","End","End","End","End","End","End","End","End","End","End","End","End","End","End","End","End","End","End","End","End","End","End","End","End","End","End","End","End","End","End","End","End","End","End","End","End","End","End","End","End","End","End","End","End","End","End","End","End","End","End","End","End","End","End","End","End","End","End","End","End","End","End","End","End","End","End","End","End","End","End","End","End","End","End","End","End","End","End","End","End","End","End","End","End","End","End","End","End","End","End","End","End","End","End","End","End","End","End","End","End","End","End","End","End","End","End","End","End","End","End","End","End","End","End","End","End","End","End","End","End","End","End","End","End","End","End","End","End","End","End","End","End","End","End","End","End","End","End","End","End","End","End","End","End","End","End","End","End","End","End","End","End","End","End","End","End","End","End","End","End","End","End","End","End","End","End","End","End","End","End","End","End","End","End","End","End","End","End","End","End","End","End","End","End","End","End","End","End","End","End","End","End","End","End","End","End","End","End","End","End","End","End","End","End","End","End","End","End","End","End","End","End","End","End","End","End","End","End","End","End","End","End","End","End","End","End","End","End","End","End","End","End","End","End","End","End","End","End","End","End","End","End","End","End","End","End","End","End","End","End","End","End","End","End","End","End","End","End","End","End","End","End","End","End","End","End","End","End","End","End","End","End","End","End","End","End","End","End","End","End","End","End","End","End","End","End","End","End","End","End","End","End","End","End","End","End","End","End","End","End","End","End","End","End","End","End","End","End","End","End","End","End","End","End","End","End","End","End","End","End","End","End","End","End","End","End","End","End","End","End","End","End","End","End","End","End","End","End","End","End","End","End","End","End","End","End","End","End","End","End","End","End","End","End","End","End","End","End","End","End","End","End","End","End","End","End","End","End","End","End","End","End","End","End","End","End","End","End","End","End","End","End","End","End","End","End","End","End","End","End","End","End","End","End","End","End","End","End","End","End","End","End","End","End","End","End","End","End","End","End","End","End","End","End","End","End","End","End","End","End","End","End","End","End","End","End","End","End","End","End","End","End","End","End","End","End","End","End","End","End","End","End","End","End","End","End","End","End","End","End","End","End","End","End","End","End","End","End","End","End","End","End","End","End","End","End","End","End","End","End","End","End","End","End","End","End","End","End","End","End","End","End","End","End","End","End","End","End","End","End","End","End","End","End","End","End","End","End","End","End","End","End","End","End","End","End","End","End","End","End","End","End","End","End","End","End","End","End","End","End","End","End","End","End","End","End","End","End","End","End","End","End","End","End","End","End","End","End","End","End","End","End","End","End","End","End","End","End","End","End","End","End","End","End","End","End","End","End","End","End","End","End","End","End","End","End","End","End","End","End","End","End","End","End","End","End","End","End","End","End","End","End","End","End","End","End","End","End","End","End","End","End","End","End","End","End","End","End","End","End","End","End","End","End","End","End","End","End","End","End","End","End","End","End","End","End","End","End","End","End","End","End","End","End","End","End","End","End","End","End","End","End","End","End","End","End","End","End","End","End","End","End","End","End","End","End","End","End","End","End","End","End","End","End","End","End","End","End","End","End","End","End","End","End","End","End","End","End","End","End","End","End","End","End","End","End","End","End","End","End","End","End","End","End","End","End","End","End","End","End","End","End","End","End","End","End","End","End","End","End","End","End","End","End","End","End","End","End","End","End","End","End","End","End","End","End","End","End","End","End","End","End","End","End","End","End","End","End","End","End","End","End","End","End","End","End","End","End","End","End","End","End","End","End","End","End","End","End","End","End","End","End","End","End","End","End","End","End","End","End","End","End","End","End","End","End","End","End","End","End","End","End","End","End","End","End","End","End","End","End","End","End","End","End","End","End","End","End","End","End","End","End","End","End","End","End","End","End","End","End","End","End","End","End","End","End","End","End","End","End","End","End","End","End","End","End","End","End","End","End","End","End","End","End","End","End","End","End","End","End","End","End","End","End","End","End","End","End","End","End","End","End","End","End","End","End","End","End","End","End","End","End","End","End","End","End","End","End","End","End","End","End","End","End","End","End","End","End","End","End","End","End","End","End","End","End","End","End","End","End","End","End","End","End","End","End","End","End","End","End","End","End","End","End","End","End","End","End","End","End","End","End","End","End","End","End","End","End","End","End","End","End","End","End","End","End","End","End","End","End","End","End","End","End","End","End","End","End","End","End","End","End","End","End","End","End","End","End","End","End","End","End","End","End","End","End","End","End","End","End","End","End","End","End","End","End","End","End","End","End","End","End","End","End","End","End","End","End","End","End","End","End","End","End","End","End","End","End","End","End","End","End","End","End","End","End","End","End","End","End","End","End","End","End","End","End","End","End","End","End","End","End","End","End","End","End","End","End","End","End","End","End","End","End","End","End","End","End","End","End","End","End","End","End","End","End","End","End","End","End","End","End","End","End","End","End","End","End","End","End","End","End","End","End","End","End","End","End","End","End","End","End","End","End","End","End","End","End","End","End","End","End","End","End","End","End","End","End","End","End","End","End","End","End","End","End","End","End","End","End","End","End","End","End","End","End","End","End","End","End","End","End","End","End","End","End","End","End","End","End","End","End","End","End","End","End","End","End","End","End","End","End","End","End","End","End","End","End","End","End","End","End","End","End","End","End","End","End","End","End","End","End","End","End","End","End","End","End","End","End","End","End","End","End","End","End","End","End","End","End","End","End","End","End","End","End","End","End","End","End","End","End","End","End","End","End","End","End","End","End","End","End","End","End","End","End","End","End","End","End","End","End","End","End","End","End","End","End","End","End","End","End","End","End","End","End","End","End","End","End","End","End","End","End","End","End","End","End","End","End","End","End","End","End","End","End","End","End","End","End","End","End","End","End","End","End","End","End","End","End","End","End","End","End","End","End","End","End","End","End","End","End","End","End","End","End","End","End","End","End","End","End","End","End","End","End","End","End","End","End","End","End","End","End","End","End","End","End","End","End","End","End","End","End","End","End","End","End","End","End","End","End","End","End","End","End","End","End","End","End","End","End","End","End","End","End","End","End","End","End","End","End","End","End","End","End","End","End","End","End","End","End","End","End","End","End","End","End","End","End","End","End","End","End","End","End","End","End","End","End","End","End","End","End","End","End","End","End","End","End","End","End","End","End","End","End","End","End","End","End","End","End","End","End","End","End","End","End","End","End","End","End","End","End","End","End","End","End","End","End","End","End","End","End","End","End","End","End","End","End","End","End","End","End","End","End","End","End","End","End","End","End","End","End","End","End","End","End","End","End","End","End","End","End","End","End","End","End","End","End","End","End","End","End","End","End","End","End","End","End","End","End","End","End","End","End","End","End","End","End","End","End","End","End","End","End","End","End","End","End","End","End","End","End","End","End","End","End","End","End","End","End","End","End","End","End","End","End","End","End","End","End","End","End","End","End","End","End","End","End","End","End","End","End","End","End","End","End","End","End","End","End","End","End","End","End","End","End","End","End","End","End","End","End","End","End","End","End","End","End","End","End","End","End","End","End","End","End","End","End","End","End","End","End","End","End","End","End","End","End","End","End","End","End","End","End","End","End","End","End","End","End","End","End","End","End","End","End","End","End","End","End","End","End","End","End","End","End","End","End","End","End","End","End","End","End","End","End","End","End","End","End","End","End","End","End","End","End","End","End","End","End","End","End","End","End","End","End","End","End","End","End","End","End","End","End","End","End","End","End","End","End","End","End","End","End","End","End","End","End","End","End","End","End","End","End","End","End","End","End","End","End","End","End","End","End","End","End","End","End","End","End","End","End","End","End","End","End","End","End","End","End","End","End","End","End","End","End","End","End","End","End","End","End","End","End","End","End","End","End","End","End","End","End","End","End","End","End","End","End","End","End","End","End","End","End","End","End","End","End","End","End","End","End","End","End","End","End","End","End","End","End","End","End","End","End","End","End","End","End","End","End","End","End","End","End","End","End","End","End","End","End","End","End","End","End","End","End","End","End","End","End","End","End","End","End","End","End","End","End","End","End","End","End","End","End","End","End","End","End","End","End","End","End","End","End","End","End","End","End","End","End","End","End","End","End","End","End","End","End","End","End","End","End","End","End","End","End","End","End","End","End","End","End","End","End","End","End","End","End","End","End","End","End","End","End","End","End","End","End","End","End","End","End","End","End","End","End","End","End","End","End","End","End","End","End","End","End","End","End","End","End","End","End","End","End","End","End","End","End","End","End","End","End","End","End","End","End","End","End","End","End","End","End","End","End","End","End","End","End","End","End","End","End","End","End","End","End","End","End","End","End","End","End","End","End","End","End","End","End","End","End","End","End","End","End","End","End","End","End","End","End","End","End","End","End","End","End","End","End","End","End","End","End","End","End","End","End","End","End","End","End","End","End","End","End","End","End","End","End","End","End","End","End","End","End","End","End","End","End","End","End","End","End","End","End","End","End","End","End","End","End","End","End","End","End","End","End","End","End","End","End","End","End","End","End","End","End","End","End","End","End","End","End","End","End","End","End","End","End","End","End","End","End","End","End","End","End","End","End","End","End","End","End","End","End","End","End","End","End","End","End","End","End","End","End","End","End","End","End","End","End","End","End","End","End","End","End","End","End","End","End","End","End","End","End","End","End","End","End","End","End","End","End","End","End","End","End","End","End","End","End","End","End","End","End","End","End","End","End","End","End","End","End","End","End","End","End","End","End","End","End","End","End","End","End","End","End","End","End","End","End","End","End","End","End","End","End","End","End","End","End","End","End","End","End","End","End","End","End","End","End","End","End","End","End","End","End","End","End","End","End","End","End","End","End","End","End","End","End","End","End","End","End","End","End","End","End","End","End","End","End","End","End","End","End","End","End","End","End","End","End","End","End","End","End","End","End","End","End","End","End","End","End","End","End","End","End","End","End","End","End","End","End","End","End","End","End","End","End","End","End","End","End","End","End","End","End","End","End","End","End","End","End","End","End","End","End","End","End","End","End","End","End","End","End","End","End","End","End","End","End","End","End","End","End","End","End","End","End","End","End","End","End","End","End","End","End","End","End","End","End","End","End","End","End","End","End","End","End","End","End","End","End","End","End","End","End","End","End","End","End","End","End","End","End","End","End","End","End","End","End","End","End","End","End","End","End","End","End","End","End","End","End","End","End","End","End","End","End","End","End","End","End","End","End","End","End","End","End","End","End","End","End","End","End","End","End","End","End","End","End","End","End","End","End","End","End","End","End","End","End","End","End","End","End","End","End","End","End","End","End","End","End","End","End","End","End","End","End","End","End","End","End","End","End","End","End","End","End","End","End","End","End","End","End","End","End","End","End","End","End","End","End","End","End","End","End","End","End","End","End","End","End","End","End","End","End","End","End","End","End","End","End","End","End","End","End","End","End","End","End","End","End","End","End","End","End","End","End","End","End","End","End","End","End","End","End","End","End","End","End","End","End","End","End","End","End","End","End","End","End","End","End","End","End","End","End","End","End","End","End","End","End","End","End","End","End","End","End","End","End","End","End","End","End","End","End","End","End","End","End","End","End","End","End","End","End","End","End","End","End","End","End","End","End","End","End","End","End","End","End","End","End","End","End","End","End","End","End","End","End","End","End","End","End","End","End","End","End","End","End","End","End","End","End","End","End","End","End","End","End","End","End","End","End","End","End","End","End","End","End","End","End","End","End","End","End","End","End","End","End","End","End","End","End","End","End","End","End","End","End","End","End","End","End","End","End","End","End","End","End","End","End","End","End","End","End","End","End","End","End","End","End","End","End","End","End","End","End","End","End","End","End","End","End","End","End","End","End","End","End","End","End","End","End","End","End","End","End","End","End","End","End","End","End","End","End","End","End","End","End","End","End","End","End","End","End","End","End","End","End","End","End","End","End","End","End","End","End","End","End","End","End","End","End","End","End","End","End","End","End","End","End","End","End","End","End","End","End","End","End","End","End","End","End","End","End","End","End","End","End","End","End","End","End","End","End","End","End","End","End","End","End","End","End","End","End","End","End","End","End","End","End","End","End","End","End","End","End","End","End","End","End","End","End","End","End","End","End","End","End","End","End","End","End","End","End","End","End","End","End","End","End","End","End","End","End","End","End","End","End","End","End","End","End","End","End","End","End","End","End","End","End","End","End","End","End","End","End","End","End","End","End","End","End","End","End","End","End","End","End","End","End","End","End","End","End","End","End","End","End","End","End","End","End","End","End","End","End","End","End","End","End","End","End","End","End","End","End","End","End","End","End","End","End","End","End","End","End","End","End","End","End","End","End","End","End","End","End","End","End","End","End","End","End","End","End","End","End","End","End","End","End","End","End","End","End","End","End","End","End","End","End","End","End","End","End","End","End","End","End","End","End","End","End","End","End","End","End","End","End","End","End","End","End","End","End","End","End","End","End","End","End","End","End","End","End","End","End","End","End","End","End","End","End","End","End","End","End","End","End","End","End","End","End","End","End","End","End","End","End","End","End","End","End","End","End","End","End","End","End","End","End","End","End","End","End","End","End","End","End","End","End","End","End","End","End","End","End","End","End","End","End","End","End","End","End","End","End","End","End","End","End","End","End","End","End","End","End","End","End","End","End","End","End","End","End","End","End","End","End","End","End","End","End","End","End","End","End","End","End","End","End","End","End","End","End","End","End","End","End","End","End","End","End","End","End","End","End","End","End","End","End","End","End","End","End","End","End","End","End","End","End","End","End","End","End","End","End","End","End","End","End","End","End","End","End","End","End","End","End","End","End","End","End","End","End","End","End","End","End","End","End","End","End","End","End","End","End","End","End","End","End","End","End","End","End","End","End","End","End","End","End","End","End","End","End","End","End","End","End","End","End","End","End","End","End","End","End","End","End","End","End","End","End","End","End","End","End","End","End","End","End","End","End","End","End","End","End","End","End","End","End","End","End","End","End","End","End","End","End","End","End","End","End","End","End","End","End","End","End","End","End","End","End","End","End","End","End","End","End","End","End","End","End","End","End","End","End","End","End","End","End","End","End","End","End","End","End","End","End","End","End","End","End","End","End","End","End","End","End","End","End","End","End","End","End","End","End","End","End","End","End","End","End","End","End","End","End","End","End","End","End","End","End","End","End","End","End","End","End","End","End","End","End","End","End","End","End","End","End","End","End","End","End","End","End","End","End","End","End","End","End","End","End","End","End","End","End","End","End","End","End","End","End","End","End","End","End","End","End","End","End","End","End","End","End","End","End","End","End","End","End","End","End","End","End","End","End","End","End","End","End","End","End","End","End","End","End","End","End","End","End","End","End","End","End","End","End","End","End","End","End","End","End","End","End","End","End","End","End","End","End","End","End","End","End","End","End","End","End","End","End","End","End","End","End","End","End","End","End","End","End","End","End","End","End","End","End","End","End","End","End","End","End","End","End","End","End","End","End","End","End","End","End","End","End","End","End","End","End","End","End","End","End","End","End","End","End","End","End","End","End","End","End","End","End","End","End","End","End","End","End","End","End","End","End","End","End","End","End","End","End","End","End","End","End","End","End","End","End","End","End","End","End","End","End","End","End","End","End","End","End","End","End","End","End","End","End","End","End","End","End","End","End","End","End","End","End","End","End","End","End","End","End","End","End","End","End","End","End","End","End","End","End","End","End","End","End","End","End","End","End","End","End","End","End","End","End","End","End","End","End","End","End","End","End","End","End","End","End","End","End","End","End","End","End","End","End","End","End","End","End","End","End","End","End","End","End","End","End","End","End","End","End","End","End","End","End","End","End","End","End","End","End","End","End","End","End","End","End","End","End","End","End","End","End","End","End","End","End","End","End","End","End","End","End","End","End","End","End","End","End","End","End","End","End","End","End","End","End","End","End","End","End","End","End","End","End","End","End","End","End","End","End","End","End","End","End","End","End","End","End","End","End","End","End","End","End","End","End","End","End","End","End","End","End","End","End","End","End","End","End","End","End","End","End","End","End","End","End","End","End","End","End","End","End","End","End","End","End","End","End","End","End","End","End","End","End","End","End","End","End","End","End","End","End","End","End","End","End","End","End","End","End","End","End","End","End","End","End","End","End","End","End","End","End","End","End","End","End","End","End","End","End","End","End","End","End","End","End","End","End","End","End","End","End","End","End","End","End","End","End","End","End","End","End","End","End","End","End","End","End","End","End","End","End","End","End","End","End","End","End","End","End","End","End","End","End","End","End","End","End","End","End","End","End","End","End","End","End","End","End","End","End","End","End","End","End","End","End","End","End","End","End","End","End","End","End","End","End","End","End","End","End","End","End","End","End","End","End","End","End","End","End","End","End","End","End","End","End","End","End","End","End","End","End","End","End","End","End","End","End","End","End","End","End","End","End","End","End","End","End","End","End","End","End","End","End","End","End","End","End","End","End","End","End","End","End","End","End","End","End","End","End","End","End","End","End","End","End","End","End","End","End","End","End","End","End","End","End","End","End","End","End","End","End","End","End","End","End","End","End","End","End","End","End","End","End","End","End","End","End","End","End","End","End","End","End","End","End","End","End","End","End","End","End","End","End","End","End","End","End","End","End","End","End","End","End","End","End","End","End","End","End","End","End","End","End","End","End","End","End","End","End","End","End","End","End","End","End","End","End","End","End","End","End","End","End","End","End","End","End","End","End","End","End","End","End","End","End","End","End","End","End","End","End","End","End","End","End","End","End","End","End","End","End","End","End","End","End","End","End","End","End","End","End","End","End","End","End","End","End","End","End","End","End","End","End","End","End","End","End","End","End","End","End","End","End","End","End","End","End","End","End","End","End","End","End","End","End","End","End","End","End","End","End","End","End","End","End","End","End","End","End","End","End","End","End","End","End","End","End","End","End","End","End","End","End","End","End","End","End","End","End","End","End","End","End","End","End","End","End","End","End","End","End","End","End","End","End","End","End","End","End","End","End","End","End","End","End","End","End","End","End","End","End","End","End","End","End","End","End","End","End","End","End","End","End","End","End","End","End","End","End","End","End","End","End","End","End","End","End","End","End","End","End","End","End","End","End","End","End","End","End","End","End","End","End","End","End","End","End","End","End","End","End","End","End","End","End","End","End","End","End","End","End","End","End","End","End","End","End","End","End","End","End","End","End","End","End","End","End","End","End","End","End","End","End","End","End","End","End","End","End","End","End","End","End","End","End","End","End","End","End","End","End","End","End","End","End","End","End","End","End","End","End","End","End","End","End","End","End","End","End","End","End","End","End","End","End","End","End","End","End","End","End","End","End","End","End","End","End","End","End","End","End","End","End","End","End","End","End","End","End","End","End","End","End","End","End","End","End","End","End","End","End","End","End","End","End","End","End","End","End","End","End","End","End","End","End","End","End","End","End","End","End","End","End","End","End","End","End","End","End","End","End","End","End","End","End","End","End","End","End","End","End","End","End","End","End","End","End","End","End","End","End","End","End","End","End","End","End","End","End","End","End","End","End","End","End","End","End","End","End","End","End","End","End","End","End","End","End","End","End","End","End","End","End","End","End","End","End","End","End","End","End","End","End","End","End","End","End","End","End","End","End","End","End","End","End","End","End","End","End","End","End","End","End","End","End","End","End","End","End","End","End","End","End","End","End","End","End","End","End","End","End","End","End","End","End","End","End","End","End","End","End","End","End","End","End","End","End","End","End","End","End","End","End","End","End","End","End","End","End","End","End","End","End","End","End","End","End","End","End","End","End","End","End","End","End","End","End","End","End","End","End","End","End","End","End","End","End","End","End","End","End","End","End","End","End","End","End","End","End","End","End","End","End","End","End","End","End","End","End","End","End","End","End","End","End","End","End","End","End","End","End","End","End","End","End","End","End","End","End","End","End","End","End","End","End","End","End","End","End","End","End","End","End","End","End","End","End","End","End","End","End","End","End","End","End","End","End","End","End","End","End","End","End","End","End","End","End","End","End","End","End","End","End","End","End","End","End","End","End","End","End","End","End","End","End","End","End","End","End","End","End","End","End","End","End","End","End","End","End","End","End","End","End","End","End","End","End","End","End","End","End","End","End","End","End","End","End","End","End","End","End","End","End","End","End","End","End","End","End","End","End","End","End","End","End","End","End","End","End","End","End","End","End","End","End","End","End","End","End","End","End","End","End","End","End","End","End","End","End","End","End","End","End","End","End","End","End","End","End","End","End","End","End","End","End","End","End","End","End","End","End","End","End","End","End","End","End","End","End","End","End","End","End","End","End","End","End","End","End","End","End","End","End","End","End","End","End","End","End","End","End","End","End","End","End","End","End","End","End","End","End","End","End","End","End","End","End","End","End","End","End","End","End","End","End","End","End","End","End","End","End","End","End","End","End","End","End","End","End","End","End","End","End","End","End","End","End","End","End","End","End","End","End","End","End","End","End","End","End","End","End","End","End","End","End","End","End","End","End","End","End","End","End","End","End","End","End","End","End","End","End","End","End","End","End","End","End","End","End","End","End","End","End","End","End","End","End","End","End","End","End","End","End","End","End","End","End","End","End","End","End","End","End","End","End","End","End","End","End","End","End","End","End","End","End","End","End","End","End","End","End","End","End","End","End","End","End","End","End","End","End","End","End","End","End","End","End","End","End","End","End","End","End","End","End","End","End","End","End","End","End","End","End","End","End","End","End","End","End","End","End","End","End","End","End","End","End","End","End","End","End","End","End","End","End","End","End","End","End","End","End","End","End","End","End","End","End","End","End","End","End","End","End","End","End","End","End","End","End","End","End","End","End","End","End","End","End","End","End","End","End","End","End","End","End","End","End","End","End","End","End","End","End","End","End","End","End","End","End","End","End","End","End","End","End","End","End","End","End","End","End","End","End","End","End","End","End","End","End","End","End","End","End","End","End","End","End","End","End","End","End","End","End","End","End","End","End","End","End","End","End","End","End","End","End","End","End","End","End","End","End","End","End","End","End","End","End","End","End","End","End","End","End","End","End","End","End","End","End","End","End","End","End","End","End","End","End","End","End","End","End","End","End","End","End","End","End","End","End","End","End","End","End","End","End","End","End","End","End","End","End","End","End","End","End","End","End","End","End","End","End","End","End","End","End","End","End","End","End","End","End","End","End","End","End","End","End","End","End","End","End","End","End","End","End","End","End","End","End","End","End","End","End","End","End","End","End","End","End","End","End","End","End","End","End","End","End","End","End","End","End","End","End","End","End","End","End","End","End","End","End","End","End","End","End","End","End","End","End","End","End","End","End","End","End","End","End","End","End","End","End","End","End","End","End","End","End","End","End","End","End","End","End","End","End","End","End","End","End","End","End","End","End","End","End","End","End","End","End","End","End","End","End","End","End","End","End","End","End","End","End","End","End","End","End","End","End","End","End","End","End","End","End","End","End","End","End","End","End","End","End","End","End","End","End","End","End","End","End","End","End","End","End","End","End","End","End","End","End","End","End","End","End","End","End","End","End","End","End","End","End","End","End","End","End","End","End","End","End","End","End","End","End","End","End","End","End","End","End","End","End","End","End","End","End","End","End","End","End","End","End","End","End","End","End","End","End","End","End","End","End","End","End","End","End","End","End","End","End","End","End","End","End","End","End","End","End","End","End","End","End","End","End","End","End","End","End","End","End","End","End","End","End","End","End","End","End","End","End","End","End","End","End","End","End","End","End","End","End","End","End","End","End","End","End","End","End","End","End","End","End","End","End","End","End","End","End","End","End","End","End","End","End","End","End","End","End","End","End","End","End","End","End","End","End","End","End","End","End","End","End","End","End","End","End","End","End","End","End","End","End","End","End","End","End","End","End","End","End","End","End","End","End","End","End","End","End","End","End","End","End","End","End","End","End","End","End","End","End","End","End","End","End","End","End","End","End","End","End","End","End","End","End","End","End","End","End","End","End","End","End","End","End","End","End","End","End","End","End","End","End","End","End","End","End","End","End","End","End","End","End","End","End","End","End","End","End","End","End","End","End","End","End","End","End","End","End","End","End","End","End","End","End","End","End","End","End","End","End","End","End","End","End","End","End","End","End","End","End","End","End","End","End","End","End","End","End","End","End","End","End","End","End","End","End","End","End","End","End","End","End","End","End","End","End","End","End","End","End","End","End","End","End","End","End","End","End","End","End","End","End","End","End","End","End","End","End","End","End","End","End","End","End","End","End","End","End","End","End","End","End","End","End","End","End","End","End","End","End","End","End","End","End","End","End","End","End","End","End","End","End","End","End","End","End","End","End","End","End","End","End","End","End","End","End","End","End","End","End","End","End","End","End","End","End","End","End","End","End","End","End","End","End","End","End","End","End","End","End","End","End","End","End","End","End","End","End","End","End","End","End","End","End","End","End","End","End","End","End","End","End","End","End","End","End","End","End","End","End","End","End","End","End","End","End","End","End","End","End","End","End","End","End","End","End","End","End","End","End","End","End","End","End","End","End","End","End","End","End","End","End","End","End","End","End","End","End","End","End","End","End","End","End","End","End","End","End","End","End","End","End","End","End","End","End","End","End","End","End","End","End","End","End","End","End","End","End","End","End","End","End","End","End","End","End","End","End","End","End","End","End","End","End","End","End","End","End","End","End","End","End","End","End","End","End","End","End","End","End","End","End","End","End","End","End","End","End","End","End","End","End","End","End","End","End","End","End","End","End","End","End","End","End","End","End","End","End","End","End","End","End","End","End","End","End","End","End","End","End","End","End","End","End","End","End","End","End","End","End","End","End","End","End","End","End","End","End","End","End","End","End","End","End","End","End","End","End","End","End","End","End","End","End","End","End","End","End","End","End","End","End","End","End","End","End","End","End","End","End","End","End","End","End","End","End","End","End","End","End","End","End","End","End","End","End","End","End","End","End","End","End","End","End","End","End","End","End","End","End","End","End","End","End","End","End","End","End","End","End","End","End","End","End","End","End","End","End","End","End","End","End","End","End","End","End","End","End","End","End","End","End","End","End","End","End","End","End","End","End","End","End","End","End","End","End","End","End","End","End","End","End","End","End","End","End","End","End","End","End","End","End","End","End","End","End","End","End","End","End","End","End","End","End","End","End","End","End","End","End","End","End","End","End","End","End","End","End","End","End","End","End","End","End","End","End","End","End","End","End","End","End","End","End","End","End","End","End","End","End","End","End","End","End","End","End","End","End","End","End","End","End","End","End","End","End","End","End","End","End","End","End","End","End","End","End","End","End","End","End","End","End","End","End","End","End","End","End","End","End","End","End","End","End","End","End","End","End","End","End","End","End","End","End","End","End","End","End","End","End","End","End","End","End","End","End","End","End","End","End","End","End","End","End","End","End","End","End","End","End","End","End","End","End","End","End","End","End","End","End","End","End","End","End","End","End","End","End","End","End","End","End","End","End","End","End","End","End","End","End","End","End","End","End","End","End","End","End","End","End","End","End","End","End","End","End","End","End","End","End","End","End","End","End","End","End","End","End","End","End","End","End","End","End","End","End","End","End","End","End","End","End","End","End","End","End","End","End","End","End","End","End","End","End","End","End","End","End","End","End","End","End","End","End","End","End","End","End","End","End","End","End","End","End","End","End","End","End","End","End","End","End","End","End","End","End","End","End","End","End","End","End","End","End","End","End","End","End","End","End","End","End","End","End","End","End","End","End","End","End","End","End","End","End","End","End","End","End","End","End","End","End","End","End","End","End","End","End","End","End","End","End","End","End","End","End","End","End","End","End","End","End","End","End","End","End","End","End","End","End","End","End","End","End","End","End","End","End","End","End","End","End","End","End","End","End","End","End","End","End","End","End","End","End","End","End","End","End","End","End","End","End","End","End","End","End","End","End","End","End","End","End","End","End","End","End","End","End","End","End","End","End","End","End","End","End","End","End","End","End","End","End","End","End","End","End","End","End","End","End","End","End","End","End","End","End","End","End","End","End","End","End","End","End","End","End","End","End","End","End","End","End","End","End","End","End","End","End","End","End","End","End","End","End","End","End","End","End","End","End","End","End","End","End","End","End","End","End","End","End","End","End","End","End","End","End","End","End","End","End","End","End","End","End","End","End","End","End","End","End","End","End","End","End","End","End","End","End","End","End","End","End","End","End","End","End","End","End","End","End","End","End","End","End","End","End","End","End","End","End","End","End","End","End","End","End","End","End","End","End","End","End","End","End","End","End","End","End","End","End","End","End","End","End","End","End","End","End","End","End","End","End","End","End","End","End","End","End","End","End","End","End","End","End","End","End","End","End","End","End","End","End","End","End","End","End","End","End","End","End","End","End","End","End","End","End","End","End","End","End","End","End","End","End","End","End","End","End","End","End","End","End","End","End","End","End","End","End","End","End","End","End","End","End","End","End","End","End","End","End","End","End","End","End","End","End","End","End","End","End","End","End","End","End","End","End","End","End","End","End","End","End","End","End","End","End","End","End","End","End","End","End","End","End","End","End","End","End","End","End","End","End","End","End","End","End","End","End","End","End","End","End","End","End","End","End","End","End","End","End","End","End","End","End","End","End","End","End","End","End","End","End","End","End","End","End","End","End","End","End","End","End","End","End","End","End","End","End","End","End","End","End","End","End","End","End","End","End","End","End","End","End","End","End","End","End","End","End","End","End","End","End","End","End","End","End","End","End","End","End","End","End","End","End","End","End","End","End","End","End","End","End","End","End","End","End","End","End","End","End","End","End","End","End","End","End","End","End","End","End","End","End","End","End","End","End","End","End","End","End","End","End","End","End","End","End","End","End","End","End","End","End","End","End","End","End","End","End","End","End","End","End","End","End","End","End","End","End","End","End","End","End","End","End","End","End","End","End","End","End","End","End","End","End","End","End","End","End","End","End","End","End","End","End","End","End","End","End","End","End","End","End","End","End","End","End","End","End","End","End","End","End","End","End","End","End","End","End","End","End","End","End","End","End","End","End","End","End","End","End","End","End","End","End","End","End","End","End","End","End","End","End","End","End","End","End","End","End","End","End","End","End","End","End","End","End","End","End","End","End","End","End","End","End","End","End","End","End","End","End","End","End","End","End","End","End","End","End","End","End","End","End","End","End","End","End","End","End","End","End","End","End","End","End","End","End","End","End","End","End","End","End","End","End","End","End","End","End","End","End","End","End","End","End","End","End","End","End","End","End","End","End","End","End","End","End","End","End","End","End","End","End","End","End","End","End","End","End","End","End","End","End","End","End","End","End","End","End","End","End","End","End","End","End","End","End","End","End","End","End","End","End","End","End","End","End","End","End","End","End","End","End","End","End","End","End","End","End","End","End","End","End","End","End","End","End","End","End","End","End","End","End","End","End","End","End","End","End","End","End","End","End","End","End","End","End","End","End","End","End","End","End","End","End","End","End","End","End","End","End","End","End","End","End","End","End","End","End","End","End","End","End","End","End","End","End","End","End","End","End","End","End","End","End","End","End","End","End","End","End","End","End","End","End","End","End","End","End","End","End","End","End","End","End","End","End","End","End","End","End","End","End","End","End","End","End","End","End","End","End","End","End","End","End","End","End","End","End","End","End","End","End","End","End","End","End","End","End","End","End","End","End","End","End","End","End","End","End","End","End","End","End","End","End","End","End","End","End","End","End","End","End","End","End","End","End","End","End","End","End","End","End","End","End","End","End","End","End","End","End","End","End","End","End","End","End","End","End","End","End","End","End","End","End","End","End","End","End","End","End","End","End","End","End","End","End","End","End","End","End","End","End","End","End","End","End","End","End","End","End","End","End","End","End","End","End","End","End","End","End","End","End","End","End","End","End","End","End","End","End","End","End","End","End","End","End","End","End","End","End","End","End","End","End","End","End","End","End","End","End","End","End","End","End","End","End","End","End","End","End","End","End","End","End","End","End","End","End","End","End","End","End","End","End","End","End","End","End","End","End","End","End","End","End","End","End","End","End","End","End","End","End","End","End","End","End","End","End","End","End","End","End","End","End","End","End","End","End","End","End","End","End","End","End","End","End","End","End","End","End","End","End","End","End","End","End","End","End","End","End","End","End","End","End","End","End","End","End","End","End","End","End","End","End","End","End","End","End","End","End","End","End","End","End","End","End","End","End","End","End","End","End","End","End","End","End","End","End","End","End","End","End","End","End","End","End","End","End","End","End","End","End","End","End","End","End","End","End","End","End","End","End","End","End","End","End","End","End","End","End","End","End","End","End","End","End","End","End","End","End","End","End","End","End","End","End","End","End","End","End","End","End","End","End","End","End","End","End","End","End","End","End","End","End","End","End","End","End","End","End","End","End","End","End","End","End","End","End","End","End","End","End","End","End","End","End","End","End","End","End","End","End","End","End","End","End","End","End","End","End","End","End","End","End","End","End","End","End","End","End","End","End","End","End","End","End","End","End","End","End","End","End","End","End","End","End","End","End","End","End","End","End","End","End","End","End","End","End","End","End","End","End","End","End","End","End","End","End","End","End","End","End","End","End","End","End","End","End","End","End","End","End","End","End","End","End","End","End","End","End","End","End","End","End","End","End","End","End","End","End","End","End","End","End","End","End","End","End","End","End","End","End","End","End","End","End","End","End","End","End","End","End","End","End","End","End","End","End","End","End","End","End","End","End","End","End","End","End","End","End","End","End","End","End","End","End","End","End","End","End","End","End","End","End","End","End","End","End","End","End","End","End","End","End","End","End","End","End","End","End","End","End","End","End","End","End","End","End","End","End","End","End","End","End","End","End","End","End","End","End","End","End","End","End","End","End","End","End","End","End","End","End","End","End","End","End","End","End","End","End","End","End","End","End","End","End","End","End","End","End","End","End","End","End","End","End","End","End","End","End","End","End","End","End","End","End","End","End","End","End","End","End","End","End","End","End","End","End","End","End","End","End","End","End","End","End","End","End","End","End","End","End","End","End","End","End","End","End","End","End","End","End","End","End","End","End","End","End","End","End","End","End","End","End","End","End","End","End","End","End","End","End","End","End","End","End","End","End","End","End","End","End","End","End","End","End","End","End","End","End","End","End","End","End","End","End","End","End","End","End","End","End","End","End","End","End","End","End","End","End","End","End","End","End","End","End","End","End","End","End","End","End","End","End","End","End","End","End","End","End","End","End","End","End","End","End","End","End","End","End","End","End","End","End","End","End","End","End","End","End","End","End","End","End","End","End","End","End","End","End","End","End","End","End","End","End","End","End","End","End","End","End","End","End","End","End","End","End","End","End","End","End","End","End","End","End","End","End","End","End","End","End","End","End","End","End","End","End","End","End","End","End","End","End","End","End","End","End","End","End","End","End","End","End","End","End","End","End","End","End","End","End","End","End","End","End","End","End","End","End","End","End","End","End","End","End","End","End","End","End","End","End","End","End","End","End","End","End","End","End","End","End","End","End","End","End","End","End","End","End","End","End","End","End","End","End","End","End","End","End","End","End","End","End","End","End","End","End","End","End","End","End","End","End","End","End","End","End","End","End","End","End","End","End","End","End","End","End","End","End","End","End","End","End","End","End","End","End","End","End","End","End","End","End","End","End","End","End","End","End","End","End","End","End","End","End","End","End","End","End","End","End","End","End","End","End","End","End","End","End","End","End","End","End","End","End","End","End","End","End","End","End","End","End","End","End","End","End","End","End","End","End","End","End","End","End","End","End","End","End","End","End","End","End","End","End","End","End","End","End","End","End","End","End","End","End","End","End","End","End","End","End","End","End","End","End","End","End","End","End","End","End","End","End","End","End","End","End","End","End","End","End","End","End","End","End","End","End","End","End","End","End","End","End","End","End","End","End","End","End","End","End","End","End","End","End","End","End","End","End","End","End","End","End","End","End","End","End","End","End","End","End","End","End","End","End","End","End","End","End","End","End","End","End","End","End","End","End","End","End","End","End","End","End","End","End","End","End","End","End","End","End","End","End","End","End","End","End","End","End","End","End","End","End","End","End","End","End","End","End","End","End","End","End","End","End","End","End","End","End","End","End","End","End","End","End","End","End","End","End","End","End","End","End","End","End","End","End","End","End","End","End","End","End","End","End","End","End","End","End","End","End","End","End","End","End","End","End","End","End","End","End","End","End","End","End","End","End","End","End","End","End","End","End","End","End","End","End","End","End","End","End","End","End","End","End","End","End","End","End","End","End","End","End","End","End","End","End","End","End","End","End","End","End","End","End","End","End","End","End","End","End","End","End","End","End","End","End","End","End","End","End","End","End","End","End","End","End","End","End","End","End","End","End","End","End","End","End","End","End","End","End","End","End","End","End","End","End","End","End","End","End","End","End","End","End","End","End","End","End","End","End","End","End","End","End","End","End","End","End","End","End","End","End","End","End","End","End","End","End","End","End","End","End","End","End","End","End","End","End","End","End","End","End","End","End","End","End","End","End","End","End","End","End","End","End","End","End","End","End","End","End","End","End","End","End","End","End","End","End","End","End","End","End","End","End","End","End","End","End","End","End","End","End","End","End","End","End","End","End","End","End","End","End","End","End","End","End","End","End","End","End","End","End","End","End","End","End","End","End","End","End","End","End","End","End","End","End","End","End","End","End","End","End","End","End","End","End","End","End","End","End","End","End","End","End","End","End","End","End","End","End","End","End","End","End","End","End","End","End","End","End","End","End","End","End","End","End","End","End","End","End","End","End","End","End","End","End","End","End","End","End","End","End","End","End","End","End","End","End","End","End","End","End","End","End","End","End","End","End","End","End","End","End","End","End","End","End","End","End","End","End","End","End","End","End","End","End","End","End","End","End","End","End","End","End","End","End","End","End","End","End","End","End","End","End","End","End","End","End","End","End","End","End","End","End","End","End","End","End","End","End","End","End","End","End","End","End","End","End","End","End","End","End","End","End","End","End","End","End","End","End","End","End","End","End","End","End","End","End","End","End","End","End","End","End","End","End","End","End","End","End","End","End","End","End","End","End","End","End","End","End","End","End","End","End","End","End","End","End","End","End","End","End","End","End","End","End","End","End","End","End","End","End","End","End","End","End","End","End","End","End","End","End","End","End","End","End","End","End","End","End","End","End","End","End","End","End","End","End","End","End","End","End","End","End","End","End","End","End","End","End","End","End","End","End","End","End","End","End","End","End","End","End","End","End","End","End","End","End","End","End","End","End","End","End","End","End","End","End","End","End","End","End","End","End","End","End","End","End","End","End","End","End","End","End","End","End","End","End","End","End","End","End","End","End","End","End","End","End","End","End","End","End","End","End","End","End","End","End","End","End","End","End","End","End","End","End","End","End","End","End","End","End","End","End","End","End","End","End","End","End","End","End","End","End","End","End","End","End","End","End","End","End","End","End","End","End","End","End","End","End","End","End","End","End","End","End","End","End","End","End","End","End","End","End","End","End","End","End","End","End","End","End","End","End","End","End","End","End","End","End","End","End","End","End","End","End","End","End","End","End","End","End","End","End","End","End","End","End","End","End","End","End","End","End","End","End","End","End","End","End","End","End","End","End","End","End","End","End","End","End","End","End","End","End","End","End","End","End","End","End","End","End","End","End","End","End","End","End","End","End","End","End","End","End","End","End","End","End","End","End","End","End","End","End","End","End","End","End","End","End","End","End","End","End","End","End","End","End","End","End","End","End","End","End","End","End","End","End","End","End","End","End","End","End","End","End","End","End","End","End","End","End","End","End","End","End","End","End","End","End","End","End","End","End","End","End","End","End","End","End","End","End","End","End","End","End","End","End","End","End","End","End","End","End","End","End","End","End","End","End","End","End","End","End","End","End","End","End","End","End","End","End","End","End","End","End","End","End","End","End","End","End","End","End","End","End","End","End","End","End","End","End","End","End","End","End","End","End","End","End","End","End","End","End","End","End","End","End","End","End","End","End","End","End","End","End","End","End","End","End","End","End","End","End","End","End","End","End","End","End","End","End","End","End","End","End","End","End","End","End","End","End","End","End","End","End","End","End","End","End","End","End","End","End","End","End","End","End","End","End","End","End","End","End","End","End","End","End","End","End","End","End","End","End","End","End","End","End","End","End","End","End","End","End","End","End","End","End","End","End","End","End","End","End","End","End","End","End","End","End","End","End","End","End","End","End","End","End","End","End","End","End","End","End","End","End","End","End","End","End","End","End","End","End","End","End","End","End","End","End","End","End","End","End","End","End","End","End","End","End","End","End","End","End","End","End","End","End","End","End","End","End","End","End","End","End","End","End","End","End","End","End","End","End","End","End","End","End","End","End","End","End","End","End","End","End","End","End","End","End","End","End","End","End","End","End","End","End","End","End","End","End","End","End","End","End","End","End","End","End","End","End","End","End","End","End","End","End","End","End","End","End","End","End","End","End","End","End","End","End","End","End","End","End","End","End","End","End","End","End","End","End","End","End","End","End","End","End","End","End","End","End","End","End","End","End","End","End","End","End","End","End","End","End","End","End","End","End","End","End","End","End","End","End","End","End","End","End","End","End","End","End","End","End","End","End","End","End","End","End","End","End","End","End","End","End","End","End","End","End","End","End","End","End","End","End","End","End","End","End","End","End","End","End","End","End","End","End","End","End","End","End","End","End","End","End","End","End","End","End","End","End","End","End","End","End","End","End","End","End","End","End","End","End","End","End","End","End","End","End","End","End","End","End","End","End","End","End","End","End","End","End","End","End","End","End","End","End","End","End","End","End","End","End","End","End","End","End","End","End","End","End","End","End","End","End","End","End","End","End","End","End","End","End","End","End","End","End","End","End","End","End","End","End","End","End","End","End","End","End","End","End","End","End","End","End","End","End","End","End","End","End","End","End","End","End","End","End","End","End","End","End","End","End","End","End","End","End","End","End","End","End","End","End","End","End","End","End","End","End","End","End","End","End","End","End","End","End","End","End","End","End","End","End","End","End","End","End","End","End","End","End","End","End","End","End","End","End","End","End","End","End","End","End","End","End","End","End","End","End","End","End","End","End","End","End","End","End","End","End","End","End","End","End","End","End","End","End","End","End","End","End","End","End","End","End","End","End","End","End","End","End","End","End","End","End","End","End","End","End","End","End","End","End","End","End","End","End","End","End","End","End","End","End","End","End","End","End","End","End","End","End","End","End","End","End","End","End","End","End","End","End","End","End","End","End","End","End","End","End","End","End","End","End","End","End","End","End","End","End","End","End","End","End","End","End","End","End","End","End","End","End","End","End","End","End","End","End","End","End","End","End","End","End","End","End","End","End","End","End","End","End","End","End","End","End","End","End","End","End","End","End","End","End","End","End","End","End","End","End","End","End","End","End","End","End","End","End","End","End","End","End","End","End","End","End","End","End","End","End","End","End","End","End","End","End","End","End","End","End","End","End","End","End","End","End","End","End","End","End","End","End","End","End","End","End","End","End","End","End","End","End","End","End","End","End","End","End","End","End","End","End","End","End","End","End","End","End","End","End","End","End","End","End","End","End","End","End","End","End","End","End","End","End","End","End","End","End","End","End","End","End","End","End","End","End","End","End","End","End","End","End","End","End","End","End","End","End","End","End","End","End","End","End","End","End","End","End","End","End","End","End","End","End","End","End","End","End","End","End","End","End","End","End","End","End","End","End","End","End","End","End","End","End","End","End","End","End","End","End","End","End","End","End","End","End","End","End","End","End","End","End","End","End","End","End","End","End","End","End","End","End","End","End","End","End","End","End","End","End","End","End","End","End","End","End","End","End","End","End","End","End","End","End","End","End","End","End","End","End","End","End","End","End","End","End","End","End","End","End","End","End","End","End","End","End","End","End","End","End","End","End","End","End","End","End","End","End","End","End","End","End","End","End","End","End","End","End","End","End","End","End","End","End","End","End","End","End","End","End","End","End","End","End","End","End","End","End","End","End","End","End","End","End","End","End","End","End","End","End","End","End","End","End","End","End","End","End","End","End","End","End","End","End","End","End","End","End","End","End","End","End","End","End","End","End","End","End","End","End","End","End","End","End","End","End","End","End","End","End","End","End","End","End","End","End","End","End","End","End","End","End","End","End","End","End","End","End","End","End","End","End","End","End","End","End","End","End","End","End","End","End","End","End","End","End","End","End","End","End","End","End","End","End","End","End","End","End","End","End","End","End","End","End","End","End","End","End","End","End","End","End","End","End","End","End","End","End","End","End","End","End","End","End","End","End","End","End","End","End","End","End","End","End","End","End","End","End","End","End","End","End","End","End","End","End","End","End","End","End","End","End","End","End","End","End","End","End","End","End","End","End","End","End","End","End","End","End","End","End","End","End","End","End","End","End","End","End","End","End","End","End","End","End","End","End","End","End","End","End","End","End","End","End","End","End","End","End","End","End","End","End","End","End","End","End","End","End","End","End","End","End","End","End","End","End","End","End","End","End","End","End","End","End","End","End","End","End","End","End","End","End","End","End","End","End","End","End","End","End","End","End","End","End","End","End","End","End","End","End","End","End","End","End","End","End","End","End","End","End","End","End","End","End","End","End","End","End","End","End","End","End","End","End","End","End","End","End","End","End","End","End","End","End","End","End","End","End","End","End","End","End","End","End","End","End","End","End","End","End","End","End","End","End","End","End","End","End","End","End","End","End","End","End","End","End","End","End","End","End","End","End","End","End","End","End","End","End","End","End","End","End","End","End","End","End","End","End","End","End","End","End","End","End","End","End","End","End","End","End","End","End","End","End","End","End","End","End","End","End","End","End","End","End","End","End","End","End","End","End","End","End","End","End","End","End","End","End","End","End","End","End","End","End","End","End","End","End","End","End","End","End","End","End","End","End","End","End","End","End","End","End","End","End","End","End","End","End","End","End","End","End","End","End","End","End","End","End","End","End","End","End","End","End","End","End","End","End","End","End","End","End","End","End","End","End","End","End","End","End","End","End","End","End","End","End","End","End","End","End","End","End","End","End","End","End","End","End","End","End","End","End","End","End","End","End","End","End","End","End","End","End","End","End","End","End","End","End","End","End","End","End","End","End","End","End","End","End","End","End","End","End","End","End","End","End","End","End","End","End","End","End","End","End","End","End","End","End","End","End","End","End","End","End","End","End","End","End","End","End","End","End","End","End","End","End","End","End","End","End","End","End","End","End","End","End","End","End","End","End","End","End","End","End","End","End","End","End","End","End","End","End","End","End","End","End","End","End","End","End","End","End","End","End","End","End","End","End","End","End","End","End","End","End","End","End","End","End","End","End","End","End","End","End","End","End","End","End","End","End","End","End","End","End","End","End","End","End","End","End","End","End","End","End","End","End","End","End","End","End","End","End","End","End","End","End","End","End","End","End","End","End","End","End","End","End","End","End","End","End","End","End","End","End","End","End","End","End","End","End","End","End","End","End","End","End","End","End","End","End","End","End","End","End","End","End","End","End","End","End","End","End","End","End","End","End","End","End","End","End","End","End","End","End","End","End","End","End","End","End","End","End","End","End","End","End","End","End","End","End","End","End","End","End","End","End","End","End","End","End","End","End","End","End","End","End","End","End","End","End","End","End","End","End","End","End","End","End","End","End","End","End","End","End","End","End","End","End","End","End","End","End","End","End","End","End","End","End","End","End","End","End","End","End","End","End","End","End","End","End","End","End","End","End","End","End","End","End","End","End","End","End","End","End","End","End","End","End","End","End","End","End","End","End","End","End","End","End","End","End","End","End","End","End","End","End","End","End","End","End","End","End","End","End","End","End","End","End","End","End","End","End","End","End","End","End","End","End","End","End","End","End","End","End","End","End","End","End","End","End","End","End","End","End","End","End","End","End","End","End","End","End","End","End","End","End","End","End","End","End","End","End","End","End","End","End","End","End","End","End","End","End","End","End","End","End","End","End","End","End","End","End","End","End","End","End","End","End","End","End","End","End","End","End","End","End","End","End","End","End","End","End","End","End","End","End","End","End","End","End","End","End","End","End","End","End","End","End","End","End","End","End","End","End","End","End","End","End","End","End","End","End","End","End","End","End","End","End","End","End","End","End","End","End","End","End","End","End","End","End","End","End","End","End","End","End","End","End","End","End","End","End","End","End","End","End","End","End","End","End","End","End","End","End","End","End","End","End","End","End","End","End","End","End","End","End","End","End","End","End","End","End","End","End","End","End","End","End","End","End","End","End","End","End","End","End","End","End","End","End","End","End","End","End","End","End","End","End","End","End","End","End","End","End","End","End","End","End","End","End","End","End","End","End","End","End","End","End","End","End","End","End","End","End","End","End","End","End","End","End","End","End","End","End","End","End","End","End","End","End","End","End","End","End","End","End","End","End","End","End","End","End","End","End","End","End","End","End","End","End","End","End","End","End","End","End","End","End","End","End","End","End","End","End","End","End","End","End","End","End","End","End","End","End","End","End","End","End","End","End","End","End","End","End","End","End","End","End","End","End","End","End","End","End","End","End","End","End","End","End","End","End","End","End","End","End","End","End","End","End","End","End","End","End","End","End","End","End","End","End","End","End","End","End","End","End","End","End","End","End","End","End","End","End","End","End","End","End","End","End","End","End","End","End","End","End","End","End","End","End","End","End","End","End","End","End","End","End","End","End","End","End","End","End","End","End","End","End","End","End","End","End","End","End","End","End","End","End","End","End","End","End","End","End","End","End","End","End","End","End","End","End","End","End","End","End","End","End","End","End","End","End","End","End","End","End","End","End","End","End","End","End","End","End","End","End","End","End","End","End","End","End","End","End","End","End","End","End","End","End","End","End","End","End","End","End","End","End","End","End","End","End","End","End","End","End","End","End","End","End","End","End","End","End","End","End","End","End","End","End","End","End","End","End","End","End","End","End","End","End","End","End","End","End","End","End","End","End","End","End","End","End","End","End","End","End","End","End","End","End","End","End","End","End","End","End","End","End","End","End","End","End","End","End","End","End","End","End","End","End","End","End","End","End","End","End","End","End","End","End","End","End","End","End","End","End","End","End","End","End","End","End","End","End","End","End","End","End","End","End","End","End","End","End","End","End","End","End","End","End","End","End","End","End","End","End","End","End","End","End","End","End","End","End","End","End","End","End","End","End","End","End","End","End","End","End","End","End","End","End","End","End","End","End","End","End","End","End","End","End","End","End","End","End","End","End","End","End","End","End","End","End","End","End","End","End","End","End","End","End","End","End","End","End","End","End","End","End","End","End","End","End","End","End","End","End","End","End","End","End","End","End","End","End","End","End","End","End","End","End","End","End","End","End","End","End","End","End","End","End","End","End","End","End","End","End","End","End","End","End","End","End","End","End","End","End","End","End","End","End","End","End","End","End","End","End","End","End","End","End","End","End","End","End","End","End","End","End"]

{"sheet":"Матрица рисков","index":3,"n_rows":56,"n_cols":9,"rows_kept":56,"cut":false,"hidden":false,"merged":[[25,6,26,6],[25,5,26,5],[25,3,25,4],[8,1,12,1],[25,1,25,2]]}
[{"$f":"MdlTle","v":"Инструмент быстрой оценки риска (БОР)"}]
[{"$f":"MID(CELL(\"filename\",A1),FIND(\"]\",CELL(\"filename\",A1))+1,255)","v":"Матрица рисков"}]
[]
[]
[]
[]
[null,"Рейтинг вероятности",null,null,"Очень низкий","Низкий","Умеренный","Высокий","Очень высокий"]
[null,"Оценка рейтинга вероятности",null,null,"0 - 2","2 - 4","4 - 6","6 - 8","8 - 10"]
[null,"Серьезность\nОценка среднего уровня серьезности (основанная на ответах об уязвимости, воздействия и ответных мерах)","Незначительный","0 - 10","VL1","VL2","L3","L4","M5"]
[null,null,"Легкий","11 - 25","VL2","L3","L4","M5","M6"]
[null,null,"Умеренный","26 - 50","L3","L4","M5","M6","H7"]
[null,null,"Серьезный","51 - 75","L4","M5","M6","H7","H8"]
[null,null,"Катастрофический","76 - 100","M5","M6","H7","H8","VH9"]
[]
[]
[null,"Справочник о вероятностях"]
[null,"Уровень","Определение, основанное на вероятности",null,null,null,"Определение, основанное на исторических данных"]
[null,"Очень высокий","Это почти наверняка произойдет, хотя бы один раз",null,null,null,"Произошло 3 или более раз за последние 5 лет"]
[null,"Высокий","Разумная вероятность появления, хотя бы один раз",null,null,null,"Произошло дважды за последние 5 лет"]
[null,"Умеренный","Может произойти по крайней мере один раз",null,null,null,"Произошло один раз за последние 5 лет"]
[null,"Низкий","Не ожидается",null,null,null,"Может произойти и произошло один раз за последние 10 лет"]
[null,"Очень низкий","Произойдет только в исключительных обстоятельствах",null,null,null,"Может произойти только в исключительных обстоятельствах и произошло один раз за последние 20 лет"]
[]
["Risk matrix table"]
[]
[null,"Severity",null,"Likelihood ranking",null,"Ranking","Ranking reference"]
[null,"Lower Bound","Upper Bound","Lower bound","Upper bound"]
[null,-100,0,0,0,0,"VL1"]
[null,0.1,10,0,2,1,"VL1"]
[null,0.1,10,2.1,4,2,"VL2"]
[null,0.1,10,4.0999999999999996,6,3,"L3"]
[null,0.1,10,6.1,8,4,"L4"]
[null,0.1,10,8.1,10,5,"M5"]
[null,11,25,0,2,6,"VL2"]
[null,11,25,2.1,4,7,"L3"]
[null,11,25,4.0999999999999996,6,8,"L4"]
[null,11,25,6.1,8,9,"M5"]
[null,11,25,8.1,10,10,"M6"]
[null,26,50,0,2,11,"L3"]
[null,26,50,2.1,4,12,"L4"]
[null,26,50,4.0999999999999996,6,13,"M5"]
[null,26,50,6.1,8,14,"M6"]
[null,26,50,8.1,10,15,"H7"]
[null,51,75,0,2,16,"L4"]
[null,51,75,2.1,4,17,"M5"]
[null,51,75,4.0999999999999996,6,18,"M6"]
[null,51,75,6.1,8,19,"H7"]
[null,51,75,8.1,10,20,"H8"]
[null,76,100,0,2,21,"M5"]
[null,76,100,2.1,4,22,"M6"]
[null,76,100,4.0999999999999996,6,23,"H7"]
[null,76,100,6.1,8,24,"H8"]
[null,76,100,8.1,10,25,"VH9"]
[]
[]
["Конец"]

{"sheet":"Информация","index":4,"n_rows":24,"n_cols":3,"rows_kept":24,"cut":false,"hidden":false,"merged":[]}
[{"$f":"MdlTle","v":"Инструмент быстрой оценки риска (БОР)"}]
[{"$f":"MID(CELL(\"filename\",A1),FIND(\"]\",CELL(\"filename\",A1))+1,255)","v":"Информация"}]
[]
[]
[]
[]
[]
[]
[]
[]
[]
[]
[]
[]
[null,null,"Местоположение/Регион/Название:"]
[]
[null,null,"Описание (включая исследуемый (е) объект (ы)): "]
[]
[]
[null,null,"Эксперт (т.е. лицо, выполняющее данную оценку риска): "]
[]
[null,null,"Дата завершения: "]
[]
[null,null,"Дата обзора/версия: "]

{"sheet":"Предположения","index":5,"n_rows":162,"n_cols":6,"rows_kept":162,"cut":false,"hidden":false,"merged":[]}
[{"$f":"MdlTle","v":"Инструмент быстрой оценки риска (БОР)"}]
[{"$f":"MID(CELL(\"filename\",A1),FIND(\"]\",CELL(\"filename\",A1))+1,255)","v":"Предположения"}]
[]
[]
["Общие предположения"]
[]
[]
[null,"Пропорция оценки рейтинга вероятности",null,"%",null,0.5]
[null,"Максимальный балл/оценка",null,"#",null,10]
[null,"Уязвимость",null,"%",null,0.25]
[]
["Рейтинги и баллы/оценки"]
[]
[null,"Оценки воздействия"]
[null,"Незначительно",null,"#",null,0]
[null,"Крайне маловероятно",null,"#",null,1]
[null,"Очень маловероятно",null,"#",null,2]
[null,"Маловероятно",null,"#",null,3]
[null,"Невероятно",null,"#",null,4]
[null,"Возможно",null,"#",null,5]
[null,"Вероятно",null,"#",null,6]
[null,"Вполне вероятно",null,"#",null,7]
[null,"Очень вероятно",null,"#",null,8]
[null,"Чрезвычайно вероятно",null,"#",null,9]
[null,"Неизбежно",null,"#",null,10]
[]
[null,"Оценки уязвимости"]
[null,"Незначительно",null,"#",null,0]
[null,"Крайне маловероятно",null,"#",null,1]
[null,"Очень маловероятно",null,"#",null,2]
[null,"Маловероятно",null,"#",null,3]
[null,"Невероятно",null,"#",null,4]
[null,"Возможно",null,"#",null,5]
[null,"Вероятно",null,"#",null,6]
[null,"Вполне вероятно",null,"#",null,7]
[null,"Очень вероятно",null,"#",null,8]
[null,"Чрезвычайно вероятно",null,"#",null,9]
[null,"Неизбежно",null,"#",null,10]
[]
[null,"Оценка предпринятых мер"]
[null,"Кол-во принимаемых мер отсутствует",null,"#",null,0]
[null,"Кол-во принимаемых мер чрезвычайно мало",null,"#",null,1]
[null,"Кол-во принимаемых мер очень мало",null,"#",null,2]
[null,"Кол-во принимаемых мер мало",null,"#",null,3]
[null,"Некоторые принимаемые меры осуществляются",null,"#",null,4]
[null,"Кол-во принимаемых мер разумно",null,"#",null,5]
[null,"Хороший уровень принимаемых мер",null,"#",null,6]
[null,"Высокий уровень принимаемых мер",null,"#",null,7]
[null,"Очень высокий уровень принимаемых мер",null,"#",null,8]
[null,"Масштабные меры осуществляются",null,"#",null,9]
[null,"Полный контроль над бедствием",null,"#",null,10]
[]
["Выпадающее меню"]
[]
[null,"Угрозы"]
[null,"Основные геофизические угрозы"]
[null,"Землетрясение"]
[null,"Движение масс"]
[null,"Вулканическая активность"]
[]
[null,"Основные гидрологические угрозы"]
[null,"Наводнение"]
[null,"Оползень"]
[null,"Волновое воздействие"]
[]
[null,"Основные метеорологические угрозы"]
[null,"Конвективный шторм"]
[null,"Внетропический циклон"]
[null,"Экстремальная температура"]
[null,"Туман"]
[null,"Тропический циклон"]
[]
[null,"Основные климатологические угрозы"]
[null,"Засуха"]
[null,"Прорыв ледниковых озер"]
[null,"Случайный лесной пожар"]
[]
[null,"Основные биологические угрозы"]
[null,"Инцидент с животными"]
[null,"Эпидемия (болезнь)"]
[null,"Заражение насекомыми-паразитами"]
[]
[null,"Основные внеземные угрозы"]
[null,"Воздействие на землю или воду"]
[null,"Космическая погода"]
[]
[null,"Основные антропогенные угрозы"]
[null,"Технологическая угроза"]
[null,"Химическая и радиологическая угроза"]
[null,"Транспортные происшествия"]
[]
[null,"Другие основные угрозы (определяется пользователем)"]
[null,"Вариант 1"]
[null,"Вариант 2"]
[null,"Вариант 3"]
[null,"Вариант 4"]
[]
[]
[null,"Опасные события"]
[null,"Взрыв в воздухе",null,null,null,"Падение пепла"]
[null,"Падение пепла",null,null,null,"Пожар после события"]
[null,"Лавина/Снежная/Обломочная",null,null,null,"Движение земной поверхности"]
[null,"Авиакатастрофа",null,null,null,"Оползень после события"]
[null,"Бактериальное заболевание",null,null,null,"Лахар (грязевая лава)"]
[null,"Выброс химикатов",null,null,null,"Поток лавы"]
[null,"Береговая эрозия",null,null,null,"Сжижение"]
[null,"Прибрежное наводнение",null,null,null,"Пирокластический поток"]
[null,"Холодная волна (холодный атмосферный фронт)",null,null,null,"Цунами"]
[null,"Коллизия",null,null,null,"Лавина/Снежная/Обломочная"]
[null,"Сильный прямой штормовой ветер",null,null,null,"Прибрежное наводнение"]
[null,"Энергетические частицы",null,null,null,"Береговая эрозия"]
[null,"Экспансивная почва",null,null,null,"Оползень после события"]
[null,"Пожар после события",null,null,null,"Поток грязи/обвал/Селевой поток"]
[null,"Внезапное наводнение",null,null,null,"Экспансивная почва"]
[null,"Лесной пожар",null,null,null,"Внезапное наводнение"]
[null,"Заморозки",null,null,null,"Наводнение от ледового затора"]
[null,"Грибковая болезнь",null,null,null,"Речное наводнение"]
[null,"Геомагнитная буря",null,null,null,"Волны-убийцы"]
[null,"Движение земной поверхности",null,null,null,"Сейши (стоячие волны)"]
[null,"Град",null,null,null,"Обрушение/проседание грунта"]
[null,"Аномальная жара",null,null,null,"Холодная волна (холодный атмосферный фронт)"]
[null,"Наводнение от ледового затора",null,null,null,"Сильный прямой штормовой ветер"]
[null,"Промышленная катастрофа",null,null,null,"Заморозки"]
[null,"Промышленный взрыв",null,null,null,"Град"]
[null,"Лахар (грязевая лава)",null,null,null,"Аномальная жара"]
[null,"Возгорание зарослей/кустов/пастбищ",null,null,null,"Молния"]
[null,"Оползень после события",null,null,null,"Дождь"]
[null,"Поток лавы",null,null,null,"Песчаная буря/Пылевая буря"]
[null,"Молния",null,null,null,"Снег/лед"]
[null,"Сжижение",null,null,null,"Штормовая волна"]
[null,"Авария в шахте",null,null,null,"Торнадо"]
[null,"Поток грязи/обвал/Селевой поток",null,null,null,"Ветер"]
[null,"Судоходное происшествие",null,null,null,"Метель/снежная буря"]
[null,"Утечка нефти",null,null,null,"Лесной пожар"]
[null,"Паразитарная болезнь",null,null,null,"Возгорание зарослей/кустов/пастбищ"]
[null,"Отключение электроэнергии",null,null,null,"Обвал грунта"]
[null,"Прионная болезнь",null,null,null,"Бактериальное заболевание"]
[null,"Пирокластический поток",null,null,null,"Грибковая болезнь"]
[null,"Радиационное загрязнение (например ядерный инцидент)",null,null,null,"Паразитарная болезнь"]
[null,"Нарушение радиосвязи",null,null,null,"Прионная болезнь"]
[null,"Железнодорожная авария",null,null,null,"Вирусная болезнь"]
[null,"Дождь",null,null,null,"Взрыв в воздухе"]
[null,"Речное наводнение",null,null,null,"Коллизия"]
[null,"Автокатастрофа",null,null,null,"Энергетические частицы"]
[null,"Волны-убийцы",null,null,null,"Геомагнитная буря"]
[null,"Песчаная буря/Пылевая буря",null,null,null,"Нарушение радиосвязи"]
[null,"Сейши (стоячие волны)",null,null,null,"Ударная взрывная волна"]
[null,"Ударная взрывная волна",null,null,null,"Промышленная катастрофа"]
[null,"Обрушение/проседание грунта",null,null,null,"Обрушение здания"]
[null,"Снег/лед",null,null,null,"Отключение электроэнергии"]
[null,"Космическая катастрофа",null,null,null,"Пожар после события"]
[null,"Штормовая волна",null,null,null,"Промышленный взрыв"]
[null,"Обрушение здания",null,null,null,"Авария в шахте"]
[null,"Обвал грунта",null,null,null,"Выброс химикатов"]
[null,"Торнадо",null,null,null,"Утечка нефти"]
[null,"Цунами",null,null,null,"Радиационное загрязнение (например ядерный инцидент)"]
[null,"Вирусная болезнь",null,null,null,"Авиакатастрофа"]
[null,"Ветер",null,null,null,"Железнодорожная авария"]
[null,"Метель/снежная буря",null,null,null,"Автокатастрофа"]
[null,null,null,null,null,"Судоходное происшествие"]
[null,null,null,null,null,"Космическая катастрофа"]
["Конец"]

{"sheet":"Ввод данных об угрозах","index":6,"n_rows":54,"n_cols":14,"rows_kept":54,"cut":false,"hidden":false,"merged":[[4,1,5,1],[4,4,4,7],[4,2,5,2],[4,13,5,13],[4,3,5,3],[4,9,5,9],[4,12,5,12]]}
[{"$f":"MdlTle","v":"Инструмент быстрой оценки риска (БОР)"}]
[{"$f":"MID(CELL(\"filename\",A1),FIND(\"]\",CELL(\"filename\",A1))+1,255)","v":"Ввод данных об угрозах"}]
[]
[]
[null,"Группа угроз","Опасные события","Рейтинг вероятности","Оценка уязвимости",null,null,null,"Общая оценка уязвимости","Текущий уровень реагирования и предпринятые меры","Оценка рейтинга: Вероятность","Оценка рейтинга: Серьёзность","Результат матрицы рисков","Комментарии и обоснования"]
[null,null,null,null,"Инфраструктура","Производственные сектора","Основные или базовые услуги","Человеческие и социальные аспекты","1 (низкая) - 100 (высокая)",null,"1 (низкая) - 10 (высокая)","1 (низкий) - 100 (высокий)"]
[null,"H1 - Геофизические"]
[null,null,null,null,null,null,null,null,{"$f":"IFERROR((((INDEX(Предположения!$F$28:$F$38,MATCH(E8,Vulnerabilties,0))*Предположения!$F$10)+(INDEX(Предположения!$F$28:$F$38,MATCH(F8,Vulnerabilties,0))*Предположения!$F$10)+(INDEX(Предположения!$F$28:$F$38,MATCH(G8,Vulnerabilties,0))*Предположения!$F$10)+(INDEX(Предположения!$F$28:$F$38,MATCH(H8,Vulnerabilties,0))*Предположения!$F$10))*Предположения!$F$9),0)","v":0},null,{"$f":"IFERROR(INDEX(Предположения!$F$15:$F$25,MATCH(D8,Exposures,0)*Предположения!$F$8+(I8/Предположения!$F$9)*Предположения!$F$8),0)","v":0},{"$f":"IFERROR((K8*Предположения!$F$9)-(INDEX(Предположения!$F$41:$F$51,MATCH(J8,Levels_of_response,0))*Предположения!$F$9),0)","v":0},{"$f":"IF(L8=0,\"-\",IFERROR(INDEX('Матрица рисков'!$G$28:$G$53,MATCH(SUMPRODUCT(('Матрица рисков'!$B$28:$B$53<=L8)*('Матрица рисков'!$C$28:$C$53>=L8)*('Матрица рисков'!$D$28:$D$53<=K8)*('Матрица рисков'!$E$28:$E$53>=K8)*('Матрица рисков'!$F$28:$F$53)),'Матрица рисков'!$F$28:$F$53,0)),0))","v":"-"}]
[null,null,null,null,null,null,null,null,{"$f":"IFERROR((((INDEX(Предположения!$F$28:$F$38,MATCH(E9,Vulnerabilties,0))*Предположения!$F$10)+(INDEX(Предположения!$F$28:$F$38,MATCH(F9,Vulnerabilties,0))*Предположения!$F$10)+(INDEX(Предположения!$F$28:$F$38,MATCH(G9,Vulnerabilties,0))*Предположения!$F$10)+(INDEX(Предположения!$F$28:$F$38,MATCH(H9,Vulnerabilties,0))*Предположения!$F$10))*Предположения!$F$9),0)","v":0},null,{"$f":"IFERROR(INDEX(Предположения!$F$15:$F$25,MATCH(D9,Exposures,0)*Предположения!$F$8+(I9/Предположения!$F$9)*Предположения!$F$8),0)","v":0},{"$f":"IFERROR((K9*Предположения!$F$9)-(INDEX(Предположения!$F$41:$F$51,MATCH(J9,Levels_of_response,0))*Предположения!$F$9),0)","v":0},{"$f":"IF(L9=0,\"-\",IFERROR(INDEX('Матрица рисков'!$G$28:$G$53,MATCH(SUMPRODUCT(('Матрица рисков'!$B$28:$B$53<=L9)*('Матрица рисков'!$C$28:$C$53>=L9)*('Матрица рисков'!$D$28:$D$53<=K9)*('Матрица рисков'!$E$28:$E$53>=K9)*('Матрица рисков'!$F$28:$F$53)),'Матрица рисков'!$F$28:$F$53,0)),0))","v":"-"}]
[null,null,null,null,null,null,null,null,{"$f":"IFERROR((((INDEX(Предположения!$F$28:$F$38,MATCH(E10,Vulnerabilties,0))*Предположения!$F$10)+(INDEX(Предположения!$F$28:$F$38,MATCH(F10,Vulnerabilties,0))*Предположения!$F$10)+(INDEX(Предположения!$F$28:$F$38,MATCH(G10,Vulnerabilties,0))*Предположения!$F$10)+(INDEX(Предположения!$F$28:$F$38,MATCH(H10,Vulnerabilties,0))*Предположения!$F$10))*Предположения!$F$9),0)","v":0},null,{"$f":"IFERROR(INDEX(Предположения!$F$15:$F$25,MATCH(D10,Exposures,0)*Предположения!$F$8+(I10/Предположения!$F$9)*Предположения!$F$8),0)","v":0},{"$f":"IFERROR((K10*Предположения!$F$9)-(INDEX(Предположения!$F$41:$F$51,MATCH(J10,Levels_of_response,0))*Предположения!$F$9),0)","v":0},{"$f":"IF(L10=0,\"-\",IFERROR(INDEX('Матрица рисков'!$G$28:$G$53,MATCH(SUMPRODUCT(('Матрица рисков'!$B$28:$B$53<=L10)*('Матрица рисков'!$C$28:$C$53>=L10)*('Матрица рисков'!$D$28:$D$53<=K10)*('Матрица рисков'!$E$28:$E$53>=K10)*('Матрица рисков'!$F$28:$F$53)),'Матрица рисков'!$F$28:$F$53,0)),0))","v":"-"}]
[null,null,null,null,null,null,null,null,{"$f":"IFERROR((((INDEX(Предположения!$F$28:$F$38,MATCH(E11,Vulnerabilties,0))*Предположения!$F$10)+(INDEX(Предположения!$F$28:$F$38,MATCH(F11,Vulnerabilties,0))*Предположения!$F$10)+(INDEX(Предположения!$F$28:$F$38,MATCH(G11,Vulnerabilties,0))*Предположения!$F$10)+(INDEX(Предположения!$F$28:$F$38,MATCH(H11,Vulnerabilties,0))*Предположения!$F$10))*Предположения!$F$9),0)","v":0},null,{"$f":"IFERROR(INDEX(Предположения!$F$15:$F$25,MATCH(D11,Exposures,0)*Предположения!$F$8+(I11/Предположения!$F$9)*Предположения!$F$8),0)","v":0},{"$f":"IFERROR((K11*Предположения!$F$9)-(INDEX(Предположения!$F$41:$F$51,MATCH(J11,Levels_of_response,0))*Предположения!$F$9),0)","v":0},{"$f":"IF(L11=0,\"-\",IFERROR(INDEX('Матрица рисков'!$G$28:$G$53,MATCH(SUMPRODUCT(('Матрица рисков'!$B$28:$B$53<=L11)*('Матрица рисков'!$C$28:$C$53>=L11)*('Матрица рисков'!$D$28:$D$53<=K11)*('Матрица рисков'!$E$28:$E$53>=K11)*('Матрица рисков'!$F$28:$F$53)),'Матрица рисков'!$F$28:$F$53,0)),0))","v":"-"}]
[null,null,null,null,null,null,null,null,{"$f":"IFERROR((((INDEX(Предположения!$F$28:$F$38,MATCH(E12,Vulnerabilties,0))*Предположения!$F$10)+(INDEX(Предположения!$F$28:$F$38,MATCH(F12,Vulnerabilties,0))*Предположения!$F$10)+(INDEX(Предположения!$F$28:$F$38,MATCH(G12,Vulnerabilties,0))*Предположения!$F$10)+(INDEX(Предположения!$F$28:$F$38,MATCH(H12,Vulnerabilties,0))*Предположения!$F$10))*Предположения!$F$9),0)","v":0},null,{"$f":"IFERROR(INDEX(Предположения!$F$15:$F$25,MATCH(D12,Exposures,0)*Предположения!$F$8+(I12/Предположения!$F$9)*Предположения!$F$8),0)","v":0},{"$f":"IFERROR((K12*Предположения!$F$9)-(INDEX(Предположения!$F$41:$F$51,MATCH(J12,Levels_of_response,0))*Предположения!$F$9),0)","v":0},{"$f":"IF(L12=0,\"-\",IFERROR(INDEX('Матрица рисков'!$G$28:$G$53,MATCH(SUMPRODUCT(('Матрица рисков'!$B$28:$B$53<=L12)*('Матрица рисков'!$C$28:$C$53>=L12)*('Матрица рисков'!$D$28:$D$53<=K12)*('Матрица рисков'!$E$28:$E$53>=K12)*('Матрица рисков'!$F$28:$F$53)),'Матрица рисков'!$F$28:$F$53,0)),0))","v":"-"}]
[null,"H2 - Гидрологические"]
[null,null,null,null,null,null,null,null,{"$f":"IFERROR((((INDEX(Предположения!$F$28:$F$38,MATCH(E14,Vulnerabilties,0))*Предположения!$F$10)+(INDEX(Предположения!$F$28:$F$38,MATCH(F14,Vulnerabilties,0))*Предположения!$F$10)+(INDEX(Предположения!$F$28:$F$38,MATCH(G14,Vulnerabilties,0))*Предположения!$F$10)+(INDEX(Предположения!$F$28:$F$38,MATCH(H14,Vulnerabilties,0))*Предположения!$F$10))*Предположения!$F$9),0)","v":0},null,{"$f":"IFERROR(INDEX(Предположения!$F$15:$F$25,MATCH(D14,Exposures,0)*Предположения!$F$8+(I14/Предположения!$F$9)*Предположения!$F$8),0)","v":0},{"$f":"IFERROR((K14*Предположения!$F$9)-(INDEX(Предположения!$F$41:$F$51,MATCH(J14,Levels_of_response,0))*Предположения!$F$9),0)","v":0},{"$f":"IF(L14=0,\"-\",IFERROR(INDEX('Матрица рисков'!$G$28:$G$53,MATCH(SUMPRODUCT(('Матрица рисков'!$B$28:$B$53<=L14)*('Матрица рисков'!$C$28:$C$53>=L14)*('Матрица рисков'!$D$28:$D$53<=K14)*('Матрица рисков'!$E$28:$E$53>=K14)*('Матрица рисков'!$F$28:$F$53)),'Матрица рисков'!$F$28:$F$53,0)),0))","v":"-"}]
[null,null,null,null,null,null,null,null,{"$f":"IFERROR((((INDEX(Предположения!$F$28:$F$38,MATCH(E15,Vulnerabilties,0))*Предположения!$F$10)+(INDEX(Предположения!$F$28:$F$38,MATCH(F15,Vulnerabilties,0))*Предположения!$F$10)+(INDEX(Предположения!$F$28:$F$38,MATCH(G15,Vulnerabilties,0))*Предположения!$F$10)+(INDEX(Предположения!$F$28:$F$38,MATCH(H15,Vulnerabilties,0))*Предположения!$F$10))*Предположения!$F$9),0)","v":0},null,{"$f":"IFERROR(INDEX(Предположения!$F$15:$F$25,MATCH(D15,Exposures,0)*Предположения!$F$8+(I15/Предположения!$F$9)*Предположения!$F$8),0)","v":0},{"$f":"IFERROR((K15*Предположения!$F$9)-(INDEX(Предположения!$F$41:$F$51,MATCH(J15,Levels_of_response,0))*Предположения!$F$9),0)","v":0},{"$f":"IF(L15=0,\"-\",IFERROR(INDEX('Матрица рисков'!$G$28:$G$53,MATCH(SUMPRODUCT(('Матрица рисков'!$B$28:$B$53<=L15)*('Матрица рисков'!$C$28:$C$53>=L15)*('Матрица рисков'!$D$28:$D$53<=K15)*('Матрица рисков'!$E$28:$E$53>=K15)*('Матрица рисков'!$F$28:$F$53)),'Матрица рисков'!$F$28:$F$53,0)),0))","v":"-"}]
[null,null,null,null,null,null,null,null,{"$f":"IFERROR((((INDEX(Предположения!$F$28:$F$38,MATCH(E16,Vulnerabilties,0))*Предположения!$F$10)+(INDEX(Предположения!$F$28:$F$38,MATCH(F16,Vulnerabilties,0))*Предположения!$F$10)+(INDEX(Предположения!$F$28:$F$38,MATCH(G16,Vulnerabilties,0))*Предположения!$F$10)+(INDEX(Предположения!$F$28:$F$38,MATCH(H16,Vulnerabilties,0))*Предположения!$F$10))*Предположения!$F$9),0)","v":0},null,{"$f":"IFERROR(INDEX(Предположения!$F$15:$F$25,MATCH(D16,Exposures,0)*Предположения!$F$8+(I16/Предположения!$F$9)*Предположения!$F$8),0)","v":0},{"$f":"IFERROR((K16*Предположения!$F$9)-(INDEX(Предположения!$F$41:$F$51,MATCH(J16,Levels_of_response,0))*Предположения!$F$9),0)","v":0},{"$f":"IF(L16=0,\"-\",IFERROR(INDEX('Матрица рисков'!$G$28:$G$53,MATCH(SUMPRODUCT(('Матрица рисков'!$B$28:$B$53<=L16)*('Матрица рисков'!$C$28:$C$53>=L16)*('Матрица рисков'!$D$28:$D$53<=K16)*('Матрица рисков'!$E$28:$E$53>=K16)*('Матрица рисков'!$F$28:$F$53)),'Матрица рисков'!$F$28:$F$53,0)),0))","v":"-"}]
[null,null,null,null,null,null,null,null,{"$f":"IFERROR((((INDEX(Предположения!$F$28:$F$38,MATCH(E17,Vulnerabilties,0))*Предположения!$F$10)+(INDEX(Предположения!$F$28:$F$38,MATCH(F17,Vulnerabilties,0))*Предположения!$F$10)+(INDEX(Предположения!$F$28:$F$38,MATCH(G17,Vulnerabilties,0))*Предположения!$F$10)+(INDEX(Предположения!$F$28:$F$38,MATCH(H17,Vulnerabilties,0))*Предположения!$F$10))*Предположения!$F$9),0)","v":0},null,{"$f":"IFERROR(INDEX(Предположения!$F$15:$F$25,MATCH(D17,Exposures,0)*Предположения!$F$8+(I17/Предположения!$F$9)*Предположения!$F$8),0)","v":0},{"$f":"IFERROR((K17*Предположения!$F$9)-(INDEX(Предположения!$F$41:$F$51,MATCH(J17,Levels_of_response,0))*Предположения!$F$9),0)","v":0},{"$f":"IF(L17=0,\"-\",IFERROR(INDEX('Матрица рисков'!$G$28:$G$53,MATCH(SUMPRODUCT(('Матрица рисков'!$B$28:$B$53<=L17)*('Матрица рисков'!$C$28:$C$53>=L17)*('Матрица рисков'!$D$28:$D$53<=K17)*('Матрица рисков'!$E$28:$E$53>=K17)*('Матрица рисков'!$F$28:$F$53)),'Матрица рисков'!$F$28:$F$53,0)),0))","v":"-"}]
[null,null,null,null,null,null,null,null,{"$f":"IFERROR((((INDEX(Предположения!$F$28:$F$38,MATCH(E18,Vulnerabilties,0))*Предположения!$F$10)+(INDEX(Предположения!$F$28:$F$38,MATCH(F18,Vulnerabilties,0))*Предположения!$F$10)+(INDEX(Предположения!$F$28:$F$38,MATCH(G18,Vulnerabilties,0))*Предположения!$F$10)+(INDEX(Предположения!$F$28:$F$38,MATCH(H18,Vulnerabilties,0))*Предположения!$F$10))*Предположения!$F$9),0)","v":0},null,{"$f":"IFERROR(INDEX(Предположения!$F$15:$F$25,MATCH(D18,Exposures,0)*Предположения!$F$8+(I18/Предположения!$F$9)*Предположения!$F$8),0)","v":0},{"$f":"IFERROR((K18*Предположения!$F$9)-(INDEX(Предположения!$F$41:$F$51,MATCH(J18,Levels_of_response,0))*Предположения!$F$9),0)","v":0},{"$f":"IF(L18=0,\"-\",IFERROR(INDEX('Матрица рисков'!$G$28:$G$53,MATCH(SUMPRODUCT(('Матрица рисков'!$B$28:$B$53<=L18)*('Матрица рисков'!$C$28:$C$53>=L18)*('Матрица рисков'!$D$28:$D$53<=K18)*('Матрица рисков'!$E$28:$E$53>=K18)*('Матрица рисков'!$F$28:$F$53)),'Матрица рисков'!$F$28:$F$53,0)),0))","v":"-"}]
[null,"H3 - Метеорологические"]
[null,null,null,null,null,null,null,null,{"$f":"IFERROR((((INDEX(Предположения!$F$28:$F$38,MATCH(E20,Vulnerabilties,0))*Предположения!$F$10)+(INDEX(Предположения!$F$28:$F$38,MATCH(F20,Vulnerabilties,0))*Предположения!$F$10)+(INDEX(Предположения!$F$28:$F$38,MATCH(G20,Vulnerabilties,0))*Предположения!$F$10)+(INDEX(Предположения!$F$28:$F$38,MATCH(H20,Vulnerabilties,0))*Предположения!$F$10))*Предположения!$F$9),0)","v":0},null,{"$f":"IFERROR(INDEX(Предположения!$F$15:$F$25,MATCH(D20,Exposures,0)*Предположения!$F$8+(I20/Предположения!$F$9)*Предположения!$F$8),0)","v":0},{"$f":"IFERROR((K20*Предположения!$F$9)-(INDEX(Предположения!$F$41:$F$51,MATCH(J20,Levels_of_response,0))*Предположения!$F$9),0)","v":0},{"$f":"IF(L20=0,\"-\",IFERROR(INDEX('Матрица рисков'!$G$28:$G$53,MATCH(SUMPRODUCT(('Матрица рисков'!$B$28:$B$53<=L20)*('Матрица рисков'!$C$28:$C$53>=L20)*('Матрица рисков'!$D$28:$D$53<=K20)*('Матрица рисков'!$E$28:$E$53>=K20)*('Матрица рисков'!$F$28:$F$53)),'Матрица рисков'!$F$28:$F$53,0)),0))","v":"-"}]
[null,null,null,null,null,null,null,null,{"$f":"IFERROR((((INDEX(Предположения!$F$28:$F$38,MATCH(E21,Vulnerabilties,0))*Предположения!$F$10)+(INDEX(Предположения!$F$28:$F$38,MATCH(F21,Vulnerabilties,0))*Предположения!$F$10)+(INDEX(Предположения!$F$28:$F$38,MATCH(G21,Vulnerabilties,0))*Предположения!$F$10)+(INDEX(Предположения!$F$28:$F$38,MATCH(H21,Vulnerabilties,0))*Предположения!$F$10))*Предположения!$F$9),0)","v":0},null,{"$f":"IFERROR(INDEX(Предположения!$F$15:$F$25,MATCH(D21,Exposures,0)*Предположения!$F$8+(I21/Предположения!$F$9)*Предположения!$F$8),0)","v":0},{"$f":"IFERROR((K21*Предположения!$F$9)-(INDEX(Предположения!$F$41:$F$51,MATCH(J21,Levels_of_response,0))*Предположения!$F$9),0)","v":0},{"$f":"IF(L21=0,\"-\",IFERROR(INDEX('Матрица рисков'!$G$28:$G$53,MATCH(SUMPRODUCT(('Матрица рисков'!$B$28:$B$53<=L21)*('Матрица рисков'!$C$28:$C$53>=L21)*('Матрица рисков'!$D$28:$D$53<=K21)*('Матрица рисков'!$E$28:$E$53>=K21)*('Матрица рисков'!$F$28:$F$53)),'Матрица рисков'!$F$28:$F$53,0)),0))","v":"-"}]
[null,null,null,null,null,null,null,null,{"$f":"IFERROR((((INDEX(Предположения!$F$28:$F$38,MATCH(E22,Vulnerabilties,0))*Предположения!$F$10)+(INDEX(Предположения!$F$28:$F$38,MATCH(F22,Vulnerabilties,0))*Предположения!$F$10)+(INDEX(Предположения!$F$28:$F$38,MATCH(G22,Vulnerabilties,0))*Предположения!$F$10)+(INDEX(Предположения!$F$28:$F$38,MATCH(H22,Vulnerabilties,0))*Предположения!$F$10))*Предположения!$F$9),0)","v":0},null,{"$f":"IFERROR(INDEX(Предположения!$F$15:$F$25,MATCH(D22,Exposures,0)*Предположения!$F$8+(I22/Предположения!$F$9)*Предположения!$F$8),0)","v":0},{"$f":"IFERROR((K22*Предположения!$F$9)-(INDEX(Предположения!$F$41:$F$51,MATCH(J22,Levels_of_response,0))*Предположения!$F$9),0)","v":0},{"$f":"IF(L22=0,\"-\",IFERROR(INDEX('Матрица рисков'!$G$28:$G$53,MATCH(SUMPRODUCT(('Матрица рисков'!$B$28:$B$53<=L22)*('Матрица рисков'!$C$28:$C$53>=L22)*('Матрица рисков'!$D$28:$D$53<=K22)*('Матрица рисков'!$E$28:$E$53>=K22)*('Матрица рисков'!$F$28:$F$53)),'Матрица рисков'!$F$28:$F$53,0)),0))","v":"-"}]
[null,null,null,null,null,null,null,null,{"$f":"IFERROR((((INDEX(Предположения!$F$28:$F$38,MATCH(E23,Vulnerabilties,0))*Предположения!$F$10)+(INDEX(Предположения!$F$28:$F$38,MATCH(F23,Vulnerabilties,0))*Предположения!$F$10)+(INDEX(Предположения!$F$28:$F$38,MATCH(G23,Vulnerabilties,0))*Предположения!$F$10)+(INDEX(Предположения!$F$28:$F$38,MATCH(H23,Vulnerabilties,0))*Предположения!$F$10))*Предположения!$F$9),0)","v":0},null,{"$f":"IFERROR(INDEX(Предположения!$F$15:$F$25,MATCH(D23,Exposures,0)*Предположения!$F$8+(I23/Предположения!$F$9)*Предположения!$F$8),0)","v":0},{"$f":"IFERROR((K23*Предположения!$F$9)-(INDEX(Предположения!$F$41:$F$51,MATCH(J23,Levels_of_response,0))*Предположения!$F$9),0)","v":0},{"$f":"IF(L23=0,\"-\",IFERROR(INDEX('Матрица рисков'!$G$28:$G$53,MATCH(SUMPRODUCT(('Матрица рисков'!$B$28:$B$53<=L23)*('Матрица рисков'!$C$28:$C$53>=L23)*('Матрица рисков'!$D$28:$D$53<=K23)*('Матрица рисков'!$E$28:$E$53>=K23)*('Матрица рисков'!$F$28:$F$53)),'Матрица рисков'!$F$28:$F$53,0)),0))","v":"-"}]
[null,null,null,null,null,null,null,null,{"$f":"IFERROR((((INDEX(Предположения!$F$28:$F$38,MATCH(E24,Vulnerabilties,0))*Предположения!$F$10)+(INDEX(Предположения!$F$28:$F$38,MATCH(F24,Vulnerabilties,0))*Предположения!$F$10)+(INDEX(Предположения!$F$28:$F$38,MATCH(G24,Vulnerabilties,0))*Предположения!$F$10)+(INDEX(Предположения!$F$28:$F$38,MATCH(H24,Vulnerabilties,0))*Предположения!$F$10))*Предположения!$F$9),0)","v":0},null,{"$f":"IFERROR(INDEX(Предположения!$F$15:$F$25,MATCH(D24,Exposures,0)*Предположения!$F$8+(I24/Предположения!$F$9)*Предположения!$F$8),0)","v":0},{"$f":"IFERROR((K24*Предположения!$F$9)-(INDEX(Предположения!$F$41:$F$51,MATCH(J24,Levels_of_response,0))*Предположения!$F$9),0)","v":0},{"$f":"IF(L24=0,\"-\",IFERROR(INDEX('Матрица рисков'!$G$28:$G$53,MATCH(SUMPRODUCT(('Матрица рисков'!$B$28:$B$53<=L24)*('Матрица рисков'!$C$28:$C$53>=L24)*('Матрица рисков'!$D$28:$D$53<=K24)*('Матрица рисков'!$E$28:$E$53>=K24)*('Матрица рисков'!$F$28:$F$53)),'Матрица рисков'!$F$28:$F$53,0)),0))","v":"-"}]
[null,"H4 - Климатологические"]
[null,null,null,null,null,null,null,null,{"$f":"IFERROR((((INDEX(Предположения!$F$28:$F$38,MATCH(E26,Vulnerabilties,0))*Предположения!$F$10)+(INDEX(Предположения!$F$28:$F$38,MATCH(F26,Vulnerabilties,0))*Предположения!$F$10)+(INDEX(Предположения!$F$28:$F$38,MATCH(G26,Vulnerabilties,0))*Предположения!$F$10)+(INDEX(Предположения!$F$28:$F$38,MATCH(H26,Vulnerabilties,0))*Предположения!$F$10))*Предположения!$F$9),0)","v":0},null,{"$f":"IFERROR(INDEX(Предположения!$F$15:$F$25,MATCH(D26,Exposures,0)*Предположения!$F$8+(I26/Предположения!$F$9)*Предположения!$F$8),0)","v":0},{"$f":"IFERROR((K26*Предположения!$F$9)-(INDEX(Предположения!$F$41:$F$51,MATCH(J26,Levels_of_response,0))*Предположения!$F$9),0)","v":0},{"$f":"IF(L26=0,\"-\",IFERROR(INDEX('Матрица рисков'!$G$28:$G$53,MATCH(SUMPRODUCT(('Матрица рисков'!$B$28:$B$53<=L26)*('Матрица рисков'!$C$28:$C$53>=L26)*('Матрица рисков'!$D$28:$D$53<=K26)*('Матрица рисков'!$E$28:$E$53>=K26)*('Матрица рисков'!$F$28:$F$53)),'Матрица рисков'!$F$28:$F$53,0)),0))","v":"-"}]
[null,null,null,null,null,null,null,null,{"$f":"IFERROR((((INDEX(Предположения!$F$28:$F$38,MATCH(E27,Vulnerabilties,0))*Предположения!$F$10)+(INDEX(Предположения!$F$28:$F$38,MATCH(F27,Vulnerabilties,0))*Предположения!$F$10)+(INDEX(Предположения!$F$28:$F$38,MATCH(G27,Vulnerabilties,0))*Предположения!$F$10)+(INDEX(Предположения!$F$28:$F$38,MATCH(H27,Vulnerabilties,0))*Предположения!$F$10))*Предположения!$F$9),0)","v":0},null,{"$f":"IFERROR(INDEX(Предположения!$F$15:$F$25,MATCH(D27,Exposures,0)*Предположения!$F$8+(I27/Предположения!$F$9)*Предположения!$F$8),0)","v":0},{"$f":"IFERROR((K27*Предположения!$F$9)-(INDEX(Предположения!$F$41:$F$51,MATCH(J27,Levels_of_response,0))*Предположения!$F$9),0)","v":0},{"$f":"IF(L27=0,\"-\",IFERROR(INDEX('Матрица рисков'!$G$28:$G$53,MATCH(SUMPRODUCT(('Матрица рисков'!$B$28:$B$53<=L27)*('Матрица рисков'!$C$28:$C$53>=L27)*('Матрица рисков'!$D$28:$D$53<=K27)*('Матрица рисков'!$E$28:$E$53>=K27)*('Матрица рисков'!$F$28:$F$53)),'Матрица рисков'!$F$28:$F$53,0)),0))","v":"-"}]
[null,null,null,null,null,null,null,null,{"$f":"IFERROR((((INDEX(Предположения!$F$28:$F$38,MATCH(E28,Vulnerabilties,0))*Предположения!$F$10)+(INDEX(Предположения!$F$28:$F$38,MATCH(F28,Vulnerabilties,0))*Предположения!$F$10)+(INDEX(Предположения!$F$28:$F$38,MATCH(G28,Vulnerabilties,0))*Предположения!$F$10)+(INDEX(Предположения!$F$28:$F$38,MATCH(H28,Vulnerabilties,0))*Предположения!$F$10))*Предположения!$F$9),0)","v":0},null,{"$f":"IFERROR(INDEX(Предположения!$F$15:$F$25,MATCH(D28,Exposures,0)*Предположения!$F$8+(I28/Предположения!$F$9)*Предположения!$F$8),0)","v":0},{"$f":"IFERROR((K28*Предположения!$F$9)-(INDEX(Предположения!$F$41:$F$51,MATCH(J28,Levels_of_response,0))*Предположения!$F$9),0)","v":0},{"$f":"IF(L28=0,\"-\",IFERROR(INDEX('Матрица рисков'!$G$28:$G$53,MATCH(SUMPRODUCT(('Матрица рисков'!$B$28:$B$53<=L28)*('Матрица рисков'!$C$28:$C$53>=L28)*('Матрица рисков'!$D$28:$D$53<=K28)*('Матрица рисков'!$E$28:$E$53>=K28)*('Матрица рисков'!$F$28:$F$53)),'Матрица рисков'!$F$28:$F$53,0)),0))","v":"-"}]
[null,null,null,null,null,null,null,null,{"$f":"IFERROR((((INDEX(Предположения!$F$28:$F$38,MATCH(E29,Vulnerabilties,0))*Предположения!$F$10)+(INDEX(Предположения!$F$28:$F$38,MATCH(F29,Vulnerabilties,0))*Предположения!$F$10)+(INDEX(Предположения!$F$28:$F$38,MATCH(G29,Vulnerabilties,0))*Предположения!$F$10)+(INDEX(Предположения!$F$28:$F$38,MATCH(H29,Vulnerabilties,0))*Предположения!$F$10))*Предположения!$F$9),0)","v":0},null,{"$f":"IFERROR(INDEX(Предположения!$F$15:$F$25,MATCH(D29,Exposures,0)*Предположения!$F$8+(I29/Предположения!$F$9)*Предположения!$F$8),0)","v":0},{"$f":"IFERROR((K29*Предположения!$F$9)-(INDEX(Предположения!$F$41:$F$51,MATCH(J29,Levels_of_response,0))*Предположения!$F$9),0)","v":0},{"$f":"IF(L29=0,\"-\",IFERROR(INDEX('Матрица рисков'!$G$28:$G$53,MATCH(SUMPRODUCT(('Матрица рисков'!$B$28:$B$53<=L29)*('Матрица рисков'!$C$28:$C$53>=L29)*('Матрица рисков'!$D$28:$D$53<=K29)*('Матрица рисков'!$E$28:$E$53>=K29)*('Матрица рисков'!$F$28:$F$53)),'Матрица рисков'!$F$28:$F$53,0)),0))","v":"-"}]
[null,null,null,null,null,null,null,null,{"$f":"IFERROR((((INDEX(Предположения!$F$28:$F$38,MATCH(E30,Vulnerabilties,0))*Предположения!$F$10)+(INDEX(Предположения!$F$28:$F$38,MATCH(F30,Vulnerabilties,0))*Предположения!$F$10)+(INDEX(Предположения!$F$28:$F$38,MATCH(G30,Vulnerabilties,0))*Предположения!$F$10)+(INDEX(Предположения!$F$28:$F$38,MATCH(H30,Vulnerabilties,0))*Предположения!$F$10))*Предположения!$F$9),0)","v":0},null,{"$f":"IFERROR(INDEX(Предположения!$F$15:$F$25,MATCH(D30,Exposures,0)*Предположения!$F$8+(I30/Предположения!$F$9)*Предположения!$F$8),0)","v":0},{"$f":"IFERROR((K30*Предположения!$F$9)-(INDEX(Предположения!$F$41:$F$51,MATCH(J30,Levels_of_response,0))*Предположения!$F$9),0)","v":0},{"$f":"IF(L30=0,\"-\",IFERROR(INDEX('Матрица рисков'!$G$28:$G$53,MATCH(SUMPRODUCT(('Матрица рисков'!$B$28:$B$53<=L30)*('Матрица рисков'!$C$28:$C$53>=L30)*('Матрица рисков'!$D$28:$D$53<=K30)*('Матрица рисков'!$E$28:$E$53>=K30)*('Матрица рисков'!$F$28:$F$53)),'Матрица рисков'!$F$28:$F$53,0)),0))","v":"-"}]
[null,"H5 -Биологические"]
[null,null,null,null,null,null,null,null,{"$f":"IFERROR((((INDEX(Предположения!$F$28:$F$38,MATCH(E32,Vulnerabilties,0))*Предположения!$F$10)+(INDEX(Предположения!$F$28:$F$38,MATCH(F32,Vulnerabilties,0))*Предположения!$F$10)+(INDEX(Предположения!$F$28:$F$38,MATCH(G32,Vulnerabilties,0))*Предположения!$F$10)+(INDEX(Предположения!$F$28:$F$38,MATCH(H32,Vulnerabilties,0))*Предположения!$F$10))*Предположения!$F$9),0)","v":0},null,{"$f":"IFERROR(INDEX(Предположения!$F$15:$F$25,MATCH(D32,Exposures,0)*Предположения!$F$8+(I32/Предположения!$F$9)*Предположения!$F$8),0)","v":0},{"$f":"IFERROR((K32*Предположения!$F$9)-(INDEX(Предположения!$F$41:$F$51,MATCH(J32,Levels_of_response,0))*Предположения!$F$9),0)","v":0},{"$f":"IF(L32=0,\"-\",IFERROR(INDEX('Матрица рисков'!$G$28:$G$53,MATCH(SUMPRODUCT(('Матрица рисков'!$B$28:$B$53<=L32)*('Матрица рисков'!$C$28:$C$53>=L32)*('Матрица рисков'!$D$28:$D$53<=K32)*('Матрица рисков'!$E$28:$E$53>=K32)*('Матрица рисков'!$F$28:$F$53)),'Матрица рисков'!$F$28:$F$53,0)),0))","v":"-"}]
[null,null,null,null,null,null,null,null,{"$f":"IFERROR((((INDEX(Предположения!$F$28:$F$38,MATCH(E33,Vulnerabilties,0))*Предположения!$F$10)+(INDEX(Предположения!$F$28:$F$38,MATCH(F33,Vulnerabilties,0))*Предположения!$F$10)+(INDEX(Предположения!$F$28:$F$38,MATCH(G33,Vulnerabilties,0))*Предположения!$F$10)+(INDEX(Предположения!$F$28:$F$38,MATCH(H33,Vulnerabilties,0))*Предположения!$F$10))*Предположения!$F$9),0)","v":0},null,{"$f":"IFERROR(INDEX(Предположения!$F$15:$F$25,MATCH(D33,Exposures,0)*Предположения!$F$8+(I33/Предположения!$F$9)*Предположения!$F$8),0)","v":0},{"$f":"IFERROR((K33*Предположения!$F$9)-(INDEX(Предположения!$F$41:$F$51,MATCH(J33,Levels_of_response,0))*Предположения!$F$9),0)","v":0},{"$f":"IF(L33=0,\"-\",IFERROR(INDEX('Матрица рисков'!$G$28:$G$53,MATCH(SUMPRODUCT(('Матрица рисков'!$B$28:$B$53<=L33)*('Матрица рисков'!$C$28:$C$53>=L33)*('Матрица рисков'!$D$28:$D$53<=K33)*('Матрица рисков'!$E$28:$E$53>=K33)*('Матрица рисков'!$F$28:$F$53)),'Матрица рисков'!$F$28:$F$53,0)),0))","v":"-"}]
[null,null,null,null,null,null,null,null,{"$f":"IFERROR((((INDEX(Предположения!$F$28:$F$38,MATCH(E34,Vulnerabilties,0))*Предположения!$F$10)+(INDEX(Предположения!$F$28:$F$38,MATCH(F34,Vulnerabilties,0))*Предположения!$F$10)+(INDEX(Предположения!$F$28:$F$38,MATCH(G34,Vulnerabilties,0))*Предположения!$F$10)+(INDEX(Предположения!$F$28:$F$38,MATCH(H34,Vulnerabilties,0))*Предположения!$F$10))*Предположения!$F$9),0)","v":0},null,{"$f":"IFERROR(INDEX(Предположения!$F$15:$F$25,MATCH(D34,Exposures,0)*Предположения!$F$8+(I34/Предположения!$F$9)*Предположения!$F$8),0)","v":0},{"$f":"IFERROR((K34*Предположения!$F$9)-(INDEX(Предположения!$F$41:$F$51,MATCH(J34,Levels_of_response,0))*Предположения!$F$9),0)","v":0},{"$f":"IF(L34=0,\"-\",IFERROR(INDEX('Матрица рисков'!$G$28:$G$53,MATCH(SUMPRODUCT(('Матрица рисков'!$B$28:$B$53<=L34)*('Матрица рисков'!$C$28:$C$53>=L34)*('Матрица рисков'!$D$28:$D$53<=K34)*('Матрица рисков'!$E$28:$E$53>=K34)*('Матрица рисков'!$F$28:$F$53)),'Матрица рисков'!$F$28:$F$53,0)),0))","v":"-"}]
[null,null,null,null,null,null,null,null,{"$f":"IFERROR((((INDEX(Предположения!$F$28:$F$38,MATCH(E35,Vulnerabilties,0))*Предположения!$F$10)+(INDEX(Предположения!$F$28:$F$38,MATCH(F35,Vulnerabilties,0))*Предположения!$F$10)+(INDEX(Предположения!$F$28:$F$38,MATCH(G35,Vulnerabilties,0))*Предположения!$F$10)+(INDEX(Предположения!$F$28:$F$38,MATCH(H35,Vulnerabilties,0))*Предположения!$F$10))*Предположения!$F$9),0)","v":0},null,{"$f":"IFERROR(INDEX(Предположения!$F$15:$F$25,MATCH(D35,Exposures,0)*Предположения!$F$8+(I35/Предположения!$F$9)*Предположения!$F$8),0)","v":0},{"$f":"IFERROR((K35*Предположения!$F$9)-(INDEX(Предположения!$F$41:$F$51,MATCH(J35,Levels_of_response,0))*Предположения!$F$9),0)","v":0},{"$f":"IF(L35=0,\"-\",IFERROR(INDEX('Матрица рисков'!$G$28:$G$53,MATCH(SUMPRODUCT(('Матрица рисков'!$B$28:$B$53<=L35)*('Матрица рисков'!$C$28:$C$53>=L35)*('Матрица рисков'!$D$28:$D$53<=K35)*('Матрица рисков'!$E$28:$E$53>=K35)*('Матрица рисков'!$F$28:$F$53)),'Матрица рисков'!$F$28:$F$53,0)),0))","v":"-"}]
[null,null,null,null,null,null,null,null,{"$f":"IFERROR((((INDEX(Предположения!$F$28:$F$38,MATCH(E36,Vulnerabilties,0))*Предположения!$F$10)+(INDEX(Предположения!$F$28:$F$38,MATCH(F36,Vulnerabilties,0))*Предположения!$F$10)+(INDEX(Предположения!$F$28:$F$38,MATCH(G36,Vulnerabilties,0))*Предположения!$F$10)+(INDEX(Предположения!$F$28:$F$38,MATCH(H36,Vulnerabilties,0))*Предположения!$F$10))*Предположения!$F$9),0)","v":0},null,{"$f":"IFERROR(INDEX(Предположения!$F$15:$F$25,MATCH(D36,Exposures,0)*Предположения!$F$8+(I36/Предположения!$F$9)*Предположения!$F$8),0)","v":0},{"$f":"IFERROR((K36*Предположения!$F$9)-(INDEX(Предположения!$F$41:$F$51,MATCH(J36,Levels_of_response,0))*Предположения!$F$9),0)","v":0},{"$f":"IF(L36=0,\"-\",IFERROR(INDEX('Матрица рисков'!$G$28:$G$53,MATCH(SUMPRODUCT(('Матрица рисков'!$B$28:$B$53<=L36)*('Матрица рисков'!$C$28:$C$53>=L36)*('Матрица рисков'!$D$28:$D$53<=K36)*('Матрица рисков'!$E$28:$E$53>=K36)*('Матрица рисков'!$F$28:$F$53)),'Матрица рисков'!$F$28:$F$53,0)),0))","v":"-"}]
[null,"H6 - Внеземные"]
[null,null,null,null,null,null,null,null,{"$f":"IFERROR((((INDEX(Предположения!$F$28:$F$38,MATCH(E38,Vulnerabilties,0))*Предположения!$F$10)+(INDEX(Предположения!$F$28:$F$38,MATCH(F38,Vulnerabilties,0))*Предположения!$F$10)+(INDEX(Предположения!$F$28:$F$38,MATCH(G38,Vulnerabilties,0))*Предположения!$F$10)+(INDEX(Предположения!$F$28:$F$38,MATCH(H38,Vulnerabilties,0))*Предположения!$F$10))*Предположения!$F$9),0)","v":0},null,{"$f":"IFERROR(INDEX(Предположения!$F$15:$F$25,MATCH(D38,Exposures,0)*Предположения!$F$8+(I38/Предположения!$F$9)*Предположения!$F$8),0)","v":0},{"$f":"IFERROR((K38*Предположения!$F$9)-(INDEX(Предположения!$F$41:$F$51,MATCH(J38,Levels_of_response,0))*Предположения!$F$9),0)","v":0},{"$f":"IF(L38=0,\"-\",IFERROR(INDEX('Матрица рисков'!$G$28:$G$53,MATCH(SUMPRODUCT(('Матрица рисков'!$B$28:$B$53<=L38)*('Матрица рисков'!$C$28:$C$53>=L38)*('Матрица рисков'!$D$28:$D$53<=K38)*('Матрица рисков'!$E$28:$E$53>=K38)*('Матрица рисков'!$F$28:$F$53)),'Матрица рисков'!$F$28:$F$53,0)),0))","v":"-"}]
[null,null,null,null,null,null,null,null,{"$f":"IFERROR((((INDEX(Предположения!$F$28:$F$38,MATCH(E39,Vulnerabilties,0))*Предположения!$F$10)+(INDEX(Предположения!$F$28:$F$38,MATCH(F39,Vulnerabilties,0))*Предположения!$F$10)+(INDEX(Предположения!$F$28:$F$38,MATCH(G39,Vulnerabilties,0))*Предположения!$F$10)+(INDEX(Предположения!$F$28:$F$38,MATCH(H39,Vulnerabilties,0))*Предположения!$F$10))*Предположения!$F$9),0)","v":0},null,{"$f":"IFERROR(INDEX(Предположения!$F$15:$F$25,MATCH(D39,Exposures,0)*Предположения!$F$8+(I39/Предположения!$F$9)*Предположения!$F$8),0)","v":0},{"$f":"IFERROR((K39*Предположения!$F$9)-(INDEX(Предположения!$F$41:$F$51,MATCH(J39,Levels_of_response,0))*Предположения!$F$9),0)","v":0},{"$f":"IF(L39=0,\"-\",IFERROR(INDEX('Матрица рисков'!$G$28:$G$53,MATCH(SUMPRODUCT(('Матрица рисков'!$B$28:$B$53<=L39)*('Матрица рисков'!$C$28:$C$53>=L39)*('Матрица рисков'!$D$28:$D$53<=K39)*('Матрица рисков'!$E$28:$E$53>=K39)*('Матрица рисков'!$F$28:$F$53)),'Матрица рисков'!$F$28:$F$53,0)),0))","v":"-"}]
[null,null,null,null,null,null,null,null,{"$f":"IFERROR((((INDEX(Предположения!$F$28:$F$38,MATCH(E40,Vulnerabilties,0))*Предположения!$F$10)+(INDEX(Предположения!$F$28:$F$38,MATCH(F40,Vulnerabilties,0))*Предположения!$F$10)+(INDEX(Предположения!$F$28:$F$38,MATCH(G40,Vulnerabilties,0))*Предположения!$F$10)+(INDEX(Предположения!$F$28:$F$38,MATCH(H40,Vulnerabilties,0))*Предположения!$F$10))*Предположения!$F$9),0)","v":0},null,{"$f":"IFERROR(INDEX(Предположения!$F$15:$F$25,MATCH(D40,Exposures,0)*Предположения!$F$8+(I40/Предположения!$F$9)*Предположения!$F$8),0)","v":0},{"$f":"IFERROR((K40*Предположения!$F$9)-(INDEX(Предположения!$F$41:$F$51,MATCH(J40,Levels_of_response,0))*Предположения!$F$9),0)","v":0},{"$f":"IF(L40=0,\"-\",IFERROR(INDEX('Матрица рисков'!$G$28:$G$53,MATCH(SUMPRODUCT(('Матрица рисков'!$B$28:$B$53<=L40)*('Матрица рисков'!$C$28:$C$53>=L40)*('Матрица рисков'!$D$28:$D$53<=K40)*('Матрица рисков'!$E$28:$E$53>=K40)*('Матрица рисков'!$F$28:$F$53)),'Матрица рисков'!$F$28:$F$53,0)),0))","v":"-"}]
[null,null,null,null,null,null,null,null,{"$f":"IFERROR((((INDEX(Предположения!$F$28:$F$38,MATCH(E41,Vulnerabilties,0))*Предположения!$F$10)+(INDEX(Предположения!$F$28:$F$38,MATCH(F41,Vulnerabilties,0))*Предположения!$F$10)+(INDEX(Предположения!$F$28:$F$38,MATCH(G41,Vulnerabilties,0))*Предположения!$F$10)+(INDEX(Предположения!$F$28:$F$38,MATCH(H41,Vulnerabilties,0))*Предположения!$F$10))*Предположения!$F$9),0)","v":0},null,{"$f":"IFERROR(INDEX(Предположения!$F$15:$F$25,MATCH(D41,Exposures,0)*Предположения!$F$8+(I41/Предположения!$F$9)*Предположения!$F$8),0)","v":0},{"$f":"IFERROR((K41*Предположения!$F$9)-(INDEX(Предположения!$F$41:$F$51,MATCH(J41,Levels_of_response,0))*Предположения!$F$9),0)","v":0},{"$f":"IF(L41=0,\"-\",IFERROR(INDEX('Матрица рисков'!$G$28:$G$53,MATCH(SUMPRODUCT(('Матрица рисков'!$B$28:$B$53<=L41)*('Матрица рисков'!$C$28:$C$53>=L41)*('Матрица рисков'!$D$28:$D$53<=K41)*('Матрица рисков'!$E$28:$E$53>=K41)*('Матрица рисков'!$F$28:$F$53)),'Матрица рисков'!$F$28:$F$53,0)),0))","v":"-"}]
[null,null,null,null,null,null,null,null,{"$f":"IFERROR((((INDEX(Предположения!$F$28:$F$38,MATCH(E42,Vulnerabilties,0))*Предположения!$F$10)+(INDEX(Предположения!$F$28:$F$38,MATCH(F42,Vulnerabilties,0))*Предположения!$F$10)+(INDEX(Предположения!$F$28:$F$38,MATCH(G42,Vulnerabilties,0))*Предположения!$F$10)+(INDEX(Предположения!$F$28:$F$38,MATCH(H42,Vulnerabilties,0))*Предположения!$F$10))*Предположения!$F$9),0)","v":0},null,{"$f":"IFERROR(INDEX(Предположения!$F$15:$F$25,MATCH(D42,Exposures,0)*Предположения!$F$8+(I42/Предположения!$F$9)*Предположения!$F$8),0)","v":0},{"$f":"IFERROR((K42*Предположения!$F$9)-(INDEX(Предположения!$F$41:$F$51,MATCH(J42,Levels_of_response,0))*Предположения!$F$9),0)","v":0},{"$f":"IF(L42=0,\"-\",IFERROR(INDEX('Матрица рисков'!$G$28:$G$53,MATCH(SUMPRODUCT(('Матрица рисков'!$B$28:$B$53<=L42)*('Матрица рисков'!$C$28:$C$53>=L42)*('Матрица рисков'!$D$28:$D$53<=K42)*('Матрица рисков'!$E$28:$E$53>=K42)*('Матрица рисков'!$F$28:$F$53)),'Матрица рисков'!$F$28:$F$53,0)),0))","v":"-"}]
[null,"H7 - Антропогенные"]
[null,null,null,null,null,null,null,null,{"$f":"IFERROR((((INDEX(Предположения!$F$28:$F$38,MATCH(E44,Vulnerabilties,0))*Предположения!$F$10)+(INDEX(Предположения!$F$28:$F$38,MATCH(F44,Vulnerabilties,0))*Предположения!$F$10)+(INDEX(Предположения!$F$28:$F$38,MATCH(G44,Vulnerabilties,0))*Предположения!$F$10)+(INDEX(Предположения!$F$28:$F$38,MATCH(H44,Vulnerabilties,0))*Предположения!$F$10))*Предположения!$F$9),0)","v":0},null,{"$f":"IFERROR(INDEX(Предположения!$F$15:$F$25,MATCH(D44,Exposures,0)*Предположения!$F$8+(I44/Предположения!$F$9)*Предположения!$F$8),0)","v":0},{"$f":"IFERROR((K44*Предположения!$F$9)-(INDEX(Предположения!$F$41:$F$51,MATCH(J44,Levels_of_response,0))*Предположения!$F$9),0)","v":0},{"$f":"IF(L44=0,\"-\",IFERROR(INDEX('Матрица рисков'!$G$28:$G$53,MATCH(SUMPRODUCT(('Матрица рисков'!$B$28:$B$53<=L44)*('Матрица рисков'!$C$28:$C$53>=L44)*('Матрица рисков'!$D$28:$D$53<=K44)*('Матрица рисков'!$E$28:$E$53>=K44)*('Матрица рисков'!$F$28:$F$53)),'Матрица рисков'!$F$28:$F$53,0)),0))","v":"-"}]
[null,null,null,null,null,null,null,null,{"$f":"IFERROR((((INDEX(Предположения!$F$28:$F$38,MATCH(E45,Vulnerabilties,0))*Предположения!$F$10)+(INDEX(Предположения!$F$28:$F$38,MATCH(F45,Vulnerabilties,0))*Предположения!$F$10)+(INDEX(Предположения!$F$28:$F$38,MATCH(G45,Vulnerabilties,0))*Предположения!$F$10)+(INDEX(Предположения!$F$28:$F$38,MATCH(H45,Vulnerabilties,0))*Предположения!$F$10))*Предположения!$F$9),0)","v":0},null,{"$f":"IFERROR(INDEX(Предположения!$F$15:$F$25,MATCH(D45,Exposures,0)*Предположения!$F$8+(I45/Предположения!$F$9)*Предположения!$F$8),0)","v":0},{"$f":"IFERROR((K45*Предположения!$F$9)-(INDEX(Предположения!$F$41:$F$51,MATCH(J45,Levels_of_response,0))*Предположения!$F$9),0)","v":0},{"$f":"IF(L45=0,\"-\",IFERROR(INDEX('Матрица рисков'!$G$28:$G$53,MATCH(SUMPRODUCT(('Матрица рисков'!$B$28:$B$53<=L45)*('Матрица рисков'!$C$28:$C$53>=L45)*('Матрица рисков'!$D$28:$D$53<=K45)*('Матрица рисков'!$E$28:$E$53>=K45)*('Матрица рисков'!$F$28:$F$53)),'Матрица рисков'!$F$28:$F$53,0)),0))","v":"-"}]
[null,null,null,null,null,null,null,null,{"$f":"IFERROR((((INDEX(Предположения!$F$28:$F$38,MATCH(E46,Vulnerabilties,0))*Предположения!$F$10)+(INDEX(Предположения!$F$28:$F$38,MATCH(F46,Vulnerabilties,0))*Предположения!$F$10)+(INDEX(Предположения!$F$28:$F$38,MATCH(G46,Vulnerabilties,0))*Предположения!$F$10)+(INDEX(Предположения!$F$28:$F$38,MATCH(H46,Vulnerabilties,0))*Предположения!$F$10))*Предположения!$F$9),0)","v":0},null,{"$f":"IFERROR(INDEX(Предположения!$F$15:$F$25,MATCH(D46,Exposures,0)*Предположения!$F$8+(I46/Предположения!$F$9)*Предположения!$F$8),0)","v":0},{"$f":"IFERROR((K46*Предположения!$F$9)-(INDEX(Предположения!$F$41:$F$51,MATCH(J46,Levels_of_response,0))*Предположения!$F$9),0)","v":0},{"$f":"IF(L46=0,\"-\",IFERROR(INDEX('Матрица рисков'!$G$28:$G$53,MATCH(SUMPRODUCT(('Матрица рисков'!$B$28:$B$53<=L46)*('Матрица рисков'!$C$28:$C$53>=L46)*('Матрица рисков'!$D$28:$D$53<=K46)*('Матрица рисков'!$E$28:$E$53>=K46)*('Матрица рисков'!$F$28:$F$53)),'Матрица рисков'!$F$28:$F$53,0)),0))","v":"-"}]
[null,null,null,null,null,null,null,null,{"$f":"IFERROR((((INDEX(Предположения!$F$28:$F$38,MATCH(E47,Vulnerabilties,0))*Предположения!$F$10)+(INDEX(Предположения!$F$28:$F$38,MATCH(F47,Vulnerabilties,0))*Предположения!$F$10)+(INDEX(Предположения!$F$28:$F$38,MATCH(G47,Vulnerabilties,0))*Предположения!$F$10)+(INDEX(Предположения!$F$28:$F$38,MATCH(H47,Vulnerabilties,0))*Предположения!$F$10))*Предположения!$F$9),0)","v":0},null,{"$f":"IFERROR(INDEX(Предположения!$F$15:$F$25,MATCH(D47,Exposures,0)*Предположения!$F$8+(I47/Предположения!$F$9)*Предположения!$F$8),0)","v":0},{"$f":"IFERROR((K47*Предположения!$F$9)-(INDEX(Предположения!$F$41:$F$51,MATCH(J47,Levels_of_response,0))*Предположения!$F$9),0)","v":0},{"$f":"IF(L47=0,\"-\",IFERROR(INDEX('Матрица рисков'!$G$28:$G$53,MATCH(SUMPRODUCT(('Матрица рисков'!$B$28:$B$53<=L47)*('Матрица рисков'!$C$28:$C$53>=L47)*('Матрица рисков'!$D$28:$D$53<=K47)*('Матрица рисков'!$E$28:$E$53>=K47)*('Матрица рисков'!$F$28:$F$53)),'Матрица рисков'!$F$28:$F$53,0)),0))","v":"-"}]
[null,null,null,null,null,null,null,null,{"$f":"IFERROR((((INDEX(Предположения!$F$28:$F$38,MATCH(E48,Vulnerabilties,0))*Предположения!$F$10)+(INDEX(Предположения!$F$28:$F$38,MATCH(F48,Vulnerabilties,0))*Предположения!$F$10)+(INDEX(Предположения!$F$28:$F$38,MATCH(G48,Vulnerabilties,0))*Предположения!$F$10)+(INDEX(Предположения!$F$28:$F$38,MATCH(H48,Vulnerabilties,0))*Предположения!$F$10))*Предположения!$F$9),0)","v":0},null,{"$f":"IFERROR(INDEX(Предположения!$F$15:$F$25,MATCH(D48,Exposures,0)*Предположения!$F$8+(I48/Предположения!$F$9)*Предположения!$F$8),0)","v":0},{"$f":"IFERROR((K48*Предположения!$F$9)-(INDEX(Предположения!$F$41:$F$51,MATCH(J48,Levels_of_response,0))*Предположения!$F$9),0)","v":0},{"$f":"IF(L48=0,\"-\",IFERROR(INDEX('Матрица рисков'!$G$28:$G$53,MATCH(SUMPRODUCT(('Матрица рисков'!$B$28:$B$53<=L48)*('Матрица рисков'!$C$28:$C$53>=L48)*('Матрица рисков'!$D$28:$D$53<=K48)*('Матрица рисков'!$E$28:$E$53>=K48)*('Матрица рисков'!$F$28:$F$53)),'Матрица рисков'!$F$28:$F$53,0)),0))","v":"-"}]
[null,"H8 - Другие угрозы (определяются пользователем)"]
[null,null,null,null,null,null,null,null,{"$f":"IFERROR((((INDEX(Предположения!$F$28:$F$38,MATCH(E50,Vulnerabilties,0))*Предположения!$F$10)+(INDEX(Предположения!$F$28:$F$38,MATCH(F50,Vulnerabilties,0))*Предположения!$F$10)+(INDEX(Предположения!$F$28:$F$38,MATCH(G50,Vulnerabilties,0))*Предположения!$F$10)+(INDEX(Предположения!$F$28:$F$38,MATCH(H50,Vulnerabilties,0))*Предположения!$F$10))*Предположения!$F$9),0)","v":0},null,{"$f":"IFERROR(INDEX(Предположения!$F$15:$F$25,MATCH(D50,Exposures,0)*Предположения!$F$8+(I50/Предположения!$F$9)*Предположения!$F$8),0)","v":0},{"$f":"IFERROR((K50*Предположения!$F$9)-(INDEX(Предположения!$F$41:$F$51,MATCH(J50,Levels_of_response,0))*Предположения!$F$9),0)","v":0},{"$f":"IF(L50=0,\"-\",IFERROR(INDEX('Матрица рисков'!$G$28:$G$53,MATCH(SUMPRODUCT(('Матрица рисков'!$B$28:$B$53<=L50)*('Матрица рисков'!$C$28:$C$53>=L50)*('Матрица рисков'!$D$28:$D$53<=K50)*('Матрица рисков'!$E$28:$E$53>=K50)*('Матрица рисков'!$F$28:$F$53)),'Матрица рисков'!$F$28:$F$53,0)),0))","v":"-"}]
[null,null,null,null,null,null,null,null,{"$f":"IFERROR((((INDEX(Предположения!$F$28:$F$38,MATCH(E51,Vulnerabilties,0))*Предположения!$F$10)+(INDEX(Предположения!$F$28:$F$38,MATCH(F51,Vulnerabilties,0))*Предположения!$F$10)+(INDEX(Предположения!$F$28:$F$38,MATCH(G51,Vulnerabilties,0))*Предположения!$F$10)+(INDEX(Предположения!$F$28:$F$38,MATCH(H51,Vulnerabilties,0))*Предположения!$F$10))*Предположения!$F$9),0)","v":0},null,{"$f":"IFERROR(INDEX(Предположения!$F$15:$F$25,MATCH(D51,Exposures,0)*Предположения!$F$8+(I51/Предположения!$F$9)*Предположения!$F$8),0)","v":0},{"$f":"IFERROR((K51*Предположения!$F$9)-(INDEX(Предположения!$F$41:$F$51,MATCH(J51,Levels_of_response,0))*Предположения!$F$9),0)","v":0},{"$f":"IF(L51=0,\"-\",IFERROR(INDEX('Матрица рисков'!$G$28:$G$53,MATCH(SUMPRODUCT(('Матрица рисков'!$B$28:$B$53<=L51)*('Матрица рисков'!$C$28:$C$53>=L51)*('Матрица рисков'!$D$28:$D$53<=K51)*('Матрица рисков'!$E$28:$E$53>=K51)*('Матрица рисков'!$F$28:$F$53)),'Матрица рисков'!$F$28:$F$53,0)),0))","v":"-"}]
[null,null,null,null,null,null,null,null,{"$f":"IFERROR((((INDEX(Предположения!$F$28:$F$38,MATCH(E52,Vulnerabilties,0))*Предположения!$F$10)+(INDEX(Предположения!$F$28:$F$38,MATCH(F52,Vulnerabilties,0))*Предположения!$F$10)+(INDEX(Предположения!$F$28:$F$38,MATCH(G52,Vulnerabilties,0))*Предположения!$F$10)+(INDEX(Предположения!$F$28:$F$38,MATCH(H52,Vulnerabilties,0))*Предположения!$F$10))*Предположения!$F$9),0)","v":0},null,{"$f":"IFERROR(INDEX(Предположения!$F$15:$F$25,MATCH(D52,Exposures,0)*Предположения!$F$8+(I52/Предположения!$F$9)*Предположения!$F$8),0)","v":0},{"$f":"IFERROR((K52*Предположения!$F$9)-(INDEX(Предположения!$F$41:$F$51,MATCH(J52,Levels_of_response,0))*Предположения!$F$9),0)","v":0},{"$f":"IF(L52=0,\"-\",IFERROR(INDEX('Матрица рисков'!$G$28:$G$53,MATCH(SUMPRODUCT(('Матрица рисков'!$B$28:$B$53<=L52)*('Матрица рисков'!$C$28:$C$53>=L52)*('Матрица рисков'!$D$28:$D$53<=K52)*('Матрица рисков'!$E$28:$E$53>=K52)*('Матрица рисков'!$F$28:$F$53)),'Матрица рисков'!$F$28:$F$53,0)),0))","v":"-"}]
[null,null,null,null,null,null,null,null,{"$f":"IFERROR((((INDEX(Предположения!$F$28:$F$38,MATCH(E53,Vulnerabilties,0))*Предположения!$F$10)+(INDEX(Предположения!$F$28:$F$38,MATCH(F53,Vulnerabilties,0))*Предположения!$F$10)+(INDEX(Предположения!$F$28:$F$38,MATCH(G53,Vulnerabilties,0))*Предположения!$F$10)+(INDEX(Предположения!$F$28:$F$38,MATCH(H53,Vulnerabilties,0))*Предположения!$F$10))*Предположения!$F$9),0)","v":0},null,{"$f":"IFERROR(INDEX(Предположения!$F$15:$F$25,MATCH(D53,Exposures,0)*Предположения!$F$8+(I53/Предположения!$F$9)*Предположения!$F$8),0)","v":0},{"$f":"IFERROR((K53*Предположения!$F$9)-(INDEX(Предположения!$F$41:$F$51,MATCH(J53,Levels_of_response,0))*Предположения!$F$9),0)","v":0},{"$f":"IF(L53=0,\"-\",IFERROR(INDEX('Матрица рисков'!$G$28:$G$53,MATCH(SUMPRODUCT(('Матрица рисков'!$B$28:$B$53<=L53)*('Матрица рисков'!$C$28:$C$53>=L53)*('Матрица рисков'!$D$28:$D$53<=K53)*('Матрица рисков'!$E$28:$E$53>=K53)*('Матрица рисков'!$F$28:$F$53)),'Матрица рисков'!$F$28:$F$53,0)),0))","v":"-"}]
[null,null,null,null,null,null,null,null,{"$f":"IFERROR((((INDEX(Предположения!$F$28:$F$38,MATCH(E54,Vulnerabilties,0))*Предположения!$F$10)+(INDEX(Предположения!$F$28:$F$38,MATCH(F54,Vulnerabilties,0))*Предположения!$F$10)+(INDEX(Предположения!$F$28:$F$38,MATCH(G54,Vulnerabilties,0))*Предположения!$F$10)+(INDEX(Предположения!$F$28:$F$38,MATCH(H54,Vulnerabilties,0))*Предположения!$F$10))*Предположения!$F$9),0)","v":0},null,{"$f":"IFERROR(INDEX(Предположения!$F$15:$F$25,MATCH(D54,Exposures,0)*Предположения!$F$8+(I54/Предположения!$F$9)*Предположения!$F$8),0)","v":0},{"$f":"IFERROR((K54*Предположения!$F$9)-(INDEX(Предположения!$F$41:$F$51,MATCH(J54,Levels_of_response,0))*Предположения!$F$9),0)","v":0},{"$f":"IF(L54=0,\"-\",IFERROR(INDEX('Матрица рисков'!$G$28:$G$53,MATCH(SUMPRODUCT(('Матрица рисков'!$B$28:$B$53<=L54)*('Матрица рисков'!$C$28:$C$53>=L54)*('Матрица рисков'!$D$28:$D$53<=K54)*('Матрица рисков'!$E$28:$E$53>=K54)*('Матрица рисков'!$F$28:$F$53)),'Матрица рисков'!$F$28:$F$53,0)),0))","v":"-"}]

{"sheet":"Оценка данных","index":7,"n_rows":48,"n_cols":13,"rows_kept":48,"cut":false,"hidden":false,"merged":[[25,1,29,1],[30,1,34,1],[35,1,39,1],[40,1,44,1],[5,0,6,0],[5,1,9,1],[10,1,14,1],[15,1,19,1],[20,1,24,1]]}
[{"$f":"MdlTle","v":"Инструмент быстрой оценки риска (БОР)"}]
[{"$f":"MID(CELL(\"filename\",A1),FIND(\"]\",CELL(\"filename\",A1))+1,255)","v":"Оценка данных"}]
[]
[]
[null,"Группа угроз","Бедствие","Опасное событие","Рейтинг вероятности (1-10)",{"$f":"'Ввод данных об угрозах'!E6","v":"Инфраструктура"},{"$f":"'Ввод данных об угрозах'!F6","v":"Производственные сектора"},{"$f":"'Ввод данных об угрозах'!G6","v":"Основные или базовые услуги"},{"$f":"'Ввод данных об угрозах'!H6","v":"Человеческие и социальные аспекты"},"Общая оценка уязвимости\n(1-100)","Текущий уровень действий      (1-10)","Оценка рейтинга: Вероятность \n(1-10)","Оценка рейтинга: Серьезность \n(1-100)"]
[null,{"$f":"'Ввод данных об угрозах'!$B$7","v":"H1 - Геофизические"},{"$f":"'Ввод данных об угрозах'!B8","v":0},{"$f":"'Ввод данных об угрозах'!C8","v":0},{"$f":"IFERROR(INDEX(Предположения!$F$15:$F$25,MATCH('Ввод данных об угрозах'!D8,Exposures,0)),0)","v":0},{"$f":"IFERROR(INDEX(Предположения!$F$15:$F$25,MATCH('Ввод данных об угрозах'!E8,Exposures,0)),0)","v":0},{"$f":"IFERROR(INDEX(Предположения!$F$15:$F$25,MATCH('Ввод данных об угрозах'!F8,Exposures,0)),0)","v":0},{"$f":"IFERROR(INDEX(Предположения!$F$15:$F$25,MATCH('Ввод данных об угрозах'!G8,Exposures,0)),0)","v":0},{"$f":"IFERROR(INDEX(Предположения!$F$15:$F$25,MATCH('Ввод данных об угрозах'!H8,Exposures,0)),0)","v":0},{"$f":"'Ввод данных об угрозах'!I8","v":0},{"$f":"IFERROR(INDEX(Предположения!$F$41:$F$51,MATCH('Ввод данных об угрозах'!J8,Levels_of_response,0)),0)","v":0},{"$f":"'Ввод данных об угрозах'!K8","v":0},{"$f":"'Ввод данных об угрозах'!L8","v":0}]
[null,null,{"$f":"'Ввод данных об угрозах'!B9","v":0},{"$f":"'Ввод данных об угрозах'!C9","v":0},{"$f":"IFERROR(INDEX(Предположения!$F$15:$F$25,MATCH('Ввод данных об угрозах'!D9,Exposures,0)),0)","v":0},{"$f":"IFERROR(INDEX(Предположения!$F$15:$F$25,MATCH('Ввод данных об угрозах'!E9,Exposures,0)),0)","v":0},{"$f":"IFERROR(INDEX(Предположения!$F$15:$F$25,MATCH('Ввод данных об угрозах'!F9,Exposures,0)),0)","v":0},{"$f":"IFERROR(INDEX(Предположения!$F$15:$F$25,MATCH('Ввод данных об угрозах'!G9,Exposures,0)),0)","v":0},{"$f":"IFERROR(INDEX(Предположения!$F$15:$F$25,MATCH('Ввод данных об угрозах'!H9,Exposures,0)),0)","v":0},{"$f":"'Ввод данных об угрозах'!I9","v":0},{"$f":"IFERROR(INDEX(Предположения!$F$41:$F$51,MATCH('Ввод данных об угрозах'!J9,Levels_of_response,0)),0)","v":0},{"$f":"'Ввод данных об угрозах'!K9","v":0},{"$f":"'Ввод данных об угрозах'!L9","v":0}]
[null,null,{"$f":"'Ввод данных об угрозах'!B10","v":0},{"$f":"'Ввод данных об угрозах'!C10","v":0},{"$f":"IFERROR(INDEX(Предположения!$F$15:$F$25,MATCH('Ввод данных об угрозах'!D10,Exposures,0)),0)","v":0},{"$f":"IFERROR(INDEX(Предположения!$F$15:$F$25,MATCH('Ввод данных об угрозах'!E10,Exposures,0)),0)","v":0},{"$f":"IFERROR(INDEX(Предположения!$F$15:$F$25,MATCH('Ввод данных об угрозах'!F10,Exposures,0)),0)","v":0},{"$f":"IFERROR(INDEX(Предположения!$F$15:$F$25,MATCH('Ввод данных об угрозах'!G10,Exposures,0)),0)","v":0},{"$f":"IFERROR(INDEX(Предположения!$F$15:$F$25,MATCH('Ввод данных об угрозах'!H10,Exposures,0)),0)","v":0},{"$f":"'Ввод данных об угрозах'!I10","v":0},{"$f":"IFERROR(INDEX(Предположения!$F$41:$F$51,MATCH('Ввод данных об угрозах'!J10,Levels_of_response,0)),0)","v":0},{"$f":"'Ввод данных об угрозах'!K10","v":0},{"$f":"'Ввод данных об угрозах'!L10","v":0}]
[null,null,{"$f":"'Ввод данных об угрозах'!B11","v":0},{"$f":"'Ввод данных об угрозах'!C11","v":0},{"$f":"IFERROR(INDEX(Предположения!$F$15:$F$25,MATCH('Ввод данных об угрозах'!D11,Exposures,0)),0)","v":0},{"$f":"IFERROR(INDEX(Предположения!$F$15:$F$25,MATCH('Ввод данных об угрозах'!E11,Exposures,0)),0)","v":0},{"$f":"IFERROR(INDEX(Предположения!$F$15:$F$25,MATCH('Ввод данных об угрозах'!F11,Exposures,0)),0)","v":0},{"$f":"IFERROR(INDEX(Предположения!$F$15:$F$25,MATCH('Ввод данных об угрозах'!G11,Exposures,0)),0)","v":0},{"$f":"IFERROR(INDEX(Предположения!$F$15:$F$25,MATCH('Ввод данных об угрозах'!H11,Exposures,0)),0)","v":0},{"$f":"'Ввод данных об угрозах'!I11","v":0},{"$f":"IFERROR(INDEX(Предположения!$F$41:$F$51,MATCH('Ввод данных об угрозах'!J11,Levels_of_response,0)),0)","v":0},{"$f":"'Ввод данных об угрозах'!K11","v":0},{"$f":"'Ввод данных об угрозах'!L11","v":0}]
[null,null,{"$f":"'Ввод данных об угрозах'!B12","v":0},{"$f":"'Ввод данных об угрозах'!C12","v":0},{"$f":"IFERROR(INDEX(Предположения!$F$15:$F$25,MATCH('Ввод данных об угрозах'!D12,Exposures,0)),0)","v":0},{"$f":"IFERROR(INDEX(Предположения!$F$15:$F$25,MATCH('Ввод данных об угрозах'!E12,Exposures,0)),0)","v":0},{"$f":"IFERROR(INDEX(Предположения!$F$15:$F$25,MATCH('Ввод данных об угрозах'!F12,Exposures,0)),0)","v":0},{"$f":"IFERROR(INDEX(Предположения!$F$15:$F$25,MATCH('Ввод данных об угрозах'!G12,Exposures,0)),0)","v":0},{"$f":"IFERROR(INDEX(Предположения!$F$15:$F$25,MATCH('Ввод данных об угрозах'!H12,Exposures,0)),0)","v":0},{"$f":"'Ввод данных об угрозах'!I12","v":0},{"$f":"IFERROR(INDEX(Предположения!$F$41:$F$51,MATCH('Ввод данных об угрозах'!J12,Levels_of_response,0)),0)","v":0},{"$f":"'Ввод данных об угрозах'!K12","v":0},{"$f":"'Ввод данных об угрозах'!L12","v":0}]
[null,{"$f":"'Ввод данных об угрозах'!$B$13","v":"H2 - Гидрологические"},{"$f":"'Ввод данных об угрозах'!B14","v":0},{"$f":"'Ввод данных об угрозах'!C14","v":0},{"$f":"IFERROR(INDEX(Предположения!$F$15:$F$25,MATCH('Ввод данных об угрозах'!D14,Exposures,0)),0)","v":0},{"$f":"IFERROR(INDEX(Предположения!$F$15:$F$25,MATCH('Ввод данных об угрозах'!E14,Exposures,0)),0)","v":0},{"$f":"IFERROR(INDEX(Предположения!$F$15:$F$25,MATCH('Ввод данных об угрозах'!F14,Exposures,0)),0)","v":0},{"$f":"IFERROR(INDEX(Предположения!$F$15:$F$25,MATCH('Ввод данных об угрозах'!G14,Exposures,0)),0)","v":0},{"$f":"IFERROR(INDEX(Предположения!$F$15:$F$25,MATCH('Ввод данных об угрозах'!H14,Exposures,0)),0)","v":0},{"$f":"'Ввод данных об угрозах'!I14","v":0},{"$f":"IFERROR(INDEX(Предположения!$F$41:$F$51,MATCH('Ввод данных об угрозах'!J14,Levels_of_response,0)),0)","v":0},{"$f":"'Ввод данных об угрозах'!K14","v":0},{"$f":"'Ввод данных об угрозах'!L14","v":0}]
[null,null,{"$f":"'Ввод данных об угрозах'!B15","v":0},{"$f":"'Ввод данных об угрозах'!C15","v":0},{"$f":"IFERROR(INDEX(Предположения!$F$15:$F$25,MATCH('Ввод данных об угрозах'!D15,Exposures,0)),0)","v":0},{"$f":"IFERROR(INDEX(Предположения!$F$15:$F$25,MATCH('Ввод данных об угрозах'!E15,Exposures,0)),0)","v":0},{"$f":"IFERROR(INDEX(Предположения!$F$15:$F$25,MATCH('Ввод данных об угрозах'!F15,Exposures,0)),0)","v":0},{"$f":"IFERROR(INDEX(Предположения!$F$15:$F$25,MATCH('Ввод данных об угрозах'!G15,Exposures,0)),0)","v":0},{"$f":"IFERROR(INDEX(Предположения!$F$15:$F$25,MATCH('Ввод данных об угрозах'!H15,Exposures,0)),0)","v":0},{"$f":"'Ввод данных об угрозах'!I15","v":0},{"$f":"IFERROR(INDEX(Предположения!$F$41:$F$51,MATCH('Ввод данных об угрозах'!J15,Levels_of_response,0)),0)","v":0},{"$f":"'Ввод данных об угрозах'!K15","v":0},{"$f":"'Ввод данных об угрозах'!L15","v":0}]
[null,null,{"$f":"'Ввод данных об угрозах'!B16","v":0},{"$f":"'Ввод данных об угрозах'!C16","v":0},{"$f":"IFERROR(INDEX(Предположения!$F$15:$F$25,MATCH('Ввод данных об угрозах'!D16,Exposures,0)),0)","v":0},{"$f":"IFERROR(INDEX(Предположения!$F$15:$F$25,MATCH('Ввод данных об угрозах'!E16,Exposures,0)),0)","v":0},{"$f":"IFERROR(INDEX(Предположения!$F$15:$F$25,MATCH('Ввод данных об угрозах'!F16,Exposures,0)),0)","v":0},{"$f":"IFERROR(INDEX(Предположения!$F$15:$F$25,MATCH('Ввод данных об угрозах'!G16,Exposures,0)),0)","v":0},{"$f":"IFERROR(INDEX(Предположения!$F$15:$F$25,MATCH('Ввод данных об угрозах'!H16,Exposures,0)),0)","v":0},{"$f":"'Ввод данных об угрозах'!I16","v":0},{"$f":"IFERROR(INDEX(Предположения!$F$41:$F$51,MATCH('Ввод данных об угрозах'!J16,Levels_of_response,0)),0)","v":0},{"$f":"'Ввод данных об угрозах'!K16","v":0},{"$f":"'Ввод данных об угрозах'!L16","v":0}]
[null,null,{"$f":"'Ввод данных об угрозах'!B17","v":0},{"$f":"'Ввод данных об угрозах'!C17","v":0},{"$f":"IFERROR(INDEX(Предположения!$F$15:$F$25,MATCH('Ввод данных об угрозах'!D17,Exposures,0)),0)","v":0},{"$f":"IFERROR(INDEX(Предположения!$F$15:$F$25,MATCH('Ввод данных об угрозах'!E17,Exposures,0)),0)","v":0},{"$f":"IFERROR(INDEX(Предположения!$F$15:$F$25,MATCH('Ввод данных об угрозах'!F17,Exposures,0)),0)","v":0},{"$f":"IFERROR(INDEX(Предположения!$F$15:$F$25,MATCH('Ввод данных об угрозах'!G17,Exposures,0)),0)","v":0},{"$f":"IFERROR(INDEX(Предположения!$F$15:$F$25,MATCH('Ввод данных об угрозах'!H17,Exposures,0)),0)","v":0},{"$f":"'Ввод данных об угрозах'!I17","v":0},{"$f":"IFERROR(INDEX(Предположения!$F$41:$F$51,MATCH('Ввод данных об угрозах'!J17,Levels_of_response,0)),0)","v":0},{"$f":"'Ввод данных об угрозах'!K17","v":0},{"$f":"'Ввод данных об угрозах'!L17","v":0}]
[null,null,{"$f":"'Ввод данных об угрозах'!B18","v":0},{"$f":"'Ввод данных об угрозах'!C18","v":0},{"$f":"IFERROR(INDEX(Предположения!$F$15:$F$25,MATCH('Ввод данных об угрозах'!D18,Exposures,0)),0)","v":0},{"$f":"IFERROR(INDEX(Предположения!$F$15:$F$25,MATCH('Ввод данных об угрозах'!E18,Exposures,0)),0)","v":0},{"$f":"IFERROR(INDEX(Предположения!$F$15:$F$25,MATCH('Ввод данных об угрозах'!F18,Exposures,0)),0)","v":0},{"$f":"IFERROR(INDEX(Предположения!$F$15:$F$25,MATCH('Ввод данных об угрозах'!G18,Exposures,0)),0)","v":0},{"$f":"IFERROR(INDEX(Предположения!$F$15:$F$25,MATCH('Ввод данных об угрозах'!H18,Exposures,0)),0)","v":0},{"$f":"'Ввод данных об угрозах'!I18","v":0},{"$f":"IFERROR(INDEX(Предположения!$F$41:$F$51,MATCH('Ввод данных об угрозах'!J18,Levels_of_response,0)),0)","v":0},{"$f":"'Ввод данных об угрозах'!K18","v":0},{"$f":"'Ввод данных об угрозах'!L18","v":0}]
[null,{"$f":"'Ввод данных об угрозах'!$B$19","v":"H3 - Метеорологические"},{"$f":"'Ввод данных об угрозах'!B20","v":0},{"$f":"'Ввод данных об угрозах'!C20","v":0},{"$f":"IFERROR(INDEX(Предположения!$F$15:$F$25,MATCH('Ввод данных об угрозах'!D20,Exposures,0)),0)","v":0},{"$f":"IFERROR(INDEX(Предположения!$F$15:$F$25,MATCH('Ввод данных об угрозах'!E20,Exposures,0)),0)","v":0},{"$f":"IFERROR(INDEX(Предположения!$F$15:$F$25,MATCH('Ввод данных об угрозах'!F20,Exposures,0)),0)","v":0},{"$f":"IFERROR(INDEX(Предположения!$F$15:$F$25,MATCH('Ввод данных об угрозах'!G20,Exposures,0)),0)","v":0},{"$f":"IFERROR(INDEX(Предположения!$F$15:$F$25,MATCH('Ввод данных об угрозах'!H20,Exposures,0)),0)","v":0},{"$f":"'Ввод данных об угрозах'!I20","v":0},{"$f":"IFERROR(INDEX(Предположения!$F$41:$F$51,MATCH('Ввод данных об угрозах'!J20,Levels_of_response,0)),0)","v":0},{"$f":"'Ввод данных об угрозах'!K20","v":0},{"$f":"'Ввод данных об угрозах'!L20","v":0}]
[null,null,{"$f":"'Ввод данных об угрозах'!B21","v":0},{"$f":"'Ввод данных об угрозах'!C21","v":0},{"$f":"IFERROR(INDEX(Предположения!$F$15:$F$25,MATCH('Ввод данных об угрозах'!D21,Exposures,0)),0)","v":0},{"$f":"IFERROR(INDEX(Предположения!$F$15:$F$25,MATCH('Ввод данных об угрозах'!E21,Exposures,0)),0)","v":0},{"$f":"IFERROR(INDEX(Предположения!$F$15:$F$25,MATCH('Ввод данных об угрозах'!F21,Exposures,0)),0)","v":0},{"$f":"IFERROR(INDEX(Предположения!$F$15:$F$25,MATCH('Ввод данных об угрозах'!G21,Exposures,0)),0)","v":0},{"$f":"IFERROR(INDEX(Предположения!$F$15:$F$25,MATCH('Ввод данных об угрозах'!H21,Exposures,0)),0)","v":0},{"$f":"'Ввод данных об угрозах'!I21","v":0},{"$f":"IFERROR(INDEX(Предположения!$F$41:$F$51,MATCH('Ввод данных об угрозах'!J21,Levels_of_response,0)),0)","v":0},{"$f":"'Ввод данных об угрозах'!K21","v":0},{"$f":"'Ввод данных об угрозах'!L21","v":0}]
[null,null,{"$f":"'Ввод данных об угрозах'!B22","v":0},{"$f":"'Ввод данных об угрозах'!C22","v":0},{"$f":"IFERROR(INDEX(Предположения!$F$15:$F$25,MATCH('Ввод данных об угрозах'!D22,Exposures,0)),0)","v":0},{"$f":"IFERROR(INDEX(Предположения!$F$15:$F$25,MATCH('Ввод данных об угрозах'!E22,Exposures,0)),0)","v":0},{"$f":"IFERROR(INDEX(Предположения!$F$15:$F$25,MATCH('Ввод данных об угрозах'!F22,Exposures,0)),0)","v":0},{"$f":"IFERROR(INDEX(Предположения!$F$15:$F$25,MATCH('Ввод данных об угрозах'!G22,Exposures,0)),0)","v":0},{"$f":"IFERROR(INDEX(Предположения!$F$15:$F$25,MATCH('Ввод данных об угрозах'!H22,Exposures,0)),0)","v":0},{"$f":"'Ввод данных об угрозах'!I22","v":0},{"$f":"IFERROR(INDEX(Предположения!$F$41:$F$51,MATCH('Ввод данных об угрозах'!J22,Levels_of_response,0)),0)","v":0},{"$f":"'Ввод данных об угрозах'!K22","v":0},{"$f":"'Ввод данных об угрозах'!L22","v":0}]
[null,null,{"$f":"'Ввод данных об угрозах'!B23","v":0},{"$f":"'Ввод данных об угрозах'!C23","v":0},{"$f":"IFERROR(INDEX(Предположения!$F$15:$F$25,MATCH('Ввод данных об угрозах'!D23,Exposures,0)),0)","v":0},{"$f":"IFERROR(INDEX(Предположения!$F$15:$F$25,MATCH('Ввод данных об угрозах'!E23,Exposures,0)),0)","v":0},{"$f":"IFERROR(INDEX(Предположения!$F$15:$F$25,MATCH('Ввод данных об угрозах'!F23,Exposures,0)),0)","v":0},{"$f":"IFERROR(INDEX(Предположения!$F$15:$F$25,MATCH('Ввод данных об угрозах'!G23,Exposures,0)),0)","v":0},{"$f":"IFERROR(INDEX(Предположения!$F$15:$F$25,MATCH('Ввод данных об угрозах'!H23,Exposures,0)),0)","v":0},{"$f":"'Ввод данных об угрозах'!I23","v":0},{"$f":"IFERROR(INDEX(Предположения!$F$41:$F$51,MATCH('Ввод данных об угрозах'!J23,Levels_of_response,0)),0)","v":0},{"$f":"'Ввод данных об угрозах'!K23","v":0},{"$f":"'Ввод данных об угрозах'!L23","v":0}]
[null,null,{"$f":"'Ввод данных об угрозах'!B24","v":0},{"$f":"'Ввод данных об угрозах'!C24","v":0},{"$f":"IFERROR(INDEX(Предположения!$F$15:$F$25,MATCH('Ввод данных об угрозах'!D24,Exposures,0)),0)","v":0},{"$f":"IFERROR(INDEX(Предположения!$F$15:$F$25,MATCH('Ввод данных об угрозах'!E24,Exposures,0)),0)","v":0},{"$f":"IFERROR(INDEX(Предположения!$F$15:$F$25,MATCH('Ввод данных об угрозах'!F24,Exposures,0)),0)","v":0},{"$f":"IFERROR(INDEX(Предположения!$F$15:$F$25,MATCH('Ввод данных об угрозах'!G24,Exposures,0)),0)","v":0},{"$f":"IFERROR(INDEX(Предположения!$F$15:$F$25,MATCH('Ввод данных об угрозах'!H24,Exposures,0)),0)","v":0},{"$f":"'Ввод данных об угрозах'!I24","v":0},{"$f":"IFERROR(INDEX(Предположения!$F$41:$F$51,MATCH('Ввод данных об угрозах'!J24,Levels_of_response,0)),0)","v":0},{"$f":"'Ввод данных об угрозах'!K24","v":0},{"$f":"'Ввод данных об угрозах'!L24","v":0}]
[null,{"$f":"'Ввод данных об угрозах'!B25","v":"H4 - Климатологические"},{"$f":"'Ввод данных об угрозах'!B26","v":0},{"$f":"'Ввод данных об угрозах'!C26","v":0},{"$f":"IFERROR(INDEX(Предположения!$F$15:$F$25,MATCH('Ввод данных об угрозах'!D26,Exposures,0)),0)","v":0},{"$f":"IFERROR(INDEX(Предположения!$F$15:$F$25,MATCH('Ввод данных об угрозах'!E26,Exposures,0)),0)","v":0},{"$f":"IFERROR(INDEX(Предположения!$F$15:$F$25,MATCH('Ввод данных об угрозах'!F26,Exposures,0)),0)","v":0},{"$f":"IFERROR(INDEX(Предположения!$F$15:$F$25,MATCH('Ввод данных об угрозах'!G26,Exposures,0)),0)","v":0},{"$f":"IFERROR(INDEX(Предположения!$F$15:$F$25,MATCH('Ввод данных об угрозах'!H26,Exposures,0)),0)","v":0},{"$f":"'Ввод данных об угрозах'!I26","v":0},{"$f":"IFERROR(INDEX(Предположения!$F$41:$F$51,MATCH('Ввод данных об угрозах'!J26,Levels_of_response,0)),0)","v":0},{"$f":"'Ввод данных об угрозах'!K26","v":0},{"$f":"'Ввод данных об угрозах'!L26","v":0}]
[null,null,{"$f":"'Ввод данных об угрозах'!B27","v":0},{"$f":"'Ввод данных об угрозах'!C27","v":0},{"$f":"IFERROR(INDEX(Предположения!$F$15:$F$25,MATCH('Ввод данных об угрозах'!D27,Exposures,0)),0)","v":0},{"$f":"IFERROR(INDEX(Предположения!$F$15:$F$25,MATCH('Ввод данных об угрозах'!E27,Exposures,0)),0)","v":0},{"$f":"IFERROR(INDEX(Предположения!$F$15:$F$25,MATCH('Ввод данных об угрозах'!F27,Exposures,0)),0)","v":0},{"$f":"IFERROR(INDEX(Предположения!$F$15:$F$25,MATCH('Ввод данных об угрозах'!G27,Exposures,0)),0)","v":0},{"$f":"IFERROR(INDEX(Предположения!$F$15:$F$25,MATCH('Ввод данных об угрозах'!H27,Exposures,0)),0)","v":0},{"$f":"'Ввод данных об угрозах'!I27","v":0},{"$f":"IFERROR(INDEX(Предположения!$F$41:$F$51,MATCH('Ввод данных об угрозах'!J27,Levels_of_response,0)),0)","v":0},{"$f":"'Ввод данных об угрозах'!K27","v":0},{"$f":"'Ввод данных об угрозах'!L27","v":0}]
[null,null,{"$f":"'Ввод данных об угрозах'!B28","v":0},{"$f":"'Ввод данных об угрозах'!C28","v":0},{"$f":"IFERROR(INDEX(Предположения!$F$15:$F$25,MATCH('Ввод данных об угрозах'!D28,Exposures,0)),0)","v":0},{"$f":"IFERROR(INDEX(Предположения!$F$15:$F$25,MATCH('Ввод данных об угрозах'!E28,Exposures,0)),0)","v":0},{"$f":"IFERROR(INDEX(Предположения!$F$15:$F$25,MATCH('Ввод данных об угрозах'!F28,Exposures,0)),0)","v":0},{"$f":"IFERROR(INDEX(Предположения!$F$15:$F$25,MATCH('Ввод данных об угрозах'!G28,Exposures,0)),0)","v":0},{"$f":"IFERROR(INDEX(Предположения!$F$15:$F$25,MATCH('Ввод данных об угрозах'!H28,Exposures,0)),0)","v":0},{"$f":"'Ввод данных об угрозах'!I28","v":0},{"$f":"IFERROR(INDEX(Предположения!$F$41:$F$51,MATCH('Ввод данных об угрозах'!J28,Levels_of_response,0)),0)","v":0},{"$f":"'Ввод данных об угрозах'!K28","v":0},{"$f":"'Ввод данных об угрозах'!L28","v":0}]
[null,null,{"$f":"'Ввод данных об угрозах'!B29","v":0},{"$f":"'Ввод данных об угрозах'!C29","v":0},{"$f":"IFERROR(INDEX(Предположения!$F$15:$F$25,MATCH('Ввод данных об угрозах'!D29,Exposures,0)),0)","v":0},{"$f":"IFERROR(INDEX(Предположения!$F$15:$F$25,MATCH('Ввод данных об угрозах'!E29,Exposures,0)),0)","v":0},{"$f":"IFERROR(INDEX(Предположения!$F$15:$F$25,MATCH('Ввод данных об угрозах'!F29,Exposures,0)),0)","v":0},{"$f":"IFERROR(INDEX(Предположения!$F$15:$F$25,MATCH('Ввод данных об угрозах'!G29,Exposures,0)),0)","v":0},{"$f":"IFERROR(INDEX(Предположения!$F$15:$F$25,MATCH('Ввод данных об угрозах'!H29,Exposures,0)),0)","v":0},{"$f":"'Ввод данных об угрозах'!I29","v":0},{"$f":"IFERROR(INDEX(Предположения!$F$41:$F$51,MATCH('Ввод данных об угрозах'!J29,Levels_of_response,0)),0)","v":0},{"$f":"'Ввод данных об угрозах'!K29","v":0},{"$f":"'Ввод данных об угрозах'!L29","v":0}]
[null,null,{"$f":"'Ввод данных об угрозах'!B30","v":0},{"$f":"'Ввод данных об угрозах'!C30","v":0},{"$f":"IFERROR(INDEX(Предположения!$F$15:$F$25,MATCH('Ввод данных об угрозах'!D30,Exposures,0)),0)","v":0},{"$f":"IFERROR(INDEX(Предположения!$F$15:$F$25,MATCH('Ввод данных об угрозах'!E30,Exposures,0)),0)","v":0},{"$f":"IFERROR(INDEX(Предположения!$F$15:$F$25,MATCH('Ввод данных об угрозах'!F30,Exposures,0)),0)","v":0},{"$f":"IFERROR(INDEX(Предположения!$F$15:$F$25,MATCH('Ввод данных об угрозах'!G30,Exposures,0)),0)","v":0},{"$f":"IFERROR(INDEX(Предположения!$F$15:$F$25,MATCH('Ввод данных об угрозах'!H30,Exposures,0)),0)","v":0},{"$f":"'Ввод данных об угрозах'!I30","v":0},{"$f":"IFERROR(INDEX(Предположения!$F$41:$F$51,MATCH('Ввод данных об угрозах'!J30,Levels_of_response,0)),0)","v":0},{"$f":"'Ввод данных об угрозах'!K30","v":0},{"$f":"'Ввод данных об угрозах'!L30","v":0}]
[null,{"$f":"'Ввод данных об угрозах'!$B$31","v":"H5 -Биологические"},{"$f":"'Ввод данных об угрозах'!B32","v":0},{"$f":"'Ввод данных об угрозах'!C32","v":0},{"$f":"IFERROR(INDEX(Предположения!$F$15:$F$25,MATCH('Ввод данных об угрозах'!D32,Exposures,0)),0)","v":0},{"$f":"IFERROR(INDEX(Предположения!$F$15:$F$25,MATCH('Ввод данных об угрозах'!E32,Exposures,0)),0)","v":0},{"$f":"IFERROR(INDEX(Предположения!$F$15:$F$25,MATCH('Ввод данных об угрозах'!F32,Exposures,0)),0)","v":0},{"$f":"IFERROR(INDEX(Предположения!$F$15:$F$25,MATCH('Ввод данных об угрозах'!G32,Exposures,0)),0)","v":0},{"$f":"IFERROR(INDEX(Предположения!$F$15:$F$25,MATCH('Ввод данных об угрозах'!H32,Exposures,0)),0)","v":0},{"$f":"'Ввод данных об угрозах'!I32","v":0},{"$f":"IFERROR(INDEX(Предположения!$F$41:$F$51,MATCH('Ввод данных об угрозах'!J32,Levels_of_response,0)),0)","v":0},{"$f":"'Ввод данных об угрозах'!K32","v":0},{"$f":"'Ввод данных об угрозах'!L32","v":0}]
[null,null,{"$f":"'Ввод данных об угрозах'!B33","v":0},{"$f":"'Ввод данных об угрозах'!C33","v":0},{"$f":"IFERROR(INDEX(Предположения!$F$15:$F$25,MATCH('Ввод данных об угрозах'!D33,Exposures,0)),0)","v":0},{"$f":"IFERROR(INDEX(Предположения!$F$15:$F$25,MATCH('Ввод данных об угрозах'!E33,Exposures,0)),0)","v":0},{"$f":"IFERROR(INDEX(Предположения!$F$15:$F$25,MATCH('Ввод данных об угрозах'!F33,Exposures,0)),0)","v":0},{"$f":"IFERROR(INDEX(Предположения!$F$15:$F$25,MATCH('Ввод данных об угрозах'!G33,Exposures,0)),0)","v":0},{"$f":"IFERROR(INDEX(Предположения!$F$15:$F$25,MATCH('Ввод данных об угрозах'!H33,Exposures,0)),0)","v":0},{"$f":"'Ввод данных об угрозах'!I33","v":0},{"$f":"IFERROR(INDEX(Предположения!$F$41:$F$51,MATCH('Ввод данных об угрозах'!J33,Levels_of_response,0)),0)","v":0},{"$f":"'Ввод данных об угрозах'!K33","v":0},{"$f":"'Ввод данных об угрозах'!L33","v":0}]
[null,null,{"$f":"'Ввод данных об угрозах'!B34","v":0},{"$f":"'Ввод данных об угрозах'!C34","v":0},{"$f":"IFERROR(INDEX(Предположения!$F$15:$F$25,MATCH('Ввод данных об угрозах'!D34,Exposures,0)),0)","v":0},{"$f":"IFERROR(INDEX(Предположения!$F$15:$F$25,MATCH('Ввод данных об угрозах'!E34,Exposures,0)),0)","v":0},{"$f":"IFERROR(INDEX(Предположения!$F$15:$F$25,MATCH('Ввод данных об угрозах'!F34,Exposures,0)),0)","v":0},{"$f":"IFERROR(INDEX(Предположения!$F$15:$F$25,MATCH('Ввод данных об угрозах'!G34,Exposures,0)),0)","v":0},{"$f":"IFERROR(INDEX(Предположения!$F$15:$F$25,MATCH('Ввод данных об угрозах'!H34,Exposures,0)),0)","v":0},{"$f":"'Ввод данных об угрозах'!I34","v":0},{"$f":"IFERROR(INDEX(Предположения!$F$41:$F$51,MATCH('Ввод данных об угрозах'!J34,Levels_of_response,0)),0)","v":0},{"$f":"'Ввод данных об угрозах'!K34","v":0},{"$f":"'Ввод данных об угрозах'!L34","v":0}]
[null,null,{"$f":"'Ввод данных об угрозах'!B35","v":0},{"$f":"'Ввод данных об угрозах'!C35","v":0},{"$f":"IFERROR(INDEX(Предположения!$F$15:$F$25,MATCH('Ввод данных об угрозах'!D35,Exposures,0)),0)","v":0},{"$f":"IFERROR(INDEX(Предположения!$F$15:$F$25,MATCH('Ввод данных об угрозах'!E35,Exposures,0)),0)","v":0},{"$f":"IFERROR(INDEX(Предположения!$F$15:$F$25,MATCH('Ввод данных об угрозах'!F35,Exposures,0)),0)","v":0},{"$f":"IFERROR(INDEX(Предположения!$F$15:$F$25,MATCH('Ввод данных об угрозах'!G35,Exposures,0)),0)","v":0},{"$f":"IFERROR(INDEX(Предположения!$F$15:$F$25,MATCH('Ввод данных об угрозах'!H35,Exposures,0)),0)","v":0},{"$f":"'Ввод данных об угрозах'!I35","v":0},{"$f":"IFERROR(INDEX(Предположения!$F$41:$F$51,MATCH('Ввод данных об угрозах'!J35,Levels_of_response,0)),0)","v":0},{"$f":"'Ввод данных об угрозах'!K35","v":0},{"$f":"'Ввод данных об угрозах'!L35","v":0}]
[null,null,{"$f":"'Ввод данных об угрозах'!B36","v":0},{"$f":"'Ввод данных об угрозах'!C36","v":0},{"$f":"IFERROR(INDEX(Предположения!$F$15:$F$25,MATCH('Ввод данных об угрозах'!D36,Exposures,0)),0)","v":0},{"$f":"IFERROR(INDEX(Предположения!$F$15:$F$25,MATCH('Ввод данных об угрозах'!E36,Exposures,0)),0)","v":0},{"$f":"IFERROR(INDEX(Предположения!$F$15:$F$25,MATCH('Ввод данных об угрозах'!F36,Exposures,0)),0)","v":0},{"$f":"IFERROR(INDEX(Предположения!$F$15:$F$25,MATCH('Ввод данных об угрозах'!G36,Exposures,0)),0)","v":0},{"$f":"IFERROR(INDEX(Предположения!$F$15:$F$25,MATCH('Ввод данных об угрозах'!H36,Exposures,0)),0)","v":0},{"$f":"'Ввод данных об угрозах'!I36","v":0},{"$f":"IFERROR(INDEX(Предположения!$F$41:$F$51,MATCH('Ввод данных об угрозах'!J36,Levels_of_response,0)),0)","v":0},{"$f":"'Ввод данных об угрозах'!K36","v":0},{"$f":"'Ввод данных об угрозах'!L36","v":0}]
[null,{"$f":"'Ввод данных об угрозах'!$B$37","v":"H6 - Внеземные"},{"$f":"'Ввод данных об угрозах'!B38","v":0},{"$f":"'Ввод данных об угрозах'!C38","v":0},{"$f":"IFERROR(INDEX(Предположения!$F$15:$F$25,MATCH('Ввод данных об угрозах'!D38,Exposures,0)),0)","v":0},{"$f":"IFERROR(INDEX(Предположения!$F$15:$F$25,MATCH('Ввод данных об угрозах'!E38,Exposures,0)),0)","v":0},{"$f":"IFERROR(INDEX(Предположения!$F$15:$F$25,MATCH('Ввод данных об угрозах'!F38,Exposures,0)),0)","v":0},{"$f":"IFERROR(INDEX(Предположения!$F$15:$F$25,MATCH('Ввод данных об угрозах'!G38,Exposures,0)),0)","v":0},{"$f":"IFERROR(INDEX(Предположения!$F$15:$F$25,MATCH('Ввод данных об угрозах'!H38,Exposures,0)),0)","v":0},{"$f":"'Ввод данных об угрозах'!I38","v":0},{"$f":"IFERROR(INDEX(Предположения!$F$41:$F$51,MATCH('Ввод данных об угрозах'!J38,Levels_of_response,0)),0)","v":0},{"$f":"'Ввод данных об угрозах'!K38","v":0},{"$f":"'Ввод данных об угрозах'!L38","v":0}]
[null,null,{"$f":"'Ввод данных об угрозах'!B39","v":0},{"$f":"'Ввод данных об угрозах'!C39","v":0},{"$f":"IFERROR(INDEX(Предположения!$F$15:$F$25,MATCH('Ввод данных об угрозах'!D39,Exposures,0)),0)","v":0},{"$f":"IFERROR(INDEX(Предположения!$F$15:$F$25,MATCH('Ввод данных об угрозах'!E39,Exposures,0)),0)","v":0},{"$f":"IFERROR(INDEX(Предположения!$F$15:$F$25,MATCH('Ввод данных об угрозах'!F39,Exposures,0)),0)","v":0},{"$f":"IFERROR(INDEX(Предположения!$F$15:$F$25,MATCH('Ввод данных об угрозах'!G39,Exposures,0)),0)","v":0},{"$f":"IFERROR(INDEX(Предположения!$F$15:$F$25,MATCH('Ввод данных об угрозах'!H39,Exposures,0)),0)","v":0},{"$f":"'Ввод данных об угрозах'!I39","v":0},{"$f":"IFERROR(INDEX(Предположения!$F$41:$F$51,MATCH('Ввод данных об угрозах'!J39,Levels_of_response,0)),0)","v":0},{"$f":"'Ввод данных об угрозах'!K39","v":0},{"$f":"'Ввод данных об угрозах'!L39","v":0}]
[null,null,{"$f":"'Ввод данных об угрозах'!B40","v":0},{"$f":"'Ввод данных об угрозах'!C40","v":0},{"$f":"IFERROR(INDEX(Предположения!$F$15:$F$25,MATCH('Ввод данных об угрозах'!D40,Exposures,0)),0)","v":0},{"$f":"IFERROR(INDEX(Предположения!$F$15:$F$25,MATCH('Ввод данных об угрозах'!E40,Exposures,0)),0)","v":0},{"$f":"IFERROR(INDEX(Предположения!$F$15:$F$25,MATCH('Ввод данных об угрозах'!F40,Exposures,0)),0)","v":0},{"$f":"IFERROR(INDEX(Предположения!$F$15:$F$25,MATCH('Ввод данных об угрозах'!G40,Exposures,0)),0)","v":0},{"$f":"IFERROR(INDEX(Предположения!$F$15:$F$25,MATCH('Ввод данных об угрозах'!H40,Exposures,0)),0)","v":0},{"$f":"'Ввод данных об угрозах'!I40","v":0},{"$f":"IFERROR(INDEX(Предположения!$F$41:$F$51,MATCH('Ввод данных об угрозах'!J40,Levels_of_response,0)),0)","v":0},{"$f":"'Ввод данных об угрозах'!K40","v":0},{"$f":"'Ввод данных об угрозах'!L40","v":0}]
[null,null,{"$f":"'Ввод данных об угрозах'!B41","v":0},{"$f":"'Ввод данных об угрозах'!C41","v":0},{"$f":"IFERROR(INDEX(Предположения!$F$15:$F$25,MATCH('Ввод данных об угрозах'!D41,Exposures,0)),0)","v":0},{"$f":"IFERROR(INDEX(Предположения!$F$15:$F$25,MATCH('Ввод данных об угрозах'!E41,Exposures,0)),0)","v":0},{"$f":"IFERROR(INDEX(Предположения!$F$15:$F$25,MATCH('Ввод данных об угрозах'!F41,Exposures,0)),0)","v":0},{"$f":"IFERROR(INDEX(Предположения!$F$15:$F$25,MATCH('Ввод данных об угрозах'!G41,Exposures,0)),0)","v":0},{"$f":"IFERROR(INDEX(Предположения!$F$15:$F$25,MATCH('Ввод данных об угрозах'!H41,Exposures,0)),0)","v":0},{"$f":"'Ввод данных об угрозах'!I41","v":0},{"$f":"IFERROR(INDEX(Предположения!$F$41:$F$51,MATCH('Ввод данных об угрозах'!J41,Levels_of_response,0)),0)","v":0},{"$f":"'Ввод данных об угрозах'!K41","v":0},{"$f":"'Ввод данных об угрозах'!L41","v":0}]
[null,null,{"$f":"'Ввод данных об угрозах'!B42","v":0},{"$f":"'Ввод данных об угрозах'!C42","v":0},{"$f":"IFERROR(INDEX(Предположения!$F$15:$F$25,MATCH('Ввод данных об угрозах'!D42,Exposures,0)),0)","v":0},{"$f":"IFERROR(INDEX(Предположения!$F$15:$F$25,MATCH('Ввод данных об угрозах'!E42,Exposures,0)),0)","v":0},{"$f":"IFERROR(INDEX(Предположения!$F$15:$F$25,MATCH('Ввод данных об угрозах'!F42,Exposures,0)),0)","v":0},{"$f":"IFERROR(INDEX(Предположения!$F$15:$F$25,MATCH('Ввод данных об угрозах'!G42,Exposures,0)),0)","v":0},{"$f":"IFERROR(INDEX(Предположения!$F$15:$F$25,MATCH('Ввод данных об угрозах'!H42,Exposures,0)),0)","v":0},{"$f":"'Ввод данных об угрозах'!I42","v":0},{"$f":"IFERROR(INDEX(Предположения!$F$41:$F$51,MATCH('Ввод данных об угрозах'!J42,Levels_of_response,0)),0)","v":0},{"$f":"'Ввод данных об угрозах'!K42","v":0},{"$f":"'Ввод данных об угрозах'!L42","v":0}]
[null,{"$f":"'Ввод данных об угрозах'!$B$43","v":"H7 - Антропогенные"},{"$f":"'Ввод данных об угрозах'!B44","v":0},{"$f":"'Ввод данных об угрозах'!C44","v":0},{"$f":"IFERROR(INDEX(Предположения!$F$15:$F$25,MATCH('Ввод данных об угрозах'!D44,Exposures,0)),0)","v":0},{"$f":"IFERROR(INDEX(Предположения!$F$15:$F$25,MATCH('Ввод данных об угрозах'!E44,Exposures,0)),0)","v":0},{"$f":"IFERROR(INDEX(Предположения!$F$15:$F$25,MATCH('Ввод данных об угрозах'!F44,Exposures,0)),0)","v":0},{"$f":"IFERROR(INDEX(Предположения!$F$15:$F$25,MATCH('Ввод данных об угрозах'!G44,Exposures,0)),0)","v":0},{"$f":"IFERROR(INDEX(Предположения!$F$15:$F$25,MATCH('Ввод данных об угрозах'!H44,Exposures,0)),0)","v":0},{"$f":"'Ввод данных об угрозах'!I44","v":0},{"$f":"IFERROR(INDEX(Предположения!$F$41:$F$51,MATCH('Ввод данных об угрозах'!J44,Levels_of_response,0)),0)","v":0},{"$f":"'Ввод данных об угрозах'!K44","v":0},{"$f":"'Ввод данных об угрозах'!L44","v":0}]
[null,null,{"$f":"'Ввод данных об угрозах'!B45","v":0},{"$f":"'Ввод данных об угрозах'!C45","v":0},{"$f":"IFERROR(INDEX(Предположения!$F$15:$F$25,MATCH('Ввод данных об угрозах'!D45,Exposures,0)),0)","v":0},{"$f":"IFERROR(INDEX(Предположения!$F$15:$F$25,MATCH('Ввод данных об угрозах'!E45,Exposures,0)),0)","v":0},{"$f":"IFERROR(INDEX(Предположения!$F$15:$F$25,MATCH('Ввод данных об угрозах'!F45,Exposures,0)),0)","v":0},{"$f":"IFERROR(INDEX(Предположения!$F$15:$F$25,MATCH('Ввод данных об угрозах'!G45,Exposures,0)),0)","v":0},{"$f":"IFERROR(INDEX(Предположения!$F$15:$F$25,MATCH('Ввод данных об угрозах'!H45,Exposures,0)),0)","v":0},{"$f":"'Ввод данных об угрозах'!I45","v":0},{"$f":"IFERROR(INDEX(Предположения!$F$41:$F$51,MATCH('Ввод данных об угрозах'!J45,Levels_of_response,0)),0)","v":0},{"$f":"'Ввод данных об угрозах'!K45","v":0},{"$f":"'Ввод данных об угрозах'!L45","v":0}]
[null,null,{"$f":"'Ввод данных об угрозах'!B46","v":0},{"$f":"'Ввод данных об угрозах'!C46","v":0},{"$f":"IFERROR(INDEX(Предположения!$F$15:$F$25,MATCH('Ввод данных об угрозах'!D46,Exposures,0)),0)","v":0},{"$f":"IFERROR(INDEX(Предположения!$F$15:$F$25,MATCH('Ввод данных об угрозах'!E46,Exposures,0)),0)","v":0},{"$f":"IFERROR(INDEX(Предположения!$F$15:$F$25,MATCH('Ввод данных об угрозах'!F46,Exposures,0)),0)","v":0},{"$f":"IFERROR(INDEX(Предположения!$F$15:$F$25,MATCH('Ввод данных об угрозах'!G46,Exposures,0)),0)","v":0},{"$f":"IFERROR(INDEX(Предположения!$F$15:$F$25,MATCH('Ввод данных об угрозах'!H46,Exposures,0)),0)","v":0},{"$f":"'Ввод данных об угрозах'!I46","v":0},{"$f":"IFERROR(INDEX(Предположения!$F$41:$F$51,MATCH('Ввод данных об угрозах'!J46,Levels_of_response,0)),0)","v":0},{"$f":"'Ввод данных об угрозах'!K46","v":0},{"$f":"'Ввод данных об угрозах'!L46","v":0}]
[null,null,{"$f":"'Ввод данных об угрозах'!B47","v":0},{"$f":"'Ввод данных об угрозах'!C47","v":0},{"$f":"IFERROR(INDEX(Предположения!$F$15:$F$25,MATCH('Ввод данных об угрозах'!D47,Exposures,0)),0)","v":0},{"$f":"IFERROR(INDEX(Предположения!$F$15:$F$25,MATCH('Ввод данных об угрозах'!E47,Exposures,0)),0)","v":0},{"$f":"IFERROR(INDEX(Предположения!$F$15:$F$25,MATCH('Ввод данных об угрозах'!F47,Exposures,0)),0)","v":0},{"$f":"IFERROR(INDEX(Предположения!$F$15:$F$25,MATCH('Ввод данных об угрозах'!G47,Exposures,0)),0)","v":0},{"$f":"IFERROR(INDEX(Предположения!$F$15:$F$25,MATCH('Ввод данных об угрозах'!H47,Exposures,0)),0)","v":0},{"$f":"'Ввод данных об угрозах'!I47","v":0},{"$f":"IFERROR(INDEX(Предположения!$F$41:$F$51,MATCH('Ввод данных об угрозах'!J47,Levels_of_response,0)),0)","v":0},{"$f":"'Ввод данных об угрозах'!K47","v":0},{"$f":"'Ввод данных об угрозах'!L47","v":0}]
[null,null,{"$f":"'Ввод данных об угрозах'!B48","v":0},{"$f":"'Ввод данных об угрозах'!C48","v":0},{"$f":"IFERROR(INDEX(Предположения!$F$15:$F$25,MATCH('Ввод данных об угрозах'!D48,Exposures,0)),0)","v":0},{"$f":"IFERROR(INDEX(Предположения!$F$15:$F$25,MATCH('Ввод данных об угрозах'!E48,Exposures,0)),0)","v":0},{"$f":"IFERROR(INDEX(Предположения!$F$15:$F$25,MATCH('Ввод данных об угрозах'!F48,Exposures,0)),0)","v":0},{"$f":"IFERROR(INDEX(Предположения!$F$15:$F$25,MATCH('Ввод данных об угрозах'!G48,Exposures,0)),0)","v":0},{"$f":"IFERROR(INDEX(Предположения!$F$15:$F$25,MATCH('Ввод данных об угрозах'!H48,Exposures,0)),0)","v":0},{"$f":"'Ввод данных об угрозах'!I48","v":0},{"$f":"IFERROR(INDEX(Предположения!$F$41:$F$51,MATCH('Ввод данных об угрозах'!J48,Levels_of_response,0)),0)","v":0},{"$f":"'Ввод данных об угрозах'!K48","v":0},{"$f":"'Ввод данных об угрозах'!L48","v":0}]
[null,{"$f":"'Ввод данных об угрозах'!$B$49","v":"H8 - Другие угрозы (определяются пользователем)"},{"$f":"'Ввод данных об угрозах'!B50","v":0},{"$f":"'Ввод данных об угрозах'!C50","v":0},{"$f":"IFERROR(INDEX(Предположения!$F$15:$F$25,MATCH('Ввод данных об угрозах'!D50,Exposures,0)),0)","v":0},{"$f":"IFERROR(INDEX(Предположения!$F$15:$F$25,MATCH('Ввод данных об угрозах'!E50,Exposures,0)),0)","v":0},{"$f":"IFERROR(INDEX(Предположения!$F$15:$F$25,MATCH('Ввод данных об угрозах'!F50,Exposures,0)),0)","v":0},{"$f":"IFERROR(INDEX(Предположения!$F$15:$F$25,MATCH('Ввод данных об угрозах'!G50,Exposures,0)),0)","v":0},{"$f":"IFERROR(INDEX(Предположения!$F$15:$F$25,MATCH('Ввод данных об угрозах'!H50,Exposures,0)),0)","v":0},{"$f":"'Ввод данных об угрозах'!I50","v":0},{"$f":"IFERROR(INDEX(Предположения!$F$41:$F$51,MATCH('Ввод данных об угрозах'!J50,Levels_of_response,0)),0)","v":0},{"$f":"'Ввод данных об угрозах'!K50","v":0},{"$f":"'Ввод данных об угрозах'!L50","v":0}]
[null,null,{"$f":"'Ввод данных об угрозах'!B51","v":0},{"$f":"'Ввод данных об угрозах'!C51","v":0},{"$f":"IFERROR(INDEX(Предположения!$F$15:$F$25,MATCH('Ввод данных об угрозах'!D51,Exposures,0)),0)","v":0},{"$f":"IFERROR(INDEX(Предположения!$F$15:$F$25,MATCH('Ввод данных об угрозах'!E51,Exposures,0)),0)","v":0},{"$f":"IFERROR(INDEX(Предположения!$F$15:$F$25,MATCH('Ввод данных об угрозах'!F51,Exposures,0)),0)","v":0},{"$f":"IFERROR(INDEX(Предположения!$F$15:$F$25,MATCH('Ввод данных об угрозах'!G51,Exposures,0)),0)","v":0},{"$f":"IFERROR(INDEX(Предположения!$F$15:$F$25,MATCH('Ввод данных об угрозах'!H51,Exposures,0)),0)","v":0},{"$f":"'Ввод данных об угрозах'!I51","v":0},{"$f":"IFERROR(INDEX(Предположения!$F$41:$F$51,MATCH('Ввод данных об угрозах'!J51,Levels_of_response,0)),0)","v":0},{"$f":"'Ввод данных об угрозах'!K51","v":0},{"$f":"'Ввод данных об угрозах'!L51","v":0}]
[null,null,{"$f":"'Ввод данных об угрозах'!B52","v":0},{"$f":"'Ввод данных об угрозах'!C52","v":0},{"$f":"IFERROR(INDEX(Предположения!$F$15:$F$25,MATCH('Ввод данных об угрозах'!D52,Exposures,0)),0)","v":0},{"$f":"IFERROR(INDEX(Предположения!$F$15:$F$25,MATCH('Ввод данных об угрозах'!E52,Exposures,0)),0)","v":0},{"$f":"IFERROR(INDEX(Предположения!$F$15:$F$25,MATCH('Ввод данных об угрозах'!F52,Exposures,0)),0)","v":0},{"$f":"IFERROR(INDEX(Предположения!$F$15:$F$25,MATCH('Ввод данных об угрозах'!G52,Exposures,0)),0)","v":0},{"$f":"IFERROR(INDEX(Предположения!$F$15:$F$25,MATCH('Ввод данных об угрозах'!H52,Exposures,0)),0)","v":0},{"$f":"'Ввод данных об угрозах'!I52","v":0},{"$f":"IFERROR(INDEX(Предположения!$F$41:$F$51,MATCH('Ввод данных об угрозах'!J52,Levels_of_response,0)),0)","v":0},{"$f":"'Ввод данных об угрозах'!K52","v":0},{"$f":"'Ввод данных об угрозах'!L52","v":0}]
[null,null,{"$f":"'Ввод данных об угрозах'!B53","v":0},{"$f":"'Ввод данных об угрозах'!C53","v":0},{"$f":"IFERROR(INDEX(Предположения!$F$15:$F$25,MATCH('Ввод данных об угрозах'!D53,Exposures,0)),0)","v":0},{"$f":"IFERROR(INDEX(Предположения!$F$15:$F$25,MATCH('Ввод данных об угрозах'!E53,Exposures,0)),0)","v":0},{"$f":"IFERROR(INDEX(Предположения!$F$15:$F$25,MATCH('Ввод данных об угрозах'!F53,Exposures,0)),0)","v":0},{"$f":"IFERROR(INDEX(Предположения!$F$15:$F$25,MATCH('Ввод данных об угрозах'!G53,Exposures,0)),0)","v":0},{"$f":"IFERROR(INDEX(Предположения!$F$15:$F$25,MATCH('Ввод данных об угрозах'!H53,Exposures,0)),0)","v":0},{"$f":"'Ввод данных об угрозах'!I53","v":0},{"$f":"IFERROR(INDEX(Предположения!$F$41:$F$51,MATCH('Ввод данных об угрозах'!J53,Levels_of_response,0)),0)","v":0},{"$f":"'Ввод данных об угрозах'!K53","v":0},{"$f":"'Ввод данных об угрозах'!L53","v":0}]
[null,null,{"$f":"'Ввод данных об угрозах'!B54","v":0},{"$f":"'Ввод данных об угрозах'!C54","v":0},{"$f":"IFERROR(INDEX(Предположения!$F$15:$F$25,MATCH('Ввод данных об угрозах'!D54,Exposures,0)),0)","v":0},{"$f":"IFERROR(INDEX(Предположения!$F$15:$F$25,MATCH('Ввод данных об угрозах'!E54,Exposures,0)),0)","v":0},{"$f":"IFERROR(INDEX(Предположения!$F$15:$F$25,MATCH('Ввод данных об угрозах'!F54,Exposures,0)),0)","v":0},{"$f":"IFERROR(INDEX(Предположения!$F$15:$F$25,MATCH('Ввод данных об угрозах'!G54,Exposures,0)),0)","v":0},{"$f":"IFERROR(INDEX(Предположения!$F$15:$F$25,MATCH('Ввод данных об угрозах'!H54,Exposures,0)),0)","v":0},{"$f":"'Ввод данных об угрозах'!I54","v":0},{"$f":"IFERROR(INDEX(Предположения!$F$41:$F$51,MATCH('Ввод данных об угрозах'!J54,Levels_of_response,0)),0)","v":0},{"$f":"'Ввод данных об угрозах'!K54","v":0},{"$f":"'Ввод данных об угрозах'!L54","v":0}]
[]
[]
[null,"Конец"]

{"sheet":"Отчет о рисках","index":8,"n_rows":9,"n_cols":3,"rows_kept":9,"cut":false,"hidden":false,"merged":[]}
[null,{"$f":"MdlTle","v":"Инструмент быстрой оценки риска (БОР)"}]
[null,{"$f":"MID(CELL(\"filename\",B1),FIND(\"]\",CELL(\"filename\",B1))+1,255)","v":"Отчет о рисках"}]
[]
[]
[null,{"$f":"Информация!C15","v":"Местоположение/Регион/Название:"},{"$f":"Информация!$L$15","v":0}]
[null,{"$f":"Информация!C17","v":"Описание (включая исследуемый (е) объект (ы)): "},{"$f":"Информация!$L$17","v":0}]
[null,{"$f":"Информация!C20","v":"Эксперт (т.е. лицо, выполняющее данную оценку риска): "},{"$f":"Информация!$L$20","v":0}]
[null,{"$f":"Информация!C22","v":"Дата завершения: "},{"$f":"TEXT(Информация!$L$22,\"DD MMM YYYY\")","v":"00 Jan 1900"}]
[null,{"$f":"Информация!C24","v":"Дата обзора/версия: "},{"$f":"TEXT(Информация!$L$24, \"DD MMM YYYY\")","v":"00 Jan 1900"}]

{"sheet":"Отчет об уязвимости","index":9,"n_rows":55,"n_cols":3,"rows_kept":55,"cut":false,"hidden":false,"merged":[]}
[null,{"$f":"MdlTle","v":"Инструмент быстрой оценки риска (БОР)"}]
[null,{"$f":"MID(CELL(\"filename\",B1),FIND(\"]\",CELL(\"filename\",B1))+1,255)","v":"Отчет об уязвимости"}]
[]
[]
[null,{"$f":"Информация!C15","v":"Местоположение/Регион/Название:"},{"$f":"Информация!$L$15","v":0}]
[null,{"$f":"Информация!C17","v":"Описание (включая исследуемый (е) объект (ы)): "},{"$f":"Информация!$L$17","v":0}]
[null,{"$f":"Информация!C20","v":"Эксперт (т.е. лицо, выполняющее данную оценку риска): "},{"$f":"Информация!$L$20","v":0}]
[null,{"$f":"Информация!C22","v":"Дата завершения: "},{"$f":"TEXT(Информация!$L$22,\"DD MMM YYYY\")","v":"00 Jan 1900"}]
[null,{"$f":"Информация!C24","v":"Дата обзора/версия: "},{"$f":"TEXT(Информация!$L$24, \"DD MMM YYYY\")","v":"00 Jan 1900"}]
[]
[]
[]
[]
[]
[]
[]
[]
[]
[]
[]
[]
[]
[]
[]
[]
[]
[]
[]
[]
[]
[]
[]
[]
[]
[]
[]
[]
[]
[]
[]
[]
[]
[]
[]
[]
[]
[]
[]
[]
[]
[]
[]
[]
[null,{"$f":"MdlTle","v":"Инструмент быстрой оценки риска (БОР)"}]
[null,{"$f":"MID(CELL(\"filename\",B54),FIND(\"]\",CELL(\"filename\",B54))+1,255)","v":"Отчет об уязвимости"}]

{"sheet":"Контакты","index":10,"n_rows":9,"n_cols":1,"rows_kept":9,"cut":false,"hidden":false,"merged":[[6,0,6,2]]}
[{"$f":"MdlTle","v":"Инструмент быстрой оценки риска (БОР)"}]
[{"$f":"MID(CELL(\"filename\",A1),FIND(\"]\",CELL(\"filename\",A1))+1,255)","v":"Контакты"}]
[]
[]
[]
["Questions?\n\n"]
["Пожалуйста свяжитесь с нашим персоналом и партнерами в ближайшем к вам регионе:"]
[]
["https://www.unisdr.org/campaign/resilientcities/about/article/about-the-campaign"]